Organisation Name,Organisation Code,Effective Date,Directorate,Service (Sercop),Sercop URI,Supplier Name,Supplier ID,Company Registration,Charity Registration,VCSE Grant,Payment Date,Transaction Number,Seq No,Net Amount,Irrecoverable VAT,Purpose of Spend,Type,Procurement Classification,Class Code,Procurement Classification,Class Code,Thomson Classification,Thomson Desc.,Contract
Wakefield MDC,E08000036,30/06/2015,CHILDYOU,Children's and Education Services,4,LIZ GODMAN EDUCATION CONSULTANCY LTD,Redacted,Not yet available,Not yet available,Not yet available,25/09/2015,22880389,1,2860.00,Nil,Activities School Improvement,Revenue,Children and Young People,CAT05,Education & Careers,SUBCAT0502,Educational Services,29360,Not yet available
Wakefield MDC,E08000036,30/06/2015,CHILDYOU,Children's and Education Services,4,MARTIN SHEVILL CONSULTANCY LTD,Redacted,Not yet available,Not yet available,Not yet available,13/07/2015,22824637,1,528.00,Nil,Activities School Improvement,Revenue,Children and Young People,CAT05,Education & Careers,SUBCAT0502,Educational Services,29360,Not yet available
Wakefield MDC,E08000036,30/06/2015,ADULTS,Adult Social Care,7,DIRECT FABRICATIONS (YORKSHIRE) LTD,Redacted,Not yet available,Not yet available,Not yet available,21/08/2015,22848120,1,526.00,Nil,Adaptations,Revenue,Property & Asset Management,CAT01,Building Services - Metal,SUBCAT0114,Steel Fabricators & Erectors,73510,Not yet available
Wakefield MDC,E08000036,30/06/2015,ADULTS,Adult Social Care,7,DIRECT FABRICATIONS (YORKSHIRE) LTD,Redacted,Not yet available,Not yet available,Not yet available,11/08/2015,22844585,1,1155.00,Nil,Adaptations,Revenue,Property & Asset Management,CAT01,Building Services - Metal,SUBCAT0114,Steel Fabricators & Erectors,73510,Not yet available
Wakefield MDC,E08000036,30/06/2015,ADULTS,Adult Social Care,7,DIRECT FABRICATIONS (YORKSHIRE) LTD,Redacted,Not yet available,Not yet available,Not yet available,30/07/2015,22839131,1,1419.60,Nil,Adaptations,Revenue,Property & Asset Management,CAT01,Building Services - Metal,SUBCAT0114,Steel Fabricators & Erectors,73510,Not yet available
Wakefield MDC,E08000036,30/06/2015,ADULTS,Adult Social Care,7,DIRECT FABRICATIONS (YORKSHIRE) LTD,Redacted,Not yet available,Not yet available,Not yet available,03/07/2015,22816098,1,1480.20,Nil,Adaptations,Revenue,Property & Asset Management,CAT01,Building Services - Metal,SUBCAT0114,Steel Fabricators & Erectors,73510,Not yet available
Wakefield MDC,E08000036,30/06/2015,ADULTS,Adult Social Care,7,POLLOCK LIFTS,Redacted,Not yet available,Not yet available,Not yet available,10/09/2015,22865986,1,535.00,Nil,Adaptations,Revenue,Adult Services,CAT04,Sub Category To Be Classified,SUBCATTBC,Stairlifts - Mnfrs & Installers,73190,Not yet available
Wakefield MDC,E08000036,30/06/2015,ADULTS,Adult Social Care,7,POLLOCK LIFTS,Redacted,Not yet available,Not yet available,Not yet available,25/08/2015,22780772,1,565.00,Nil,Adaptations,Revenue,Adult Services,CAT04,Sub Category To Be Classified,SUBCATTBC,Stairlifts - Mnfrs & Installers,73190,Not yet available
Wakefield MDC,E08000036,30/06/2015,ADULTS,Adult Social Care,7,POLLOCK LIFTS,Redacted,Not yet available,Not yet available,Not yet available,08/09/2015,22864238,1,620.00,Nil,Adaptations,Revenue,Adult Services,CAT04,Sub Category To Be Classified,SUBCATTBC,Stairlifts - Mnfrs & Installers,73190,Not yet available
Wakefield MDC,E08000036,30/06/2015,ADULTS,Adult Social Care,7,POLLOCK LIFTS,Redacted,Not yet available,Not yet available,Not yet available,11/09/2015,22866846,1,625.00,Nil,Adaptations,Revenue,Adult Services,CAT04,Sub Category To Be Classified,SUBCATTBC,Stairlifts - Mnfrs & Installers,73190,Not yet available
Wakefield MDC,E08000036,30/06/2015,ADULTS,Adult Social Care,7,POLLOCK LIFTS,Redacted,Not yet available,Not yet available,Not yet available,28/08/2015,22861008,1,625.00,Nil,Adaptations,Revenue,Adult Services,CAT04,Sub Category To Be Classified,SUBCATTBC,Stairlifts - Mnfrs & Installers,73190,Not yet available
Wakefield MDC,E08000036,30/06/2015,ADULTS,Adult Social Care,7,POLLOCK LIFTS,Redacted,Not yet available,Not yet available,Not yet available,28/08/2015,22860083,1,625.00,Nil,Adaptations,Revenue,Adult Services,CAT04,Sub Category To Be Classified,SUBCATTBC,Stairlifts - Mnfrs & Installers,73190,Not yet available
Wakefield MDC,E08000036,30/06/2015,ADULTS,Adult Social Care,7,POLLOCK LIFTS,Redacted,Not yet available,Not yet available,Not yet available,01/09/2015,22786426,1,625.00,Nil,Adaptations,Revenue,Adult Services,CAT04,Sub Category To Be Classified,SUBCATTBC,Stairlifts - Mnfrs & Installers,73190,Not yet available
Wakefield MDC,E08000036,30/06/2015,ADULTS,Adult Social Care,7,POLLOCK LIFTS,Redacted,Not yet available,Not yet available,Not yet available,30/09/2015,22882713,1,632.17,Nil,Adaptations,Revenue,Adult Services,CAT04,Sub Category To Be Classified,SUBCATTBC,Stairlifts - Mnfrs & Installers,73190,Not yet available
Wakefield MDC,E08000036,30/06/2015,ADULTS,Adult Social Care,7,POLLOCK LIFTS,Redacted,Not yet available,Not yet available,Not yet available,28/08/2015,22860085,1,650.00,Nil,Adaptations,Revenue,Adult Services,CAT04,Sub Category To Be Classified,SUBCATTBC,Stairlifts - Mnfrs & Installers,73190,Not yet available
Wakefield MDC,E08000036,30/06/2015,ADULTS,Adult Social Care,7,POLLOCK LIFTS,Redacted,Not yet available,Not yet available,Not yet available,15/09/2015,22868102,1,700.00,Nil,Adaptations,Revenue,Adult Services,CAT04,Sub Category To Be Classified,SUBCATTBC,Stairlifts - Mnfrs & Installers,73190,Not yet available
Wakefield MDC,E08000036,30/06/2015,ADULTS,Adult Social Care,7,POLLOCK LIFTS,Redacted,Not yet available,Not yet available,Not yet available,10/09/2015,22865984,1,785.00,Nil,Adaptations,Revenue,Adult Services,CAT04,Sub Category To Be Classified,SUBCATTBC,Stairlifts - Mnfrs & Installers,73190,Not yet available
Wakefield MDC,E08000036,30/06/2015,ADULTS,Adult Social Care,7,POLLOCK LIFTS,Redacted,Not yet available,Not yet available,Not yet available,28/08/2015,22861009,1,800.00,Nil,Adaptations,Revenue,Adult Services,CAT04,Sub Category To Be Classified,SUBCATTBC,Stairlifts - Mnfrs & Installers,73190,Not yet available
Wakefield MDC,E08000036,30/06/2015,ADULTS,Adult Social Care,7,POLLOCK LIFTS,Redacted,Not yet available,Not yet available,Not yet available,17/08/2015,22830348,1,811.50,Nil,Adaptations,Revenue,Adult Services,CAT04,Sub Category To Be Classified,SUBCATTBC,Stairlifts - Mnfrs & Installers,73190,Not yet available
Wakefield MDC,E08000036,30/06/2015,ADULTS,Adult Social Care,7,POLLOCK LIFTS,Redacted,Not yet available,Not yet available,Not yet available,01/09/2015,22787139,1,1095.00,Nil,Adaptations,Revenue,Adult Services,CAT04,Sub Category To Be Classified,SUBCATTBC,Stairlifts - Mnfrs & Installers,73190,Not yet available
Wakefield MDC,E08000036,30/06/2015,ADULTS,Adult Social Care,7,POLLOCK LIFTS,Redacted,Not yet available,Not yet available,Not yet available,28/08/2015,22828228,1,1130.00,Nil,Adaptations,Revenue,Adult Services,CAT04,Sub Category To Be Classified,SUBCATTBC,Stairlifts - Mnfrs & Installers,73190,Not yet available
Wakefield MDC,E08000036,30/06/2015,ADULTS,Adult Social Care,7,POLLOCK LIFTS,Redacted,Not yet available,Not yet available,Not yet available,28/08/2015,22786419,1,1525.00,Nil,Adaptations,Revenue,Adult Services,CAT04,Sub Category To Be Classified,SUBCATTBC,Stairlifts - Mnfrs & Installers,73190,Not yet available
Wakefield MDC,E08000036,30/06/2015,ADULTS,Adult Social Care,7,POLLOCK LIFTS,Redacted,Not yet available,Not yet available,Not yet available,16/07/2015,22807762,1,2964.77,Nil,Adaptations,Revenue,Adult Services,CAT04,Sub Category To Be Classified,SUBCATTBC,Stairlifts - Mnfrs & Installers,73190,Not yet available
Wakefield MDC,E08000036,30/06/2015,ADULTS,Adult Social Care,7,POLLOCK LIFTS,Redacted,Not yet available,Not yet available,Not yet available,17/07/2015,22828229,1,5788.00,Nil,Adaptations,Revenue,Adult Services,CAT04,Sub Category To Be Classified,SUBCATTBC,Stairlifts - Mnfrs & Installers,73190,Not yet available
Wakefield MDC,E08000036,30/06/2015,ADULTS,Adult Social Care,7,C MITCHELL & SONS,Redacted,Not yet available,Not yet available,Not yet available,15/09/2015,22865909,1,535.00,Nil,Adaptations,Revenue,Property & Asset Management,CAT01,Building Services - Roofing,SUBCAT0119,Roofing Services,65470,Not yet available
Wakefield MDC,E08000036,30/06/2015,ADULTS,Adult Social Care,7,C MITCHELL & SONS,Redacted,Not yet available,Not yet available,Not yet available,13/08/2015,22842677,1,670.00,Nil,Adaptations,Revenue,Property & Asset Management,CAT01,Building Services - Roofing,SUBCAT0119,Roofing Services,65470,Not yet available
Wakefield MDC,E08000036,30/06/2015,ADULTS,Adult Social Care,7,C MITCHELL & SONS,Redacted,Not yet available,Not yet available,Not yet available,14/09/2015,22862730,1,730.00,Nil,Adaptations,Revenue,Property & Asset Management,CAT01,Building Services - Roofing,SUBCAT0119,Roofing Services,65470,Not yet available
Wakefield MDC,E08000036,30/06/2015,ADULTS,Adult Social Care,7,C MITCHELL & SONS,Redacted,Not yet available,Not yet available,Not yet available,31/07/2015,22838168,1,1200.00,Nil,Adaptations,Revenue,Property & Asset Management,CAT01,Building Services - Roofing,SUBCAT0119,Roofing Services,65470,Not yet available
Wakefield MDC,E08000036,30/06/2015,ADULTS,Adult Social Care,7,PLUMBCARE YORKSHIRE LTD,Redacted,Not yet available,Not yet available,Not yet available,27/08/2015,22860062,1,529.60,Nil,Adaptations,Revenue,Property & Asset Management,CAT01,Building Services - Plumbing,SUBCAT0118,Plumbers� Merchants,59860,Not yet available
Wakefield MDC,E08000036,30/06/2015,ADULTS,Adult Social Care,7,HANDICARE ACCESSIBILITY LTD,Redacted,Not yet available,Not yet available,Not yet available,07/08/2015,22841975,1,535.00,Nil,Adaptations,Revenue,Adult Services,CAT04,Sub Category To Be Classified,SUBCATTBC,Stairlifts - Mnfrs & Installers,73190,Not yet available
Wakefield MDC,E08000036,30/06/2015,ADULTS,Adult Social Care,7,HANDICARE ACCESSIBILITY LTD,Redacted,Not yet available,Not yet available,Not yet available,02/07/2015,22806730,1,550.00,Nil,Adaptations,Revenue,Adult Services,CAT04,Sub Category To Be Classified,SUBCATTBC,Stairlifts - Mnfrs & Installers,73190,Not yet available
Wakefield MDC,E08000036,30/06/2015,ADULTS,Adult Social Care,7,HANDICARE ACCESSIBILITY LTD,Redacted,Not yet available,Not yet available,Not yet available,02/07/2015,22806729,1,595.00,Nil,Adaptations,Revenue,Adult Services,CAT04,Sub Category To Be Classified,SUBCATTBC,Stairlifts - Mnfrs & Installers,73190,Not yet available
Wakefield MDC,E08000036,30/06/2015,ADULTS,Adult Social Care,7,HANDICARE ACCESSIBILITY LTD,Redacted,Not yet available,Not yet available,Not yet available,13/08/2015,22844948,1,620.00,Nil,Adaptations,Revenue,Adult Services,CAT04,Sub Category To Be Classified,SUBCATTBC,Stairlifts - Mnfrs & Installers,73190,Not yet available
Wakefield MDC,E08000036,30/06/2015,ADULTS,Adult Social Care,7,HANDICARE ACCESSIBILITY LTD,Redacted,Not yet available,Not yet available,Not yet available,03/07/2015,22816564,1,638.20,Nil,Adaptations,Revenue,Adult Services,CAT04,Sub Category To Be Classified,SUBCATTBC,Stairlifts - Mnfrs & Installers,73190,Not yet available
Wakefield MDC,E08000036,30/06/2015,ADULTS,Adult Social Care,7,HANDICARE ACCESSIBILITY LTD,Redacted,Not yet available,Not yet available,Not yet available,26/08/2015,22848221,1,663.00,Nil,Adaptations,Revenue,Adult Services,CAT04,Sub Category To Be Classified,SUBCATTBC,Stairlifts - Mnfrs & Installers,73190,Not yet available
Wakefield MDC,E08000036,30/06/2015,ADULTS,Adult Social Care,7,HANDICARE ACCESSIBILITY LTD,Redacted,Not yet available,Not yet available,Not yet available,11/09/2015,22861151,1,700.50,Nil,Adaptations,Revenue,Adult Services,CAT04,Sub Category To Be Classified,SUBCATTBC,Stairlifts - Mnfrs & Installers,73190,Not yet available
Wakefield MDC,E08000036,30/06/2015,ADULTS,Adult Social Care,7,HANDICARE ACCESSIBILITY LTD,Redacted,Not yet available,Not yet available,Not yet available,28/07/2015,22829614,1,705.00,Nil,Adaptations,Revenue,Adult Services,CAT04,Sub Category To Be Classified,SUBCATTBC,Stairlifts - Mnfrs & Installers,73190,Not yet available
Wakefield MDC,E08000036,30/06/2015,ADULTS,Adult Social Care,7,HANDICARE ACCESSIBILITY LTD,Redacted,Not yet available,Not yet available,Not yet available,09/09/2015,22861122,1,713.00,Nil,Adaptations,Revenue,Adult Services,CAT04,Sub Category To Be Classified,SUBCATTBC,Stairlifts - Mnfrs & Installers,73190,Not yet available
Wakefield MDC,E08000036,30/06/2015,ADULTS,Adult Social Care,7,HANDICARE ACCESSIBILITY LTD,Redacted,Not yet available,Not yet available,Not yet available,23/09/2015,22878769,1,745.00,Nil,Adaptations,Revenue,Adult Services,CAT04,Sub Category To Be Classified,SUBCATTBC,Stairlifts - Mnfrs & Installers,73190,Not yet available
Wakefield MDC,E08000036,30/06/2015,ADULTS,Adult Social Care,7,HANDICARE ACCESSIBILITY LTD,Redacted,Not yet available,Not yet available,Not yet available,07/07/2015,22816573,1,780.00,Nil,Adaptations,Revenue,Adult Services,CAT04,Sub Category To Be Classified,SUBCATTBC,Stairlifts - Mnfrs & Installers,73190,Not yet available
Wakefield MDC,E08000036,30/06/2015,ADULTS,Adult Social Care,7,HANDICARE ACCESSIBILITY LTD,Redacted,Not yet available,Not yet available,Not yet available,13/07/2015,22822054,1,805.00,Nil,Adaptations,Revenue,Adult Services,CAT04,Sub Category To Be Classified,SUBCATTBC,Stairlifts - Mnfrs & Installers,73190,Not yet available
Wakefield MDC,E08000036,30/06/2015,ADULTS,Adult Social Care,7,HANDICARE ACCESSIBILITY LTD,Redacted,Not yet available,Not yet available,Not yet available,10/08/2015,22841965,1,822.50,Nil,Adaptations,Revenue,Adult Services,CAT04,Sub Category To Be Classified,SUBCATTBC,Stairlifts - Mnfrs & Installers,73190,Not yet available
Wakefield MDC,E08000036,30/06/2015,ADULTS,Adult Social Care,7,HANDICARE ACCESSIBILITY LTD,Redacted,Not yet available,Not yet available,Not yet available,23/09/2015,22878633,1,835.00,Nil,Adaptations,Revenue,Adult Services,CAT04,Sub Category To Be Classified,SUBCATTBC,Stairlifts - Mnfrs & Installers,73190,Not yet available
Wakefield MDC,E08000036,30/06/2015,ADULTS,Adult Social Care,7,HANDICARE ACCESSIBILITY LTD,Redacted,Not yet available,Not yet available,Not yet available,20/07/2015,22829553,1,865.00,Nil,Adaptations,Revenue,Adult Services,CAT04,Sub Category To Be Classified,SUBCATTBC,Stairlifts - Mnfrs & Installers,73190,Not yet available
Wakefield MDC,E08000036,30/06/2015,ADULTS,Adult Social Care,7,HANDICARE ACCESSIBILITY LTD,Redacted,Not yet available,Not yet available,Not yet available,06/08/2015,22841974,1,870.00,Nil,Adaptations,Revenue,Adult Services,CAT04,Sub Category To Be Classified,SUBCATTBC,Stairlifts - Mnfrs & Installers,73190,Not yet available
Wakefield MDC,E08000036,30/06/2015,ADULTS,Adult Social Care,7,HANDICARE ACCESSIBILITY LTD,Redacted,Not yet available,Not yet available,Not yet available,03/08/2015,22841977,1,950.00,Nil,Adaptations,Revenue,Adult Services,CAT04,Sub Category To Be Classified,SUBCATTBC,Stairlifts - Mnfrs & Installers,73190,Not yet available
Wakefield MDC,E08000036,30/06/2015,ADULTS,Adult Social Care,7,HANDICARE ACCESSIBILITY LTD,Redacted,Not yet available,Not yet available,Not yet available,20/07/2015,22829538,1,1028.20,Nil,Adaptations,Revenue,Adult Services,CAT04,Sub Category To Be Classified,SUBCATTBC,Stairlifts - Mnfrs & Installers,73190,Not yet available
Wakefield MDC,E08000036,30/06/2015,ADULTS,Adult Social Care,7,HANDICARE ACCESSIBILITY LTD,Redacted,Not yet available,Not yet available,Not yet available,06/07/2015,22802886,1,1055.00,Nil,Adaptations,Revenue,Adult Services,CAT04,Sub Category To Be Classified,SUBCATTBC,Stairlifts - Mnfrs & Installers,73190,Not yet available
Wakefield MDC,E08000036,30/06/2015,ADULTS,Adult Social Care,7,HANDICARE ACCESSIBILITY LTD,Redacted,Not yet available,Not yet available,Not yet available,07/08/2015,22841967,1,1140.00,Nil,Adaptations,Revenue,Adult Services,CAT04,Sub Category To Be Classified,SUBCATTBC,Stairlifts - Mnfrs & Installers,73190,Not yet available
Wakefield MDC,E08000036,30/06/2015,ADULTS,Adult Social Care,7,HANDICARE ACCESSIBILITY LTD,Redacted,Not yet available,Not yet available,Not yet available,03/07/2015,22802888,1,1500.00,Nil,Adaptations,Revenue,Adult Services,CAT04,Sub Category To Be Classified,SUBCATTBC,Stairlifts - Mnfrs & Installers,73190,Not yet available
Wakefield MDC,E08000036,30/06/2015,ADULTS,Adult Social Care,7,HANDICARE ACCESSIBILITY LTD,Redacted,Not yet available,Not yet available,Not yet available,24/09/2015,22848236,1,1660.00,Nil,Adaptations,Revenue,Adult Services,CAT04,Sub Category To Be Classified,SUBCATTBC,Stairlifts - Mnfrs & Installers,73190,Not yet available
Wakefield MDC,E08000036,30/06/2015,ADULTS,Adult Social Care,7,HANDICARE ACCESSIBILITY LTD,Redacted,Not yet available,Not yet available,Not yet available,06/08/2015,22841963,1,1740.00,Nil,Adaptations,Revenue,Adult Services,CAT04,Sub Category To Be Classified,SUBCATTBC,Stairlifts - Mnfrs & Installers,73190,Not yet available
Wakefield MDC,E08000036,30/06/2015,ADULTS,Adult Social Care,7,HANDICARE ACCESSIBILITY LTD,Redacted,Not yet available,Not yet available,Not yet available,02/09/2015,22861156,1,1845.00,Nil,Adaptations,Revenue,Adult Services,CAT04,Sub Category To Be Classified,SUBCATTBC,Stairlifts - Mnfrs & Installers,73190,Not yet available
Wakefield MDC,E08000036,30/06/2015,ADULTS,Adult Social Care,7,HANDICARE ACCESSIBILITY LTD,Redacted,Not yet available,Not yet available,Not yet available,24/07/2015,22829539,1,2025.00,Nil,Adaptations,Revenue,Adult Services,CAT04,Sub Category To Be Classified,SUBCATTBC,Stairlifts - Mnfrs & Installers,73190,Not yet available
Wakefield MDC,E08000036,30/06/2015,ADULTS,Adult Social Care,7,HANDICARE ACCESSIBILITY LTD,Redacted,Not yet available,Not yet available,Not yet available,01/07/2015,22735254,1,2125.00,Nil,Adaptations,Revenue,Adult Services,CAT04,Sub Category To Be Classified,SUBCATTBC,Stairlifts - Mnfrs & Installers,73190,Not yet available
Wakefield MDC,E08000036,30/06/2015,ADULTS,Adult Social Care,7,HANDICARE ACCESSIBILITY LTD,Redacted,Not yet available,Not yet available,Not yet available,24/09/2015,22857492,1,2760.00,Nil,Adaptations,Revenue,Adult Services,CAT04,Sub Category To Be Classified,SUBCATTBC,Stairlifts - Mnfrs & Installers,73190,Not yet available
Wakefield MDC,E08000036,30/06/2015,ADULTS,Adult Social Care,7,NORTHERN INSTALLATION SERVICES LTD,Redacted,Not yet available,Not yet available,Not yet available,02/07/2015,22815756,1,650.00,Nil,Adaptations,Revenue,Adult Services,CAT04,Sub Category To Be Classified,SUBCATTBC,Stairlifts - Mnfrs & Installers,73190,Not yet available
Wakefield MDC,E08000036,30/06/2015,ADULTS,Adult Social Care,7,NORTHERN INSTALLATION SERVICES LTD,Redacted,Not yet available,Not yet available,Not yet available,18/08/2015,22847690,1,650.00,Nil,Adaptations,Revenue,Adult Services,CAT04,Sub Category To Be Classified,SUBCATTBC,Stairlifts - Mnfrs & Installers,73190,Not yet available
Wakefield MDC,E08000036,30/06/2015,ADULTS,Adult Social Care,7,NORTHERN INSTALLATION SERVICES LTD,Redacted,Not yet available,Not yet available,Not yet available,03/08/2015,22841587,1,860.00,Nil,Adaptations,Revenue,Adult Services,CAT04,Sub Category To Be Classified,SUBCATTBC,Stairlifts - Mnfrs & Installers,73190,Not yet available
Wakefield MDC,E08000036,30/06/2015,ADULTS,Adult Social Care,7,NORTHERN INSTALLATION SERVICES LTD,Redacted,Not yet available,Not yet available,Not yet available,18/08/2015,22847688,1,870.00,Nil,Adaptations,Revenue,Adult Services,CAT04,Sub Category To Be Classified,SUBCATTBC,Stairlifts - Mnfrs & Installers,73190,Not yet available
Wakefield MDC,E08000036,30/06/2015,ADULTS,Adult Social Care,7,NORTHERN INSTALLATION SERVICES LTD,Redacted,Not yet available,Not yet available,Not yet available,02/07/2015,22815763,1,3074.00,Nil,Adaptations,Revenue,Adult Services,CAT04,Sub Category To Be Classified,SUBCATTBC,Stairlifts - Mnfrs & Installers,73190,Not yet available
Wakefield MDC,E08000036,30/06/2015,ADULTS,Adult Social Care,7,NORTHERN INSTALLATION SERVICES LTD,Redacted,Not yet available,Not yet available,Not yet available,17/07/2015,22829181,1,3474.00,Nil,Adaptations,Revenue,Adult Services,CAT04,Sub Category To Be Classified,SUBCATTBC,Stairlifts - Mnfrs & Installers,73190,Not yet available
Wakefield MDC,E08000036,30/06/2015,ADULTS,Adult Social Care,7,ALERT -IT CARE ALARMS,Redacted,Not yet available,Not yet available,Not yet available,30/09/2015,22880097,1,833.56,Nil,Adaptations,Revenue,Adult Services,CAT04,Sub Category To Be Classified,SUBCATTBC,Medical Equipment Manufacturers,50348,Not yet available
Wakefield MDC,E08000036,30/06/2015,ADULTS,Adult Social Care,7,ALERT -IT CARE ALARMS,Redacted,Not yet available,Not yet available,Not yet available,30/09/2015,22880312,1,1467.38,Nil,Adaptations,Revenue,Adult Services,CAT04,Sub Category To Be Classified,SUBCATTBC,Medical Equipment Manufacturers,50348,Not yet available
Wakefield MDC,E08000036,30/06/2015,ADULTS,Adult Social Care,7,ALERT -IT CARE ALARMS,Redacted,Not yet available,Not yet available,Not yet available,14/07/2015,22807712,1,3148.66,Nil,Adaptations,Revenue,Adult Services,CAT04,Sub Category To Be Classified,SUBCATTBC,Medical Equipment Manufacturers,50348,Not yet available
Wakefield MDC,E08000036,30/06/2015,ADULTS,Adult Social Care,7,BUDDI LIMITED,Redacted,Not yet available,Not yet available,Not yet available,16/07/2015,22825851,1,540.00,Nil,Adaptations,Revenue,Property & Asset Management,CAT01,Security,SUBCAT0138,Burglar & Intruder Alarm Systems,11700,Not yet available
Wakefield MDC,E08000036,30/06/2015,ADULTS,Adult Social Care,7,WESSEX LIFT CO. LIMITED,Redacted,Not yet available,Not yet available,Not yet available,27/07/2015,22838240,1,979.17,Nil,Adaptations,Revenue,Adult Services,CAT04,Sub Category To Be Classified,SUBCATTBC,Medical Equipment Manufacturers,50348,Not yet available
Wakefield MDC,E08000036,30/06/2015,ADULTS,Adult Social Care,7,WESSEX LIFT CO. LIMITED,Redacted,Not yet available,Not yet available,Not yet available,14/07/2015,22824548,1,1581.95,Nil,Adaptations,Revenue,Adult Services,CAT04,Sub Category To Be Classified,SUBCATTBC,Medical Equipment Manufacturers,50348,Not yet available
Wakefield MDC,E08000036,30/06/2015,ADULTS,Adult Social Care,7,WESSEX LIFT CO. LIMITED,Redacted,Not yet available,Not yet available,Not yet available,08/09/2015,22864101,1,1614.02,Nil,Adaptations,Revenue,Adult Services,CAT04,Sub Category To Be Classified,SUBCATTBC,Medical Equipment Manufacturers,50348,Not yet available
Wakefield MDC,E08000036,30/06/2015,ADULTS,Adult Social Care,7,WESSEX LIFT CO. LIMITED,Redacted,Not yet available,Not yet available,Not yet available,18/08/2015,22848446,1,2524.30,Nil,Adaptations,Revenue,Adult Services,CAT04,Sub Category To Be Classified,SUBCATTBC,Medical Equipment Manufacturers,50348,Not yet available
Wakefield MDC,E08000036,30/06/2015,ADULTS,Adult Social Care,7,WESSEX LIFT CO. LIMITED,Redacted,Not yet available,Not yet available,Not yet available,14/07/2015,22825285,1,2772.90,Nil,Adaptations,Revenue,Adult Services,CAT04,Sub Category To Be Classified,SUBCATTBC,Medical Equipment Manufacturers,50348,Not yet available
Wakefield MDC,E08000036,30/06/2015,ADULTS,Adult Social Care,7,WESSEX LIFT CO. LIMITED,Redacted,Not yet available,Not yet available,Not yet available,14/07/2015,22824761,1,3039.67,Nil,Adaptations,Revenue,Adult Services,CAT04,Sub Category To Be Classified,SUBCATTBC,Medical Equipment Manufacturers,50348,Not yet available
Wakefield MDC,E08000036,30/06/2015,ADULTS,Adult Social Care,7,WESSEX LIFT CO. LIMITED,Redacted,Not yet available,Not yet available,Not yet available,27/07/2015,22838231,1,4017.92,Nil,Adaptations,Revenue,Adult Services,CAT04,Sub Category To Be Classified,SUBCATTBC,Medical Equipment Manufacturers,50348,Not yet available
Wakefield MDC,E08000036,30/06/2015,ADULTS,Adult Social Care,7,WESSEX LIFT CO. LIMITED,Redacted,Not yet available,Not yet available,Not yet available,08/09/2015,22864136,1,4153.77,Nil,Adaptations,Revenue,Adult Services,CAT04,Sub Category To Be Classified,SUBCATTBC,Medical Equipment Manufacturers,50348,Not yet available
Wakefield MDC,E08000036,30/06/2015,ADULTS,Adult Social Care,7,WESSEX LIFT CO. LIMITED,Redacted,Not yet available,Not yet available,Not yet available,14/07/2015,22824586,1,4818.08,Nil,Adaptations,Revenue,Adult Services,CAT04,Sub Category To Be Classified,SUBCATTBC,Medical Equipment Manufacturers,50348,Not yet available
Wakefield MDC,E08000036,30/06/2015,ADULTS,Adult Social Care,7,WESSEX LIFT CO. LIMITED,Redacted,Not yet available,Not yet available,Not yet available,18/08/2015,22848444,1,5475.11,Nil,Adaptations,Revenue,Adult Services,CAT04,Sub Category To Be Classified,SUBCATTBC,Medical Equipment Manufacturers,50348,Not yet available
Wakefield MDC,E08000036,30/06/2015,ADULTS,Adult Social Care,7,CHILTERN INVADEX (UK) LTD,Redacted,Not yet available,Not yet available,Not yet available,08/09/2015,22831073,1,685.75,Nil,Adaptations,Revenue,Adult Services,CAT04,Sub Category To Be Classified,SUBCATTBC,Disability Equipment - Mnfrs & Suppliers,25800,Not yet available
Wakefield MDC,E08000036,30/06/2015,ADULTS,Adult Social Care,7,INDEPENDENT LIVING SUPPLIES,Redacted,Not yet available,Not yet available,Not yet available,30/09/2015,22880061,1,1276.00,Nil,Adaptations,Revenue,Adult Services,CAT04,Sub Category To Be Classified,SUBCATTBC,Disability Equipment - Mnfrs & Suppliers,25800,Not yet available
Wakefield MDC,E08000036,30/06/2015,ADULTS,BVACOP Not Applicable,Z,CHEVIN HOUSING ASSOCIATION,Redacted,Not yet available,Not yet available,Not yet available,19/08/2015,22849893,1,800.00,Nil,Administration Charge,Revenue,Adult Services,CAT04,Sub Category To Be Classified,SUBCATTBC,"Housing Associations, Societies, Trusts & Co-Opera",44166,Not yet available
Wakefield MDC,E08000036,30/06/2015,ADULTS,BVACOP Not Applicable,Z,CHEVIN HOUSING ASSOCIATION,Redacted,Not yet available,Not yet available,Not yet available,19/08/2015,22849892,1,2400.00,Nil,Administration Charge,Revenue,Adult Services,CAT04,Sub Category To Be Classified,SUBCATTBC,"Housing Associations, Societies, Trusts & Co-Opera",44166,Not yet available
Wakefield MDC,E08000036,30/06/2015,ADULTS,BVACOP Not Applicable,Z,CHEVIN HOUSING ASSOCIATION,Redacted,Not yet available,Not yet available,Not yet available,19/08/2015,22849894,1,2600.00,Nil,Administration Charge,Revenue,Adult Services,CAT04,Sub Category To Be Classified,SUBCATTBC,"Housing Associations, Societies, Trusts & Co-Opera",44166,Not yet available
Wakefield MDC,E08000036,30/06/2015,ADULTS,BVACOP Not Applicable,Z,CHEVIN HOUSING ASSOCIATION,Redacted,Not yet available,Not yet available,Not yet available,19/08/2015,22849899,1,2800.00,Nil,Administration Charge,Revenue,Adult Services,CAT04,Sub Category To Be Classified,SUBCATTBC,"Housing Associations, Societies, Trusts & Co-Opera",44166,Not yet available
Wakefield MDC,E08000036,30/06/2015,CHILDYOU,Children's and Education Services,4,DETAILS REDACTED,Redacted,Not yet available,Not yet available,Not yet available,14/09/2015,22867587,,4274.00,Nil,Adoption Allowance (Non Agency),Revenue,Children and Young People,CAT05,Looked After Children,SUBCAT0503,Adoption & Fostering,01880,Not yet available
Wakefield MDC,E08000036,30/06/2015,CHILDYOU,Children's and Education Services,4,DETAILS REDACTED,Redacted,Not yet available,Not yet available,Not yet available,21/09/2015,22876185,1,1243.87,Nil,Adoption Allowance (Non Agency),Revenue,Children and Young People,CAT05,Looked After Children,SUBCAT0503,Adoption & Fostering,01880,Not yet available
Wakefield MDC,E08000036,30/06/2015,CHILDYOU,Children's and Education Services,4,DETAILS REDACTED,Redacted,Not yet available,Not yet available,Not yet available,21/09/2015,22876186,,1243.87,Nil,Adoption Allowance (Non Agency),Revenue,Children and Young People,CAT05,Looked After Children,SUBCAT0503,Adoption & Fostering,01880,Not yet available
Wakefield MDC,E08000036,30/06/2015,CHILDYOU,Children's and Education Services,4,DETAILS REDACTED,Redacted,Not yet available,Not yet available,Not yet available,21/09/2015,22876184,,1249.24,Nil,Adoption Allowance (Non Agency),Revenue,Children and Young People,CAT05,Looked After Children,SUBCAT0503,Adoption & Fostering,01880,Not yet available
Wakefield MDC,E08000036,30/06/2015,CHILDYOU,Children's and Education Services,4,DETAILS REDACTED,Redacted,Not yet available,Not yet available,Not yet available,10/08/2015,22845206,,800.00,Nil,Adoption Allowance (Non Agency),Revenue,Children and Young People,CAT05,Looked After Children,SUBCAT0503,Adoption & Fostering,01880,Not yet available
Wakefield MDC,E08000036,30/06/2015,CHILDYOU,Children's and Education Services,4,DETAILS REDACTED,Redacted,Not yet available,Not yet available,Not yet available,14/09/2015,22867566,,523.56,Nil,Adoption Allowance (Non Agency),Revenue,Children and Young People,CAT05,Looked After Children,SUBCAT0503,Adoption & Fostering,01880,Not yet available
Wakefield MDC,E08000036,30/06/2015,CHILDYOU,Children's and Education Services,4,THERAPY IN PRAXIS LTD,Redacted,Not yet available,Not yet available,Not yet available,17/07/2015,22829190,1,1569.40,Nil,Adoption Support Fund Expenditure,Revenue,Adult Services,CAT04,Sub Category To Be Classified,SUBCATTBC,Disability & Special Needs - Services,25820,Not yet available
Wakefield MDC,E08000036,30/06/2015,BUSINESS,Net (Surplus) / Deficit of Trading Operations,A,JOHN H PICKUP & CO,Redacted,Not yet available,Not yet available,Not yet available,17/07/2015,22826928,1,738.79,Nil,Advertising,Revenue,Professional Services,CAT08,Legal Services,SUBCAT0806,Solicitors,72460,Not yet available
Wakefield MDC,E08000036,30/06/2015,BUSINESS,Net (Surplus) / Deficit of Trading Operations,A,TMP (UK) LTD,Redacted,Not yet available,Not yet available,Not yet available,29/09/2015,22880799,1,2737.34,Nil,Advertising,Revenue,Business Services,CAT02,Advertising Services,SUBCAT0203,Advertising - Agencies,01961,Not yet available
Wakefield MDC,E08000036,30/06/2015,BUSINESS,Central Services,1,TMP (UK) LTD,Redacted,Not yet available,Not yet available,Not yet available,08/07/2015,22822108,1,504.36,Nil,Advertising,Revenue,Business Services,CAT02,Advertising Services,SUBCAT0203,Advertising - Agencies,01961,Not yet available
Wakefield MDC,E08000036,30/06/2015,BUSINESS,Central Services,1,TMP (UK) LTD,Redacted,Not yet available,Not yet available,Not yet available,08/07/2015,22822141,1,504.36,Nil,Advertising,Revenue,Business Services,CAT02,Advertising Services,SUBCAT0203,Advertising - Agencies,01961,Not yet available
Wakefield MDC,E08000036,30/06/2015,BUSINESS,Central Services,1,TMP (UK) LTD,Redacted,Not yet available,Not yet available,Not yet available,08/07/2015,22822106,1,596.23,Nil,Advertising,Revenue,Business Services,CAT02,Advertising Services,SUBCAT0203,Advertising - Agencies,01961,Not yet available
Wakefield MDC,E08000036,30/06/2015,BUSINESS,Net (Surplus) / Deficit of Trading Operations,A,DS SIGNS LTD,Redacted,Not yet available,Not yet available,Not yet available,23/07/2015,22830939,1,895.00,Nil,Advertising,Revenue,Property & Asset Management,CAT01,Building Services - Signage,SUBCAT0121,Sign Makers� Equipment & Materials,70800,Not yet available
Wakefield MDC,E08000036,30/06/2015,BUSINESS,Housing Services,6,EXTERION MEDIA,Redacted,Not yet available,Not yet available,Not yet available,30/07/2015,22840271,1,2513.00,Nil,Advertising,Revenue,Business Services,CAT02,Advertising Services,SUBCAT0203,Advertising - Media,01967,Not yet available
Wakefield MDC,E08000036,30/06/2015,BUSINESS,Net (Surplus) / Deficit of Trading Operations,A,HITCHED LIMITED,Redacted,Not yet available,Not yet available,Not yet available,14/09/2015,22865263,1,595.00,Nil,Advertising,Revenue,"Economic Growth, Culture & Sport",CAT09,Events,SUBCAT0907,"Exhibition, Event & Trade Fair Organisers",33195,Not yet available
Wakefield MDC,E08000036,30/06/2015,CHILDYOU,Children's and Education Services,4,TMP (UK) LTD,Redacted,Not yet available,Not yet available,Not yet available,01/09/2015,22857335,1,1225.00,Nil,Advertising,Revenue,Business Services,CAT02,Advertising Services,SUBCAT0203,Advertising - Agencies,01961,Not yet available
Wakefield MDC,E08000036,30/06/2015,CHILDYOU,Children's and Education Services,4,TMP (UK) LTD,Redacted,Not yet available,Not yet available,Not yet available,01/07/2015,22782515,1,665.00,Nil,Advertising,Revenue,Business Services,CAT02,Advertising Services,SUBCAT0203,Advertising - Agencies,01961,Not yet available
Wakefield MDC,E08000036,30/06/2015,CHILDYOU,Children's and Education Services,4,EXTERION MEDIA,Redacted,Not yet available,Not yet available,Not yet available,13/07/2015,22824034,1,4622.00,Nil,Advertising,Revenue,Business Services,CAT02,Advertising Services,SUBCAT0203,Advertising - Media,01967,Not yet available
Wakefield MDC,E08000036,30/06/2015,CHILDYOU,Children's and Education Services,4,ELONEX DIGITAL MALLS,Redacted,Not yet available,Not yet available,Not yet available,21/07/2015,22830800,1,1820.00,Nil,Advertising,Revenue,ICT,CAT11,Audio Visual,SUBCAT1103,Digital Signage,61222,Not yet available
Wakefield MDC,E08000036,30/06/2015,REGENCULT,Planning Services,N,JOHNSTON PUBLISHING,Redacted,Not yet available,Not yet available,Not yet available,25/09/2015,22878781,1,1508.40,Nil,Advertising,Revenue,Business Services,CAT02,Advertising Services,SUBCAT0203,Advertising Services,02100,Not yet available
Wakefield MDC,E08000036,30/06/2015,REGENCULT,Planning Services,N,JOHNSTON PUBLISHING,Redacted,Not yet available,Not yet available,Not yet available,18/08/2015,22844727,1,1683.64,Nil,Advertising,Revenue,Business Services,CAT02,Advertising Services,SUBCAT0203,Advertising Services,02100,Not yet available
Wakefield MDC,E08000036,30/06/2015,REGENCULT,Planning Services,N,JOHNSTON PUBLISHING,Redacted,Not yet available,Not yet available,Not yet available,30/09/2015,22878785,1,1810.08,Nil,Advertising,Revenue,Business Services,CAT02,Advertising Services,SUBCAT0203,Advertising Services,02100,Not yet available
Wakefield MDC,E08000036,30/06/2015,REGENCULT,Planning Services,N,JOHNSTON PUBLISHING,Redacted,Not yet available,Not yet available,Not yet available,14/07/2015,22819853,1,500.00,Nil,Advertising,Revenue,Business Services,CAT02,Advertising Services,SUBCAT0203,Advertising Services,02100,Not yet available
Wakefield MDC,E08000036,30/06/2015,REGENCULT,Planning Services,N,JOHNSTON PUBLISHING,Redacted,Not yet available,Not yet available,Not yet available,10/07/2015,22822385,1,700.00,Nil,Advertising,Revenue,Business Services,CAT02,Advertising Services,SUBCAT0203,Advertising Services,02100,Not yet available
Wakefield MDC,E08000036,30/06/2015,REGENCULT,Planning Services,N,RIDINGS FM,Redacted,Not yet available,Not yet available,Not yet available,22/09/2015,22876933,1,3150.00,Nil,Advertising,Revenue,Business Services,CAT02,Advertising - Radio & TV,SUBCAT0202,Radio & Television Stations,63096,Not yet available
Wakefield MDC,E08000036,30/06/2015,REGENCULT,Planning Services,N,RIDINGS FM,Redacted,Not yet available,Not yet available,Not yet available,27/08/2015,22860275,1,4060.00,Nil,Advertising,Revenue,Business Services,CAT02,Advertising - Radio & TV,SUBCAT0202,Radio & Television Stations,63096,Not yet available
Wakefield MDC,E08000036,30/06/2015,REGENCULT,Planning Services,N,RIDINGS FM,Redacted,Not yet available,Not yet available,Not yet available,14/07/2015,22820516,1,530.00,Nil,Advertising,Revenue,Business Services,CAT02,Advertising - Radio & TV,SUBCAT0202,Radio & Television Stations,63096,Not yet available
Wakefield MDC,E08000036,30/06/2015,REGENCULT,Highways & Transport Services,5,HEMMING GROUP LTD,Redacted,Not yet available,Not yet available,Not yet available,14/07/2015,22824526,1,500.00,Nil,Advertising,Revenue,Professional Services,CAT08,Memberships & Subscriptions,SUBCAT0808,Institutes - Professional,45255,Not yet available
Wakefield MDC,E08000036,30/06/2015,REGENCULT,Planning Services,N,HAYMARKET MEDIA GROUP LTD,Redacted,Not yet available,Not yet available,Not yet available,07/09/2015,22863322,1,810.00,Nil,Advertising,Revenue,Business Services,CAT02,Publications,SUBCAT0222,Publishers & Publications,62450,Not yet available
Wakefield MDC,E08000036,30/06/2015,REGENCULT,Planning Services,N,TMP (UK) LTD,Redacted,Not yet available,Not yet available,Not yet available,16/09/2015,22861162,1,1227.50,Nil,Advertising,Revenue,Business Services,CAT02,Advertising Services,SUBCAT0203,Advertising - Agencies,01961,Not yet available
Wakefield MDC,E08000036,30/06/2015,REGENCULT,Planning Services,N,TMP (UK) LTD,Redacted,Not yet available,Not yet available,Not yet available,01/07/2015,22785801,1,1227.50,Nil,Advertising,Revenue,Business Services,CAT02,Advertising Services,SUBCAT0203,Advertising - Agencies,01961,Not yet available
Wakefield MDC,E08000036,30/06/2015,REGENCULT,Planning Services,N,BLUEBERRY MARKETING SOLUTIONS,Redacted,Not yet available,Not yet available,Not yet available,14/07/2015,22823818,1,600.00,Nil,Advertising,Revenue,Business Services,CAT02,Communications,SUBCAT0209,Marketing Consultants,49920,Not yet available
Wakefield MDC,E08000036,30/06/2015,REGENCULT,Planning Services,N,BLUEBERRY MARKETING SOLUTIONS,Redacted,Not yet available,Not yet available,Not yet available,30/09/2015,22879187,1,825.00,Nil,Advertising,Revenue,Business Services,CAT02,Communications,SUBCAT0209,Marketing Consultants,49920,Not yet available
Wakefield MDC,E08000036,30/06/2015,REGENCULT,Housing Services,6,COMMUNICORP UK LIMITED,Redacted,Not yet available,Not yet available,Not yet available,17/07/2015,22828116,1,2171.22,Nil,Advertising,Revenue,Business Services,CAT02,Advertising - Radio & TV,SUBCAT0202,Broadcasting Services,10875,Not yet available
Wakefield MDC,E08000036,30/06/2015,ADULTS,Adult Social Care,7,TOGETHER,Redacted,Not yet available,Not yet available,Not yet available,28/07/2015,22831064,1,14529.90,Nil,Advocacy,Revenue,Adult Services,CAT04,Sub Category To Be Classified,SUBCATTBC,Disability & Special Needs - Services,25820,Not yet available
Wakefield MDC,E08000036,30/06/2015,CHILDYOU,Children's and Education Services,4,SHEFFIELD CITY COUNCIL,Redacted,Not yet available,Not yet available,Not yet available,11/08/2015,22846465,1,43000.00,Nil,Agency Placement Adoptions (Other agencies),Revenue,n/a,CATNA,N/A,SUBCATNA,Local Government,48583,Not yet available
Wakefield MDC,E08000036,30/06/2015,CHILDYOU,Children's and Education Services,4,YORK COUNCIL,Redacted,Not yet available,Not yet available,Not yet available,02/07/2015,22820058,1,18000.00,Nil,Agency Placement Adoptions (Other agencies),Revenue,n/a,CATNA,N/A,SUBCATNA,Local Government,48583,Not yet available
Wakefield MDC,E08000036,30/06/2015,CHILDYOU,Children's and Education Services,4,ADOPTION MATTERS NORTHWEST,Redacted,Not yet available,Not yet available,Not yet available,29/07/2015,22841050,1,750.00,Nil,Agency Placement Adoptions (Other agencies),Revenue,Children and Young People,CAT05,Looked After Children,SUBCAT0503,Adoption & Fostering,01880,Not yet available
Wakefield MDC,E08000036,30/06/2015,CHILDYOU,Children's and Education Services,4,ADOPTION MATTERS NORTHWEST,Redacted,Not yet available,Not yet available,Not yet available,08/09/2015,22864397,1,750.00,Nil,Agency Placement Adoptions (Other agencies),Revenue,Children and Young People,CAT05,Looked After Children,SUBCAT0503,Adoption & Fostering,01880,Not yet available
Wakefield MDC,E08000036,30/06/2015,CHILDYOU,Children's and Education Services,4,ADOPTION MATTERS NORTHWEST,Redacted,Not yet available,Not yet available,Not yet available,17/07/2015,22829199,1,18000.00,Nil,Agency Placement Adoptions (Other agencies),Revenue,Children and Young People,CAT05,Looked After Children,SUBCAT0503,Adoption & Fostering,01880,Not yet available
Wakefield MDC,E08000036,30/06/2015,CHILDYOU,Children's and Education Services,4,ADOPTION MATTERS NORTHWEST,Redacted,Not yet available,Not yet available,Not yet available,28/08/2015,22861115,1,28667.00,Nil,Agency Placement Adoptions (Other agencies),Revenue,Children and Young People,CAT05,Looked After Children,SUBCAT0503,Adoption & Fostering,01880,Not yet available
Wakefield MDC,E08000036,30/06/2015,CHILDYOU,Children's and Education Services,4,PARENTS AND CHILDREN TOGETHER,Redacted,Not yet available,Not yet available,Not yet available,25/09/2015,22880400,1,1290.48,Nil,Agency Placement Adoptions (Other agencies),Revenue,Children and Young People,CAT05,Looked After Children,SUBCAT0503,Social Services & Welfare Organisations,71855,Not yet available
Wakefield MDC,E08000036,30/06/2015,CHILDYOU,Children's and Education Services,4,PARENTS AND CHILDREN TOGETHER,Redacted,Not yet available,Not yet available,Not yet available,22/07/2015,22831088,1,5001.00,Nil,Agency Placement Adoptions (Other agencies),Revenue,Children and Young People,CAT05,Looked After Children,SUBCAT0503,Social Services & Welfare Organisations,71855,Not yet available
Wakefield MDC,E08000036,30/06/2015,CHILDYOU,Children's and Education Services,4,ST FRANCIS CHILDRENS SOCIETY,Redacted,Not yet available,Not yet available,Not yet available,16/09/2015,22868689,1,9000.00,Nil,Agency Placement Adoptions (Other agencies),Revenue,Children and Young People,CAT05,Looked After Children,SUBCAT0503,Adoption & Fostering,01880,Not yet available
Wakefield MDC,E08000036,30/06/2015,CHILDYOU,Children's and Education Services,4,FAMILIES FOR CHILDREN ADOPTION,Redacted,Not yet available,Not yet available,Not yet available,21/08/2015,22857205,1,750.00,Nil,Agency Placement Adoptions (Other agencies),Revenue,Children and Young People,CAT05,Looked After Children,SUBCAT0503,Adoption & Fostering,01880,Not yet available
Wakefield MDC,E08000036,30/06/2015,CHILDYOU,Children's and Education Services,4,FAMILIES FOR CHILDREN ADOPTION,Redacted,Not yet available,Not yet available,Not yet available,05/08/2015,22844128,1,750.00,Nil,Agency Placement Adoptions (Other agencies),Revenue,Children and Young People,CAT05,Looked After Children,SUBCAT0503,Adoption & Fostering,01880,Not yet available
Wakefield MDC,E08000036,30/06/2015,CHILDYOU,Children's and Education Services,4,FAMILIES FOR CHILDREN ADOPTION,Redacted,Not yet available,Not yet available,Not yet available,28/09/2015,22880662,1,1282.32,Nil,Agency Placement Adoptions (Other agencies),Revenue,Children and Young People,CAT05,Looked After Children,SUBCAT0503,Adoption & Fostering,01880,Not yet available
Wakefield MDC,E08000036,30/06/2015,CHILDYOU,Children's and Education Services,4,CORAM,Redacted,Not yet available,Not yet available,Not yet available,01/07/2015,22819212,1,5256.00,Nil,Agency Placement Adoptions (Other agencies),Revenue,Children and Young People,CAT05,Childcare & Early Years,SUBCAT0501,Childcare Services,17580,Not yet available
Wakefield MDC,E08000036,30/06/2015,CHILDYOU,Children's and Education Services,4,CARITAS CARE LIMITED,Redacted,Not yet available,Not yet available,Not yet available,22/09/2015,22878613,1,28667.00,Nil,Agency Placement Adoptions (Other agencies),Revenue,Business Services,CAT02,Agency,SUBCAT0204,Employment & Recruitment Agencies,31230,Not yet available
Wakefield MDC,E08000036,30/06/2015,CHILDYOU,Children's and Education Services,4,CCS ADOPTION,Redacted,Not yet available,Not yet available,Not yet available,22/09/2015,22878040,1,3583.00,Nil,Agency Placement Adoptions (Other agencies),Revenue,Children and Young People,CAT05,Looked After Children,SUBCAT0503,Adoption & Fostering,01880,Not yet available
Wakefield MDC,E08000036,30/06/2015,CHILDYOU,Children's and Education Services,4,CCS ADOPTION,Redacted,Not yet available,Not yet available,Not yet available,22/07/2015,22831086,1,28667.00,Nil,Agency Placement Adoptions (Other agencies),Revenue,Children and Young People,CAT05,Looked After Children,SUBCAT0503,Adoption & Fostering,01880,Not yet available
Wakefield MDC,E08000036,30/06/2015,CHILDYOU,Children's and Education Services,4,DONCASTER CHILDREN�S SERVICES TRUST,Redacted,Not yet available,Not yet available,Not yet available,18/08/2015,22849164,1,18000.00,Nil,Agency Placement Adoptions (Other agencies),Revenue,n/a,CATNA,N/A,SUBCATNA,Local Government,48583,Not yet available
Wakefield MDC,E08000036,30/06/2015,ADULTS,Adult Social Care,7,MATRIX SCM LTD,Redacted,Not yet available,Not yet available,Not yet available,15/07/2015,170328,149,664.43,Nil,Agency Staff,Revenue,Business Services,CAT02,Agency,SUBCAT0204,Employment & Recruitment Agencies,31230,Not yet available
Wakefield MDC,E08000036,30/06/2015,ADULTS,Adult Social Care,7,MATRIX SCM LTD,Redacted,Not yet available,Not yet available,Not yet available,02/09/2015,170335,135,1007.14,Nil,Agency Staff,Revenue,Business Services,CAT02,Agency,SUBCAT0204,Employment & Recruitment Agencies,31230,Not yet available
Wakefield MDC,E08000036,30/06/2015,ADULTS,Adult Social Care,7,MATRIX SCM LTD,Redacted,Not yet available,Not yet available,Not yet available,16/09/2015,170337,88,1007.14,Nil,Agency Staff,Revenue,Business Services,CAT02,Agency,SUBCAT0204,Employment & Recruitment Agencies,31230,Not yet available
Wakefield MDC,E08000036,30/06/2015,ADULTS,Adult Social Care,7,MATRIX SCM LTD,Redacted,Not yet available,Not yet available,Not yet available,02/09/2015,170335,59,676.98,Nil,Agency Staff,Revenue,Business Services,CAT02,Agency,SUBCAT0204,Employment & Recruitment Agencies,31230,Not yet available
Wakefield MDC,E08000036,30/06/2015,ADULTS,Adult Social Care,7,MATRIX SCM LTD,Redacted,Not yet available,Not yet available,Not yet available,02/09/2015,170335,58,531.54,Nil,Agency Staff,Revenue,Business Services,CAT02,Agency,SUBCAT0204,Employment & Recruitment Agencies,31230,Not yet available
Wakefield MDC,E08000036,30/06/2015,ADULTS,Adult Social Care,7,MATRIX SCM LTD,Redacted,Not yet available,Not yet available,Not yet available,23/09/2015,170338,71,1007.14,Nil,Agency Staff,Revenue,Business Services,CAT02,Agency,SUBCAT0204,Employment & Recruitment Agencies,31230,Not yet available
Wakefield MDC,E08000036,30/06/2015,ADULTS,Adult Social Care,7,MATRIX SCM LTD,Redacted,Not yet available,Not yet available,Not yet available,23/09/2015,170338,85,846.24,Nil,Agency Staff,Revenue,Business Services,CAT02,Agency,SUBCAT0204,Employment & Recruitment Agencies,31230,Not yet available
Wakefield MDC,E08000036,30/06/2015,ADULTS,Adult Social Care,7,MATRIX SCM LTD,Redacted,Not yet available,Not yet available,Not yet available,09/09/2015,170336,77,802.99,Nil,Agency Staff,Revenue,Business Services,CAT02,Agency,SUBCAT0204,Employment & Recruitment Agencies,31230,Not yet available
Wakefield MDC,E08000036,30/06/2015,ADULTS,Adult Social Care,7,MATRIX SCM LTD,Redacted,Not yet available,Not yet available,Not yet available,19/08/2015,170333,11,789.82,Nil,Agency Staff,Revenue,Business Services,CAT02,Agency,SUBCAT0204,Employment & Recruitment Agencies,31230,Not yet available
Wakefield MDC,E08000036,30/06/2015,ADULTS,Adult Social Care,7,MATRIX SCM LTD,Redacted,Not yet available,Not yet available,Not yet available,19/08/2015,170333,10,649.67,Nil,Agency Staff,Revenue,Business Services,CAT02,Agency,SUBCAT0204,Employment & Recruitment Agencies,31230,Not yet available
Wakefield MDC,E08000036,30/06/2015,ADULTS,Adult Social Care,7,MATRIX SCM LTD,Redacted,Not yet available,Not yet available,Not yet available,15/07/2015,170328,150,526.54,Nil,Agency Staff,Revenue,Business Services,CAT02,Agency,SUBCAT0204,Employment & Recruitment Agencies,31230,Not yet available
Wakefield MDC,E08000036,30/06/2015,ADULTS,Adult Social Care,7,MATRIX SCM LTD,Redacted,Not yet available,Not yet available,Not yet available,19/08/2015,170333,34,1007.14,Nil,Agency Staff,Revenue,Business Services,CAT02,Agency,SUBCAT0204,Employment & Recruitment Agencies,31230,Not yet available
Wakefield MDC,E08000036,30/06/2015,ADULTS,Adult Social Care,7,MATRIX SCM LTD,Redacted,Not yet available,Not yet available,Not yet available,29/07/2015,170330,144,1128.30,Nil,Agency Staff,Revenue,Business Services,CAT02,Agency,SUBCAT0204,Employment & Recruitment Agencies,31230,Not yet available
Wakefield MDC,E08000036,30/06/2015,ADULTS,Adult Social Care,7,MATRIX SCM LTD,Redacted,Not yet available,Not yet available,Not yet available,26/08/2015,170334,24,1007.14,Nil,Agency Staff,Revenue,Business Services,CAT02,Agency,SUBCAT0204,Employment & Recruitment Agencies,31230,Not yet available
Wakefield MDC,E08000036,30/06/2015,ADULTS,Adult Social Care,7,MATRIX SCM LTD,Redacted,Not yet available,Not yet available,Not yet available,26/08/2015,170334,5,1007.14,Nil,Agency Staff,Revenue,Business Services,CAT02,Agency,SUBCAT0204,Employment & Recruitment Agencies,31230,Not yet available
Wakefield MDC,E08000036,30/06/2015,ADULTS,Adult Social Care,7,MATRIX SCM LTD,Redacted,Not yet available,Not yet available,Not yet available,19/08/2015,170333,73,651.08,Nil,Agency Staff,Revenue,Business Services,CAT02,Agency,SUBCAT0204,Employment & Recruitment Agencies,31230,Not yet available
Wakefield MDC,E08000036,30/06/2015,ADULTS,Adult Social Care,7,MATRIX SCM LTD,Redacted,Not yet available,Not yet available,Not yet available,30/09/2015,170339,64,843.83,Nil,Agency Staff,Revenue,Business Services,CAT02,Agency,SUBCAT0204,Employment & Recruitment Agencies,31230,Not yet available
Wakefield MDC,E08000036,30/06/2015,ADULTS,Adult Social Care,7,MATRIX SCM LTD,Redacted,Not yet available,Not yet available,Not yet available,09/09/2015,170336,25,666.00,Nil,Agency Staff,Revenue,Business Services,CAT02,Agency,SUBCAT0204,Employment & Recruitment Agencies,31230,Not yet available
Wakefield MDC,E08000036,30/06/2015,ADULTS,Adult Social Care,7,MATRIX SCM LTD,Redacted,Not yet available,Not yet available,Not yet available,30/09/2015,170339,92,648.00,Nil,Agency Staff,Revenue,Business Services,CAT02,Agency,SUBCAT0204,Employment & Recruitment Agencies,31230,Not yet available
Wakefield MDC,E08000036,30/06/2015,ADULTS,Adult Social Care,7,MATRIX SCM LTD,Redacted,Not yet available,Not yet available,Not yet available,16/09/2015,170337,46,666.00,Nil,Agency Staff,Revenue,Business Services,CAT02,Agency,SUBCAT0204,Employment & Recruitment Agencies,31230,Not yet available
Wakefield MDC,E08000036,30/06/2015,ADULTS,Adult Social Care,7,MATRIX SCM LTD,Redacted,Not yet available,Not yet available,Not yet available,19/08/2015,170333,46,666.00,Nil,Agency Staff,Revenue,Business Services,CAT02,Agency,SUBCAT0204,Employment & Recruitment Agencies,31230,Not yet available
Wakefield MDC,E08000036,30/06/2015,ADULTS,Adult Social Care,7,MATRIX SCM LTD,Redacted,Not yet available,Not yet available,Not yet available,19/08/2015,170333,3,666.00,Nil,Agency Staff,Revenue,Business Services,CAT02,Agency,SUBCAT0204,Employment & Recruitment Agencies,31230,Not yet available
Wakefield MDC,E08000036,30/06/2015,ADULTS,Adult Social Care,7,MATRIX SCM LTD,Redacted,Not yet available,Not yet available,Not yet available,09/09/2015,170336,67,540.00,Nil,Agency Staff,Revenue,Business Services,CAT02,Agency,SUBCAT0204,Employment & Recruitment Agencies,31230,Not yet available
Wakefield MDC,E08000036,30/06/2015,ADULTS,Adult Social Care,7,MATRIX SCM LTD,Redacted,Not yet available,Not yet available,Not yet available,23/09/2015,170338,79,666.00,Nil,Agency Staff,Revenue,Business Services,CAT02,Agency,SUBCAT0204,Employment & Recruitment Agencies,31230,Not yet available
Wakefield MDC,E08000036,30/06/2015,ADULTS,Adult Social Care,7,MATRIX SCM LTD,Redacted,Not yet available,Not yet available,Not yet available,05/08/2015,170331,48,1007.14,Nil,Agency Staff,Revenue,Business Services,CAT02,Agency,SUBCAT0204,Employment & Recruitment Agencies,31230,Not yet available
Wakefield MDC,E08000036,30/06/2015,ADULTS,Adult Social Care,7,MATRIX SCM LTD,Redacted,Not yet available,Not yet available,Not yet available,02/09/2015,170335,56,639.00,Nil,Agency Staff,Revenue,Business Services,CAT02,Agency,SUBCAT0204,Employment & Recruitment Agencies,31230,Not yet available
Wakefield MDC,E08000036,30/06/2015,ADULTS,Adult Social Care,7,MATRIX SCM LTD,Redacted,Not yet available,Not yet available,Not yet available,05/08/2015,170331,50,666.00,Nil,Agency Staff,Revenue,Business Services,CAT02,Agency,SUBCAT0204,Employment & Recruitment Agencies,31230,Not yet available
Wakefield MDC,E08000036,30/06/2015,ADULTS,Adult Social Care,7,MATRIX SCM LTD,Redacted,Not yet available,Not yet available,Not yet available,22/07/2015,170329,39,666.00,Nil,Agency Staff,Revenue,Business Services,CAT02,Agency,SUBCAT0204,Employment & Recruitment Agencies,31230,Not yet available
Wakefield MDC,E08000036,30/06/2015,ADULTS,Adult Social Care,7,MATRIX SCM LTD,Redacted,Not yet available,Not yet available,Not yet available,16/09/2015,170337,48,666.00,Nil,Agency Staff,Revenue,Business Services,CAT02,Agency,SUBCAT0204,Employment & Recruitment Agencies,31230,Not yet available
Wakefield MDC,E08000036,30/06/2015,ADULTS,Adult Social Care,7,MATRIX SCM LTD,Redacted,Not yet available,Not yet available,Not yet available,19/08/2015,170333,48,666.00,Nil,Agency Staff,Revenue,Business Services,CAT02,Agency,SUBCAT0204,Employment & Recruitment Agencies,31230,Not yet available
Wakefield MDC,E08000036,30/06/2015,ADULTS,Adult Social Care,7,MATRIX SCM LTD,Redacted,Not yet available,Not yet available,Not yet available,16/09/2015,170337,,666.00,Nil,Agency Staff,Revenue,Business Services,CAT02,Agency,SUBCAT0204,Employment & Recruitment Agencies,31230,Not yet available
Wakefield MDC,E08000036,30/06/2015,ADULTS,Adult Social Care,7,MATRIX SCM LTD,Redacted,Not yet available,Not yet available,Not yet available,09/09/2015,170336,18,666.00,Nil,Agency Staff,Revenue,Business Services,CAT02,Agency,SUBCAT0204,Employment & Recruitment Agencies,31230,Not yet available
Wakefield MDC,E08000036,30/06/2015,ADULTS,Adult Social Care,7,MATRIX SCM LTD,Redacted,Not yet available,Not yet available,Not yet available,02/09/2015,170335,101,971.63,Nil,Agency Staff,Revenue,Business Services,CAT02,Agency,SUBCAT0204,Employment & Recruitment Agencies,31230,Not yet available
Wakefield MDC,E08000036,30/06/2015,ADULTS,Adult Social Care,7,MATRIX SCM LTD,Redacted,Not yet available,Not yet available,Not yet available,02/09/2015,170335,93,816.60,Nil,Agency Staff,Revenue,Business Services,CAT02,Agency,SUBCAT0204,Employment & Recruitment Agencies,31230,Not yet available
Wakefield MDC,E08000036,30/06/2015,ADULTS,Adult Social Care,7,MATRIX SCM LTD,Redacted,Not yet available,Not yet available,Not yet available,15/07/2015,170328,99,585.64,Nil,Agency Staff,Revenue,Business Services,CAT02,Agency,SUBCAT0204,Employment & Recruitment Agencies,31230,Not yet available
Wakefield MDC,E08000036,30/06/2015,ADULTS,Adult Social Care,7,MATRIX SCM LTD,Redacted,Not yet available,Not yet available,Not yet available,15/07/2015,170328,93,979.92,Nil,Agency Staff,Revenue,Business Services,CAT02,Agency,SUBCAT0204,Employment & Recruitment Agencies,31230,Not yet available
Wakefield MDC,E08000036,30/06/2015,ADULTS,Adult Social Care,7,MATRIX SCM LTD,Redacted,Not yet available,Not yet available,Not yet available,16/09/2015,170337,38,802.99,Nil,Agency Staff,Revenue,Business Services,CAT02,Agency,SUBCAT0204,Employment & Recruitment Agencies,31230,Not yet available
Wakefield MDC,E08000036,30/06/2015,ADULTS,Adult Social Care,7,MATRIX SCM LTD,Redacted,Not yet available,Not yet available,Not yet available,16/09/2015,170337,29,911.87,Nil,Agency Staff,Revenue,Business Services,CAT02,Agency,SUBCAT0204,Employment & Recruitment Agencies,31230,Not yet available
Wakefield MDC,E08000036,30/06/2015,ADULTS,Adult Social Care,7,MATRIX SCM LTD,Redacted,Not yet available,Not yet available,Not yet available,16/09/2015,170337,22,798.60,Nil,Agency Staff,Revenue,Business Services,CAT02,Agency,SUBCAT0204,Employment & Recruitment Agencies,31230,Not yet available
Wakefield MDC,E08000036,30/06/2015,ADULTS,Adult Social Care,7,MATRIX SCM LTD,Redacted,Not yet available,Not yet available,Not yet available,05/08/2015,170331,128,984.94,Nil,Agency Staff,Revenue,Business Services,CAT02,Agency,SUBCAT0204,Employment & Recruitment Agencies,31230,Not yet available
Wakefield MDC,E08000036,30/06/2015,ADULTS,Adult Social Care,7,MATRIX SCM LTD,Redacted,Not yet available,Not yet available,Not yet available,22/07/2015,170329,28,598.84,Nil,Agency Staff,Revenue,Business Services,CAT02,Agency,SUBCAT0204,Employment & Recruitment Agencies,31230,Not yet available
Wakefield MDC,E08000036,30/06/2015,ADULTS,Adult Social Care,7,MATRIX SCM LTD,Redacted,Not yet available,Not yet available,Not yet available,12/08/2015,170332,65,925.48,Nil,Agency Staff,Revenue,Business Services,CAT02,Agency,SUBCAT0204,Employment & Recruitment Agencies,31230,Not yet available
Wakefield MDC,E08000036,30/06/2015,ADULTS,Adult Social Care,7,MATRIX SCM LTD,Redacted,Not yet available,Not yet available,Not yet available,05/08/2015,170331,127,1007.14,Nil,Agency Staff,Revenue,Business Services,CAT02,Agency,SUBCAT0204,Employment & Recruitment Agencies,31230,Not yet available
Wakefield MDC,E08000036,30/06/2015,ADULTS,Adult Social Care,7,MATRIX SCM LTD,Redacted,Not yet available,Not yet available,Not yet available,23/09/2015,170338,63,918.39,Nil,Agency Staff,Revenue,Business Services,CAT02,Agency,SUBCAT0204,Employment & Recruitment Agencies,31230,Not yet available
Wakefield MDC,E08000036,30/06/2015,ADULTS,Adult Social Care,7,MATRIX SCM LTD,Redacted,Not yet available,Not yet available,Not yet available,23/09/2015,170338,52,802.99,Nil,Agency Staff,Revenue,Business Services,CAT02,Agency,SUBCAT0204,Employment & Recruitment Agencies,31230,Not yet available
Wakefield MDC,E08000036,30/06/2015,ADULTS,Adult Social Care,7,MATRIX SCM LTD,Redacted,Not yet available,Not yet available,Not yet available,05/08/2015,170331,72,952.70,Nil,Agency Staff,Revenue,Business Services,CAT02,Agency,SUBCAT0204,Employment & Recruitment Agencies,31230,Not yet available
Wakefield MDC,E08000036,30/06/2015,ADULTS,Adult Social Care,7,MATRIX SCM LTD,Redacted,Not yet available,Not yet available,Not yet available,23/09/2015,170338,48,816.60,Nil,Agency Staff,Revenue,Business Services,CAT02,Agency,SUBCAT0204,Employment & Recruitment Agencies,31230,Not yet available
Wakefield MDC,E08000036,30/06/2015,ADULTS,Adult Social Care,7,MATRIX SCM LTD,Redacted,Not yet available,Not yet available,Not yet available,12/08/2015,170332,58,638.88,Nil,Agency Staff,Revenue,Business Services,CAT02,Agency,SUBCAT0204,Employment & Recruitment Agencies,31230,Not yet available
Wakefield MDC,E08000036,30/06/2015,ADULTS,Adult Social Care,7,MATRIX SCM LTD,Redacted,Not yet available,Not yet available,Not yet available,30/09/2015,170339,46,745.36,Nil,Agency Staff,Revenue,Business Services,CAT02,Agency,SUBCAT0204,Employment & Recruitment Agencies,31230,Not yet available
Wakefield MDC,E08000036,30/06/2015,ADULTS,Adult Social Care,7,MATRIX SCM LTD,Redacted,Not yet available,Not yet available,Not yet available,30/09/2015,170339,44,1007.14,Nil,Agency Staff,Revenue,Business Services,CAT02,Agency,SUBCAT0204,Employment & Recruitment Agencies,31230,Not yet available
Wakefield MDC,E08000036,30/06/2015,ADULTS,Adult Social Care,7,MATRIX SCM LTD,Redacted,Not yet available,Not yet available,Not yet available,12/08/2015,170332,57,612.45,Nil,Agency Staff,Revenue,Business Services,CAT02,Agency,SUBCAT0204,Employment & Recruitment Agencies,31230,Not yet available
Wakefield MDC,E08000036,30/06/2015,ADULTS,Adult Social Care,7,MATRIX SCM LTD,Redacted,Not yet available,Not yet available,Not yet available,30/09/2015,170339,43,857.43,Nil,Agency Staff,Revenue,Business Services,CAT02,Agency,SUBCAT0204,Employment & Recruitment Agencies,31230,Not yet available
Wakefield MDC,E08000036,30/06/2015,ADULTS,Adult Social Care,7,MATRIX SCM LTD,Redacted,Not yet available,Not yet available,Not yet available,29/07/2015,170330,79,984.94,Nil,Agency Staff,Revenue,Business Services,CAT02,Agency,SUBCAT0204,Employment & Recruitment Agencies,31230,Not yet available
Wakefield MDC,E08000036,30/06/2015,ADULTS,Adult Social Care,7,MATRIX SCM LTD,Redacted,Not yet available,Not yet available,Not yet available,19/08/2015,170333,52,958.32,Nil,Agency Staff,Revenue,Business Services,CAT02,Agency,SUBCAT0204,Employment & Recruitment Agencies,31230,Not yet available
Wakefield MDC,E08000036,30/06/2015,ADULTS,Adult Social Care,7,MATRIX SCM LTD,Redacted,Not yet available,Not yet available,Not yet available,22/07/2015,170329,21,771.98,Nil,Agency Staff,Revenue,Business Services,CAT02,Agency,SUBCAT0204,Employment & Recruitment Agencies,31230,Not yet available
Wakefield MDC,E08000036,30/06/2015,ADULTS,Adult Social Care,7,MATRIX SCM LTD,Redacted,Not yet available,Not yet available,Not yet available,26/08/2015,170334,26,966.31,Nil,Agency Staff,Revenue,Business Services,CAT02,Agency,SUBCAT0204,Employment & Recruitment Agencies,31230,Not yet available
Wakefield MDC,E08000036,30/06/2015,ADULTS,Adult Social Care,7,MATRIX SCM LTD,Redacted,Not yet available,Not yet available,Not yet available,22/07/2015,170329,23,1007.14,Nil,Agency Staff,Revenue,Business Services,CAT02,Agency,SUBCAT0204,Employment & Recruitment Agencies,31230,Not yet available
Wakefield MDC,E08000036,30/06/2015,ADULTS,Adult Social Care,7,MATRIX SCM LTD,Redacted,Not yet available,Not yet available,Not yet available,19/08/2015,170333,23,571.62,Nil,Agency Staff,Revenue,Business Services,CAT02,Agency,SUBCAT0204,Employment & Recruitment Agencies,31230,Not yet available
Wakefield MDC,E08000036,30/06/2015,ADULTS,Adult Social Care,7,MATRIX SCM LTD,Redacted,Not yet available,Not yet available,Not yet available,26/08/2015,170334,17,984.94,Nil,Agency Staff,Revenue,Business Services,CAT02,Agency,SUBCAT0204,Employment & Recruitment Agencies,31230,Not yet available
Wakefield MDC,E08000036,30/06/2015,ADULTS,Adult Social Care,7,MATRIX SCM LTD,Redacted,Not yet available,Not yet available,Not yet available,29/07/2015,170330,76,1007.14,Nil,Agency Staff,Revenue,Business Services,CAT02,Agency,SUBCAT0204,Employment & Recruitment Agencies,31230,Not yet available
Wakefield MDC,E08000036,30/06/2015,ADULTS,Adult Social Care,7,MATRIX SCM LTD,Redacted,Not yet available,Not yet available,Not yet available,26/08/2015,170334,16,979.92,Nil,Agency Staff,Revenue,Business Services,CAT02,Agency,SUBCAT0204,Employment & Recruitment Agencies,31230,Not yet available
Wakefield MDC,E08000036,30/06/2015,ADULTS,Adult Social Care,7,MATRIX SCM LTD,Redacted,Not yet available,Not yet available,Not yet available,29/07/2015,170330,114,816.60,Nil,Agency Staff,Revenue,Business Services,CAT02,Agency,SUBCAT0204,Employment & Recruitment Agencies,31230,Not yet available
Wakefield MDC,E08000036,30/06/2015,ADULTS,Adult Social Care,7,MATRIX SCM LTD,Redacted,Not yet available,Not yet available,Not yet available,09/09/2015,170336,42,802.99,Nil,Agency Staff,Revenue,Business Services,CAT02,Agency,SUBCAT0204,Employment & Recruitment Agencies,31230,Not yet available
Wakefield MDC,E08000036,30/06/2015,ADULTS,Adult Social Care,7,MATRIX SCM LTD,Redacted,Not yet available,Not yet available,Not yet available,19/08/2015,170333,15,857.43,Nil,Agency Staff,Revenue,Business Services,CAT02,Agency,SUBCAT0204,Employment & Recruitment Agencies,31230,Not yet available
Wakefield MDC,E08000036,30/06/2015,ADULTS,Adult Social Care,7,MATRIX SCM LTD,Redacted,Not yet available,Not yet available,Not yet available,08/07/2015,170327,68,762.16,Nil,Agency Staff,Revenue,Business Services,CAT02,Agency,SUBCAT0204,Employment & Recruitment Agencies,31230,Not yet available
Wakefield MDC,E08000036,30/06/2015,ADULTS,Adult Social Care,7,MATRIX SCM LTD,Redacted,Not yet available,Not yet available,Not yet available,02/09/2015,170335,103,1000.34,Nil,Agency Staff,Revenue,Business Services,CAT02,Agency,SUBCAT0204,Employment & Recruitment Agencies,31230,Not yet available
Wakefield MDC,E08000036,30/06/2015,ADULTS,Adult Social Care,7,MATRIX SCM LTD,Redacted,Not yet available,Not yet available,Not yet available,08/07/2015,170327,31,905.08,Nil,Agency Staff,Revenue,Business Services,CAT02,Agency,SUBCAT0204,Employment & Recruitment Agencies,31230,Not yet available
Wakefield MDC,E08000036,30/06/2015,ADULTS,Adult Social Care,7,MATRIX SCM LTD,Redacted,Not yet available,Not yet available,Not yet available,08/07/2015,170327,18,843.82,Nil,Agency Staff,Revenue,Business Services,CAT02,Agency,SUBCAT0204,Employment & Recruitment Agencies,31230,Not yet available
Wakefield MDC,E08000036,30/06/2015,ADULTS,Adult Social Care,7,MATRIX SCM LTD,Redacted,Not yet available,Not yet available,Not yet available,09/09/2015,170336,33,598.95,Nil,Agency Staff,Revenue,Business Services,CAT02,Agency,SUBCAT0204,Employment & Recruitment Agencies,31230,Not yet available
Wakefield MDC,E08000036,30/06/2015,ADULTS,Adult Social Care,7,MATRIX SCM LTD,Redacted,Not yet available,Not yet available,Not yet available,02/09/2015,170335,125,598.95,Nil,Agency Staff,Revenue,Business Services,CAT02,Agency,SUBCAT0204,Employment & Recruitment Agencies,31230,Not yet available
Wakefield MDC,E08000036,30/06/2015,ADULTS,Adult Social Care,7,MATRIX SCM LTD,Redacted,Not yet available,Not yet available,Not yet available,15/07/2015,170328,152,939.09,Nil,Agency Staff,Revenue,Business Services,CAT02,Agency,SUBCAT0204,Employment & Recruitment Agencies,31230,Not yet available
Wakefield MDC,E08000036,30/06/2015,ADULTS,Adult Social Care,7,MATRIX SCM LTD,Redacted,Not yet available,Not yet available,Not yet available,15/07/2015,170328,48,811.91,Nil,Agency Staff,Revenue,Business Services,CAT02,Agency,SUBCAT0204,Employment & Recruitment Agencies,31230,Not yet available
Wakefield MDC,E08000036,30/06/2015,ADULTS,Adult Social Care,7,MATRIX SCM LTD,Redacted,Not yet available,Not yet available,Not yet available,26/08/2015,170334,48,1143.24,Nil,Agency Staff,Revenue,Business Services,CAT02,Agency,SUBCAT0204,Employment & Recruitment Agencies,31230,Not yet available
Wakefield MDC,E08000036,30/06/2015,ADULTS,Adult Social Care,7,MATRIX SCM LTD,Redacted,Not yet available,Not yet available,Not yet available,26/08/2015,170334,57,598.96,Nil,Agency Staff,Revenue,Business Services,CAT02,Agency,SUBCAT0204,Employment & Recruitment Agencies,31230,Not yet available
Wakefield MDC,E08000036,30/06/2015,ADULTS,Adult Social Care,7,MATRIX SCM LTD,Redacted,Not yet available,Not yet available,Not yet available,08/07/2015,170327,2,798.60,Nil,Agency Staff,Revenue,Business Services,CAT02,Agency,SUBCAT0204,Employment & Recruitment Agencies,31230,Not yet available
Wakefield MDC,E08000036,30/06/2015,ADULTS,Adult Social Care,7,MATRIX SCM LTD,Redacted,Not yet available,Not yet available,Not yet available,19/08/2015,170333,67,598.95,Nil,Agency Staff,Revenue,Business Services,CAT02,Agency,SUBCAT0204,Employment & Recruitment Agencies,31230,Not yet available
Wakefield MDC,E08000036,30/06/2015,ADULTS,Adult Social Care,7,MATRIX SCM LTD,Redacted,Not yet available,Not yet available,Not yet available,08/07/2015,170327,4,1007.14,Nil,Agency Staff,Revenue,Business Services,CAT02,Agency,SUBCAT0204,Employment & Recruitment Agencies,31230,Not yet available
Wakefield MDC,E08000036,30/06/2015,ADULTS,Adult Social Care,7,MATRIX SCM LTD,Redacted,Not yet available,Not yet available,Not yet available,19/08/2015,170333,85,1007.14,Nil,Agency Staff,Revenue,Business Services,CAT02,Agency,SUBCAT0204,Employment & Recruitment Agencies,31230,Not yet available
Wakefield MDC,E08000036,30/06/2015,ADULTS,Adult Social Care,7,MATRIX SCM LTD,Redacted,Not yet available,Not yet available,Not yet available,08/07/2015,170327,6,805.26,Nil,Agency Staff,Revenue,Business Services,CAT02,Agency,SUBCAT0204,Employment & Recruitment Agencies,31230,Not yet available
Wakefield MDC,E08000036,30/06/2015,ADULTS,Adult Social Care,7,MATRIX SCM LTD,Redacted,Not yet available,Not yet available,Not yet available,08/07/2015,170327,10,825.23,Nil,Agency Staff,Revenue,Business Services,CAT02,Agency,SUBCAT0204,Employment & Recruitment Agencies,31230,Not yet available
Wakefield MDC,E08000036,30/06/2015,ADULTS,Adult Social Care,7,MATRIX SCM LTD,Redacted,Not yet available,Not yet available,Not yet available,12/08/2015,170332,133,1007.14,Nil,Agency Staff,Revenue,Business Services,CAT02,Agency,SUBCAT0204,Employment & Recruitment Agencies,31230,Not yet available
Wakefield MDC,E08000036,30/06/2015,ADULTS,Adult Social Care,7,MATRIX SCM LTD,Redacted,Not yet available,Not yet available,Not yet available,23/09/2015,170338,46,798.61,Nil,Agency Staff,Revenue,Business Services,CAT02,Agency,SUBCAT0204,Employment & Recruitment Agencies,31230,Not yet available
Wakefield MDC,E08000036,30/06/2015,ADULTS,Adult Social Care,7,MATRIX SCM LTD,Redacted,Not yet available,Not yet available,Not yet available,08/07/2015,170327,14,939.09,Nil,Agency Staff,Revenue,Business Services,CAT02,Agency,SUBCAT0204,Employment & Recruitment Agencies,31230,Not yet available
Wakefield MDC,E08000036,30/06/2015,ADULTS,Adult Social Care,7,MATRIX SCM LTD,Redacted,Not yet available,Not yet available,Not yet available,09/09/2015,170336,44,598.95,Nil,Agency Staff,Revenue,Business Services,CAT02,Agency,SUBCAT0204,Employment & Recruitment Agencies,31230,Not yet available
Wakefield MDC,E08000036,30/06/2015,ADULTS,Adult Social Care,7,MATRIX SCM LTD,Redacted,Not yet available,Not yet available,Not yet available,08/07/2015,170327,16,1007.14,Nil,Agency Staff,Revenue,Business Services,CAT02,Agency,SUBCAT0204,Employment & Recruitment Agencies,31230,Not yet available
Wakefield MDC,E08000036,30/06/2015,ADULTS,Adult Social Care,7,MATRIX SCM LTD,Redacted,Not yet available,Not yet available,Not yet available,29/07/2015,170330,24,811.92,Nil,Agency Staff,Revenue,Business Services,CAT02,Agency,SUBCAT0204,Employment & Recruitment Agencies,31230,Not yet available
Wakefield MDC,E08000036,30/06/2015,ADULTS,Adult Social Care,7,MATRIX SCM LTD,Redacted,Not yet available,Not yet available,Not yet available,15/07/2015,170328,40,1007.14,Nil,Agency Staff,Revenue,Business Services,CAT02,Agency,SUBCAT0204,Employment & Recruitment Agencies,31230,Not yet available
Wakefield MDC,E08000036,30/06/2015,ADULTS,Adult Social Care,7,MATRIX SCM LTD,Redacted,Not yet available,Not yet available,Not yet available,05/08/2015,170331,99,798.60,Nil,Agency Staff,Revenue,Business Services,CAT02,Agency,SUBCAT0204,Employment & Recruitment Agencies,31230,Not yet available
Wakefield MDC,E08000036,30/06/2015,ADULTS,Adult Social Care,7,MATRIX SCM LTD,Redacted,Not yet available,Not yet available,Not yet available,12/08/2015,170332,124,811.91,Nil,Agency Staff,Revenue,Business Services,CAT02,Agency,SUBCAT0204,Employment & Recruitment Agencies,31230,Not yet available
Wakefield MDC,E08000036,30/06/2015,ADULTS,Adult Social Care,7,MATRIX SCM LTD,Redacted,Not yet available,Not yet available,Not yet available,05/08/2015,170331,56,1007.14,Nil,Agency Staff,Revenue,Business Services,CAT02,Agency,SUBCAT0204,Employment & Recruitment Agencies,31230,Not yet available
Wakefield MDC,E08000036,30/06/2015,ADULTS,Adult Social Care,7,MATRIX SCM LTD,Redacted,Not yet available,Not yet available,Not yet available,12/08/2015,170332,17,1007.14,Nil,Agency Staff,Revenue,Business Services,CAT02,Agency,SUBCAT0204,Employment & Recruitment Agencies,31230,Not yet available
Wakefield MDC,E08000036,30/06/2015,ADULTS,Adult Social Care,7,MATRIX SCM LTD,Redacted,Not yet available,Not yet available,Not yet available,15/07/2015,170328,142,811.91,Nil,Agency Staff,Revenue,Business Services,CAT02,Agency,SUBCAT0204,Employment & Recruitment Agencies,31230,Not yet available
Wakefield MDC,E08000036,30/06/2015,ADULTS,Adult Social Care,7,MATRIX SCM LTD,Redacted,Not yet available,Not yet available,Not yet available,29/07/2015,170330,94,1007.14,Nil,Agency Staff,Revenue,Business Services,CAT02,Agency,SUBCAT0204,Employment & Recruitment Agencies,31230,Not yet available
Wakefield MDC,E08000036,30/06/2015,ADULTS,Adult Social Care,7,MATRIX SCM LTD,Redacted,Not yet available,Not yet available,Not yet available,16/09/2015,170337,43,1007.14,Nil,Agency Staff,Revenue,Business Services,CAT02,Agency,SUBCAT0204,Employment & Recruitment Agencies,31230,Not yet available
Wakefield MDC,E08000036,30/06/2015,ADULTS,Adult Social Care,7,MATRIX SCM LTD,Redacted,Not yet available,Not yet available,Not yet available,29/07/2015,170330,88,1007.14,Nil,Agency Staff,Revenue,Business Services,CAT02,Agency,SUBCAT0204,Employment & Recruitment Agencies,31230,Not yet available
Wakefield MDC,E08000036,30/06/2015,ADULTS,Adult Social Care,7,MATRIX SCM LTD,Redacted,Not yet available,Not yet available,Not yet available,19/08/2015,170333,5,843.82,Nil,Agency Staff,Revenue,Business Services,CAT02,Agency,SUBCAT0204,Employment & Recruitment Agencies,31230,Not yet available
Wakefield MDC,E08000036,30/06/2015,ADULTS,Adult Social Care,7,MATRIX SCM LTD,Redacted,Not yet available,Not yet available,Not yet available,16/09/2015,170337,39,1007.14,Nil,Agency Staff,Revenue,Business Services,CAT02,Agency,SUBCAT0204,Employment & Recruitment Agencies,31230,Not yet available
Wakefield MDC,E08000036,30/06/2015,ADULTS,Adult Social Care,7,MATRIX SCM LTD,Redacted,Not yet available,Not yet available,Not yet available,02/09/2015,170335,159,816.60,Nil,Agency Staff,Revenue,Business Services,CAT02,Agency,SUBCAT0204,Employment & Recruitment Agencies,31230,Not yet available
Wakefield MDC,E08000036,30/06/2015,ADULTS,Adult Social Care,7,MATRIX SCM LTD,Redacted,Not yet available,Not yet available,Not yet available,09/09/2015,170336,99,802.99,Nil,Agency Staff,Revenue,Business Services,CAT02,Agency,SUBCAT0204,Employment & Recruitment Agencies,31230,Not yet available
Wakefield MDC,E08000036,30/06/2015,ADULTS,Adult Social Care,7,MATRIX SCM LTD,Redacted,Not yet available,Not yet available,Not yet available,08/07/2015,170327,51,1007.14,Nil,Agency Staff,Revenue,Business Services,CAT02,Agency,SUBCAT0204,Employment & Recruitment Agencies,31230,Not yet available
Wakefield MDC,E08000036,30/06/2015,ADULTS,Adult Social Care,7,MATRIX SCM LTD,Redacted,Not yet available,Not yet available,Not yet available,02/09/2015,170335,158,952.70,Nil,Agency Staff,Revenue,Business Services,CAT02,Agency,SUBCAT0204,Employment & Recruitment Agencies,31230,Not yet available
Wakefield MDC,E08000036,30/06/2015,ADULTS,Adult Social Care,7,MATRIX SCM LTD,Redacted,Not yet available,Not yet available,Not yet available,09/09/2015,170336,76,802.99,Nil,Agency Staff,Revenue,Business Services,CAT02,Agency,SUBCAT0204,Employment & Recruitment Agencies,31230,Not yet available
Wakefield MDC,E08000036,30/06/2015,ADULTS,Adult Social Care,7,MATRIX SCM LTD,Redacted,Not yet available,Not yet available,Not yet available,09/09/2015,170336,71,816.60,Nil,Agency Staff,Revenue,Business Services,CAT02,Agency,SUBCAT0204,Employment & Recruitment Agencies,31230,Not yet available
Wakefield MDC,E08000036,30/06/2015,ADULTS,Adult Social Care,7,MATRIX SCM LTD,Redacted,Not yet available,Not yet available,Not yet available,08/07/2015,170327,49,1007.14,Nil,Agency Staff,Revenue,Business Services,CAT02,Agency,SUBCAT0204,Employment & Recruitment Agencies,31230,Not yet available
Wakefield MDC,E08000036,30/06/2015,ADULTS,Adult Social Care,7,MATRIX SCM LTD,Redacted,Not yet available,Not yet available,Not yet available,08/07/2015,170327,38,843.82,Nil,Agency Staff,Revenue,Business Services,CAT02,Agency,SUBCAT0204,Employment & Recruitment Agencies,31230,Not yet available
Wakefield MDC,E08000036,30/06/2015,ADULTS,Adult Social Care,7,MATRIX SCM LTD,Redacted,Not yet available,Not yet available,Not yet available,02/09/2015,170335,100,1007.14,Nil,Agency Staff,Revenue,Business Services,CAT02,Agency,SUBCAT0204,Employment & Recruitment Agencies,31230,Not yet available
Wakefield MDC,E08000036,30/06/2015,ADULTS,Adult Social Care,7,MATRIX SCM LTD,Redacted,Not yet available,Not yet available,Not yet available,09/09/2015,170336,69,871.04,Nil,Agency Staff,Revenue,Business Services,CAT02,Agency,SUBCAT0204,Employment & Recruitment Agencies,31230,Not yet available
Wakefield MDC,E08000036,30/06/2015,ADULTS,Adult Social Care,7,MATRIX SCM LTD,Redacted,Not yet available,Not yet available,Not yet available,15/07/2015,170328,46,1007.14,Nil,Agency Staff,Revenue,Business Services,CAT02,Agency,SUBCAT0204,Employment & Recruitment Agencies,31230,Not yet available
Wakefield MDC,E08000036,30/06/2015,ADULTS,Adult Social Care,7,MATRIX SCM LTD,Redacted,Not yet available,Not yet available,Not yet available,12/08/2015,170332,76,1007.14,Nil,Agency Staff,Revenue,Business Services,CAT02,Agency,SUBCAT0204,Employment & Recruitment Agencies,31230,Not yet available
Wakefield MDC,E08000036,30/06/2015,ADULTS,Adult Social Care,7,MATRIX SCM LTD,Redacted,Not yet available,Not yet available,Not yet available,23/09/2015,170338,87,1007.14,Nil,Agency Staff,Revenue,Business Services,CAT02,Agency,SUBCAT0204,Employment & Recruitment Agencies,31230,Not yet available
Wakefield MDC,E08000036,30/06/2015,ADULTS,Adult Social Care,7,MATRIX SCM LTD,Redacted,Not yet available,Not yet available,Not yet available,05/08/2015,170331,170,1007.14,Nil,Agency Staff,Revenue,Business Services,CAT02,Agency,SUBCAT0204,Employment & Recruitment Agencies,31230,Not yet available
Wakefield MDC,E08000036,30/06/2015,ADULTS,Adult Social Care,7,MATRIX SCM LTD,Redacted,Not yet available,Not yet available,Not yet available,15/07/2015,170328,143,1007.14,Nil,Agency Staff,Revenue,Business Services,CAT02,Agency,SUBCAT0204,Employment & Recruitment Agencies,31230,Not yet available
Wakefield MDC,E08000036,30/06/2015,ADULTS,Adult Social Care,7,MATRIX SCM LTD,Redacted,Not yet available,Not yet available,Not yet available,15/07/2015,170328,138,1007.14,Nil,Agency Staff,Revenue,Business Services,CAT02,Agency,SUBCAT0204,Employment & Recruitment Agencies,31230,Not yet available
Wakefield MDC,E08000036,30/06/2015,ADULTS,Adult Social Care,7,MATRIX SCM LTD,Redacted,Not yet available,Not yet available,Not yet available,23/09/2015,170338,77,1007.14,Nil,Agency Staff,Revenue,Business Services,CAT02,Agency,SUBCAT0204,Employment & Recruitment Agencies,31230,Not yet available
Wakefield MDC,E08000036,30/06/2015,ADULTS,Adult Social Care,7,MATRIX SCM LTD,Redacted,Not yet available,Not yet available,Not yet available,05/08/2015,170331,135,1007.14,Nil,Agency Staff,Revenue,Business Services,CAT02,Agency,SUBCAT0204,Employment & Recruitment Agencies,31230,Not yet available
Wakefield MDC,E08000036,30/06/2015,ADULTS,Adult Social Care,7,MATRIX SCM LTD,Redacted,Not yet available,Not yet available,Not yet available,05/08/2015,170331,134,1007.14,Nil,Agency Staff,Revenue,Business Services,CAT02,Agency,SUBCAT0204,Employment & Recruitment Agencies,31230,Not yet available
Wakefield MDC,E08000036,30/06/2015,ADULTS,Adult Social Care,7,MATRIX SCM LTD,Redacted,Not yet available,Not yet available,Not yet available,15/07/2015,170328,115,816.60,Nil,Agency Staff,Revenue,Business Services,CAT02,Agency,SUBCAT0204,Employment & Recruitment Agencies,31230,Not yet available
Wakefield MDC,E08000036,30/06/2015,ADULTS,Adult Social Care,7,MATRIX SCM LTD,Redacted,Not yet available,Not yet available,Not yet available,23/09/2015,170338,60,1007.14,Nil,Agency Staff,Revenue,Business Services,CAT02,Agency,SUBCAT0204,Employment & Recruitment Agencies,31230,Not yet available
Wakefield MDC,E08000036,30/06/2015,ADULTS,Adult Social Care,7,MATRIX SCM LTD,Redacted,Not yet available,Not yet available,Not yet available,15/07/2015,170328,103,959.51,Nil,Agency Staff,Revenue,Business Services,CAT02,Agency,SUBCAT0204,Employment & Recruitment Agencies,31230,Not yet available
Wakefield MDC,E08000036,30/06/2015,ADULTS,Adult Social Care,7,MATRIX SCM LTD,Redacted,Not yet available,Not yet available,Not yet available,22/07/2015,170329,77,816.60,Nil,Agency Staff,Revenue,Business Services,CAT02,Agency,SUBCAT0204,Employment & Recruitment Agencies,31230,Not yet available
Wakefield MDC,E08000036,30/06/2015,ADULTS,Adult Social Care,7,MATRIX SCM LTD,Redacted,Not yet available,Not yet available,Not yet available,23/09/2015,170338,58,1007.14,Nil,Agency Staff,Revenue,Business Services,CAT02,Agency,SUBCAT0204,Employment & Recruitment Agencies,31230,Not yet available
Wakefield MDC,E08000036,30/06/2015,ADULTS,Adult Social Care,7,MATRIX SCM LTD,Redacted,Not yet available,Not yet available,Not yet available,26/08/2015,170334,33,1007.14,Nil,Agency Staff,Revenue,Business Services,CAT02,Agency,SUBCAT0204,Employment & Recruitment Agencies,31230,Not yet available
Wakefield MDC,E08000036,30/06/2015,ADULTS,Adult Social Care,7,MATRIX SCM LTD,Redacted,Not yet available,Not yet available,Not yet available,30/09/2015,170339,68,1007.14,Nil,Agency Staff,Revenue,Business Services,CAT02,Agency,SUBCAT0204,Employment & Recruitment Agencies,31230,Not yet available
Wakefield MDC,E08000036,30/06/2015,ADULTS,Adult Social Care,7,MATRIX SCM LTD,Redacted,Not yet available,Not yet available,Not yet available,26/08/2015,170334,31,1007.14,Nil,Agency Staff,Revenue,Business Services,CAT02,Agency,SUBCAT0204,Employment & Recruitment Agencies,31230,Not yet available
Wakefield MDC,E08000036,30/06/2015,ADULTS,Adult Social Care,7,MATRIX SCM LTD,Redacted,Not yet available,Not yet available,Not yet available,05/08/2015,170331,74,1143.24,Nil,Agency Staff,Revenue,Business Services,CAT02,Agency,SUBCAT0204,Employment & Recruitment Agencies,31230,Not yet available
Wakefield MDC,E08000036,30/06/2015,ADULTS,Adult Social Care,7,MATRIX SCM LTD,Redacted,Not yet available,Not yet available,Not yet available,19/08/2015,170333,97,1007.14,Nil,Agency Staff,Revenue,Business Services,CAT02,Agency,SUBCAT0204,Employment & Recruitment Agencies,31230,Not yet available
Wakefield MDC,E08000036,30/06/2015,ADULTS,Adult Social Care,7,MATRIX SCM LTD,Redacted,Not yet available,Not yet available,Not yet available,22/07/2015,170329,42,816.60,Nil,Agency Staff,Revenue,Business Services,CAT02,Agency,SUBCAT0204,Employment & Recruitment Agencies,31230,Not yet available
Wakefield MDC,E08000036,30/06/2015,ADULTS,Adult Social Care,7,MATRIX SCM LTD,Redacted,Not yet available,Not yet available,Not yet available,12/08/2015,170332,101,816.60,Nil,Agency Staff,Revenue,Business Services,CAT02,Agency,SUBCAT0204,Employment & Recruitment Agencies,31230,Not yet available
Wakefield MDC,E08000036,30/06/2015,ADULTS,Adult Social Care,7,MATRIX SCM LTD,Redacted,Not yet available,Not yet available,Not yet available,19/08/2015,170333,90,1007.14,Nil,Agency Staff,Revenue,Business Services,CAT02,Agency,SUBCAT0204,Employment & Recruitment Agencies,31230,Not yet available
Wakefield MDC,E08000036,30/06/2015,ADULTS,Adult Social Care,7,MATRIX SCM LTD,Redacted,Not yet available,Not yet available,Not yet available,12/08/2015,170332,98,1007.14,Nil,Agency Staff,Revenue,Business Services,CAT02,Agency,SUBCAT0204,Employment & Recruitment Agencies,31230,Not yet available
Wakefield MDC,E08000036,30/06/2015,ADULTS,Adult Social Care,7,MATRIX SCM LTD,Redacted,Not yet available,Not yet available,Not yet available,19/08/2015,170333,57,1061.58,Nil,Agency Staff,Revenue,Business Services,CAT02,Agency,SUBCAT0204,Employment & Recruitment Agencies,31230,Not yet available
Wakefield MDC,E08000036,30/06/2015,ADULTS,Adult Social Care,7,MATRIX SCM LTD,Redacted,Not yet available,Not yet available,Not yet available,22/07/2015,170329,27,1007.14,Nil,Agency Staff,Revenue,Business Services,CAT02,Agency,SUBCAT0204,Employment & Recruitment Agencies,31230,Not yet available
Wakefield MDC,E08000036,30/06/2015,ADULTS,Adult Social Care,7,MATRIX SCM LTD,Redacted,Not yet available,Not yet available,Not yet available,26/08/2015,170334,70,1007.14,Nil,Agency Staff,Revenue,Business Services,CAT02,Agency,SUBCAT0204,Employment & Recruitment Agencies,31230,Not yet available
Wakefield MDC,E08000036,30/06/2015,ADULTS,Adult Social Care,7,MATRIX SCM LTD,Redacted,Not yet available,Not yet available,Not yet available,30/09/2015,170339,88,1007.14,Nil,Agency Staff,Revenue,Business Services,CAT02,Agency,SUBCAT0204,Employment & Recruitment Agencies,31230,Not yet available
Wakefield MDC,E08000036,30/06/2015,ADULTS,Adult Social Care,7,MATRIX SCM LTD,Redacted,Not yet available,Not yet available,Not yet available,30/09/2015,170339,75,1007.14,Nil,Agency Staff,Revenue,Business Services,CAT02,Agency,SUBCAT0204,Employment & Recruitment Agencies,31230,Not yet available
Wakefield MDC,E08000036,30/06/2015,ADULTS,Adult Social Care,7,MATRIX SCM LTD,Redacted,Not yet available,Not yet available,Not yet available,29/07/2015,170330,128,1007.14,Nil,Agency Staff,Revenue,Business Services,CAT02,Agency,SUBCAT0204,Employment & Recruitment Agencies,31230,Not yet available
Wakefield MDC,E08000036,30/06/2015,ADULTS,Adult Social Care,7,MATRIX SCM LTD,Redacted,Not yet available,Not yet available,Not yet available,26/08/2015,170334,54,1007.14,Nil,Agency Staff,Revenue,Business Services,CAT02,Agency,SUBCAT0204,Employment & Recruitment Agencies,31230,Not yet available
Wakefield MDC,E08000036,30/06/2015,ADULTS,Adult Social Care,7,MATRIX SCM LTD,Redacted,Not yet available,Not yet available,Not yet available,29/07/2015,170330,133,871.04,Nil,Agency Staff,Revenue,Business Services,CAT02,Agency,SUBCAT0204,Employment & Recruitment Agencies,31230,Not yet available
Wakefield MDC,E08000036,30/06/2015,ADULTS,Adult Social Care,7,MATRIX SCM LTD,Redacted,Not yet available,Not yet available,Not yet available,29/07/2015,170330,125,816.60,Nil,Agency Staff,Revenue,Business Services,CAT02,Agency,SUBCAT0204,Employment & Recruitment Agencies,31230,Not yet available
Wakefield MDC,E08000036,30/06/2015,ADULTS,Adult Social Care,7,MATRIX SCM LTD,Redacted,Not yet available,Not yet available,Not yet available,16/09/2015,170337,52,1007.14,Nil,Agency Staff,Revenue,Business Services,CAT02,Agency,SUBCAT0204,Employment & Recruitment Agencies,31230,Not yet available
Wakefield MDC,E08000036,30/06/2015,ADULTS,Adult Social Care,7,MATRIX SCM LTD,Redacted,Not yet available,Not yet available,Not yet available,16/09/2015,170337,49,1007.14,Nil,Agency Staff,Revenue,Business Services,CAT02,Agency,SUBCAT0204,Employment & Recruitment Agencies,31230,Not yet available
Wakefield MDC,E08000036,30/06/2015,ADULTS,Adult Social Care,7,MATRIX SCM LTD,Redacted,Not yet available,Not yet available,Not yet available,19/08/2015,170333,29,1007.14,Nil,Agency Staff,Revenue,Business Services,CAT02,Agency,SUBCAT0204,Employment & Recruitment Agencies,31230,Not yet available
Wakefield MDC,E08000036,30/06/2015,ADULTS,Adult Social Care,7,MATRIX SCM LTD,Redacted,Not yet available,Not yet available,Not yet available,05/08/2015,170331,102,1083.72,Nil,Agency Staff,Revenue,Business Services,CAT02,Agency,SUBCAT0204,Employment & Recruitment Agencies,31230,Not yet available
Wakefield MDC,E08000036,30/06/2015,ADULTS,Adult Social Care,7,MATRIX SCM LTD,Redacted,Not yet available,Not yet available,Not yet available,05/08/2015,170331,45,1083.72,Nil,Agency Staff,Revenue,Business Services,CAT02,Agency,SUBCAT0204,Employment & Recruitment Agencies,31230,Not yet available
Wakefield MDC,E08000036,30/06/2015,ADULTS,Adult Social Care,7,MATRIX SCM LTD,Redacted,Not yet available,Not yet available,Not yet available,02/09/2015,170335,146,1083.72,Nil,Agency Staff,Revenue,Business Services,CAT02,Agency,SUBCAT0204,Employment & Recruitment Agencies,31230,Not yet available
Wakefield MDC,E08000036,30/06/2015,ADULTS,Adult Social Care,7,MATRIX SCM LTD,Redacted,Not yet available,Not yet available,Not yet available,02/09/2015,170335,148,1132.98,Nil,Agency Staff,Revenue,Business Services,CAT02,Agency,SUBCAT0204,Employment & Recruitment Agencies,31230,Not yet available
Wakefield MDC,E08000036,30/06/2015,ADULTS,Adult Social Care,7,MATRIX SCM LTD,Redacted,Not yet available,Not yet available,Not yet available,19/08/2015,170333,88,1083.72,Nil,Agency Staff,Revenue,Business Services,CAT02,Agency,SUBCAT0204,Employment & Recruitment Agencies,31230,Not yet available
Wakefield MDC,E08000036,30/06/2015,ADULTS,Adult Social Care,7,MATRIX SCM LTD,Redacted,Not yet available,Not yet available,Not yet available,23/09/2015,170338,33,1083.72,Nil,Agency Staff,Revenue,Business Services,CAT02,Agency,SUBCAT0204,Employment & Recruitment Agencies,31230,Not yet available
Wakefield MDC,E08000036,30/06/2015,ADULTS,Adult Social Care,7,MATRIX SCM LTD,Redacted,Not yet available,Not yet available,Not yet available,22/07/2015,170329,78,1083.72,Nil,Agency Staff,Revenue,Business Services,CAT02,Agency,SUBCAT0204,Employment & Recruitment Agencies,31230,Not yet available
Wakefield MDC,E08000036,30/06/2015,ADULTS,Adult Social Care,7,MATRIX SCM LTD,Redacted,Not yet available,Not yet available,Not yet available,23/09/2015,170338,97,1280.76,Nil,Agency Staff,Revenue,Business Services,CAT02,Agency,SUBCAT0204,Employment & Recruitment Agencies,31230,Not yet available
Wakefield MDC,E08000036,30/06/2015,ADULTS,Adult Social Care,7,MATRIX SCM LTD,Redacted,Not yet available,Not yet available,Not yet available,23/09/2015,170338,7,1132.98,Nil,Agency Staff,Revenue,Business Services,CAT02,Agency,SUBCAT0204,Employment & Recruitment Agencies,31230,Not yet available
Wakefield MDC,E08000036,30/06/2015,ADULTS,Adult Social Care,7,MATRIX SCM LTD,Redacted,Not yet available,Not yet available,Not yet available,22/07/2015,170329,11,1083.72,Nil,Agency Staff,Revenue,Business Services,CAT02,Agency,SUBCAT0204,Employment & Recruitment Agencies,31230,Not yet available
Wakefield MDC,E08000036,30/06/2015,ADULTS,Adult Social Care,7,MATRIX SCM LTD,Redacted,Not yet available,Not yet available,Not yet available,15/07/2015,170328,128,1132.98,Nil,Agency Staff,Revenue,Business Services,CAT02,Agency,SUBCAT0204,Employment & Recruitment Agencies,31230,Not yet available
Wakefield MDC,E08000036,30/06/2015,ADULTS,Adult Social Care,7,MATRIX SCM LTD,Redacted,Not yet available,Not yet available,Not yet available,15/07/2015,170328,42,1132.98,Nil,Agency Staff,Revenue,Business Services,CAT02,Agency,SUBCAT0204,Employment & Recruitment Agencies,31230,Not yet available
Wakefield MDC,E08000036,30/06/2015,ADULTS,Adult Social Care,7,MATRIX SCM LTD,Redacted,Not yet available,Not yet available,Not yet available,12/08/2015,170332,103,1083.72,Nil,Agency Staff,Revenue,Business Services,CAT02,Agency,SUBCAT0204,Employment & Recruitment Agencies,31230,Not yet available
Wakefield MDC,E08000036,30/06/2015,ADULTS,Adult Social Care,7,MATRIX SCM LTD,Redacted,Not yet available,Not yet available,Not yet available,02/09/2015,170335,60,1083.72,Nil,Agency Staff,Revenue,Business Services,CAT02,Agency,SUBCAT0204,Employment & Recruitment Agencies,31230,Not yet available
Wakefield MDC,E08000036,30/06/2015,ADULTS,Adult Social Care,7,MATRIX SCM LTD,Redacted,Not yet available,Not yet available,Not yet available,22/07/2015,170329,92,1020.75,Nil,Agency Staff,Revenue,Business Services,CAT02,Agency,SUBCAT0204,Employment & Recruitment Agencies,31230,Not yet available
Wakefield MDC,E08000036,30/06/2015,ADULTS,Adult Social Care,7,MATRIX SCM LTD,Redacted,Not yet available,Not yet available,Not yet available,16/09/2015,170337,32,966.31,Nil,Agency Staff,Revenue,Business Services,CAT02,Agency,SUBCAT0204,Employment & Recruitment Agencies,31230,Not yet available
Wakefield MDC,E08000036,30/06/2015,ADULTS,Adult Social Care,7,MATRIX SCM LTD,Redacted,Not yet available,Not yet available,Not yet available,09/09/2015,170336,65,748.55,Nil,Agency Staff,Revenue,Business Services,CAT02,Agency,SUBCAT0204,Employment & Recruitment Agencies,31230,Not yet available
Wakefield MDC,E08000036,30/06/2015,ADULTS,Adult Social Care,7,MATRIX SCM LTD,Redacted,Not yet available,Not yet available,Not yet available,23/09/2015,170338,62,979.94,Nil,Agency Staff,Revenue,Business Services,CAT02,Agency,SUBCAT0204,Employment & Recruitment Agencies,31230,Not yet available
Wakefield MDC,E08000036,30/06/2015,ADULTS,Adult Social Care,7,MATRIX SCM LTD,Redacted,Not yet available,Not yet available,Not yet available,19/08/2015,170333,42,748.55,Nil,Agency Staff,Revenue,Business Services,CAT02,Agency,SUBCAT0204,Employment & Recruitment Agencies,31230,Not yet available
Wakefield MDC,E08000036,30/06/2015,ADULTS,Adult Social Care,7,MATRIX SCM LTD,Redacted,Not yet available,Not yet available,Not yet available,26/08/2015,170334,22,884.65,Nil,Agency Staff,Revenue,Business Services,CAT02,Agency,SUBCAT0204,Employment & Recruitment Agencies,31230,Not yet available
Wakefield MDC,E08000036,30/06/2015,ADULTS,Adult Social Care,7,MATRIX SCM LTD,Redacted,Not yet available,Not yet available,Not yet available,02/09/2015,170335,130,1007.14,Nil,Agency Staff,Revenue,Business Services,CAT02,Agency,SUBCAT0204,Employment & Recruitment Agencies,31230,Not yet available
Wakefield MDC,E08000036,30/06/2015,ADULTS,Adult Social Care,7,MATRIX SCM LTD,Redacted,Not yet available,Not yet available,Not yet available,12/08/2015,170332,140,966.31,Nil,Agency Staff,Revenue,Business Services,CAT02,Agency,SUBCAT0204,Employment & Recruitment Agencies,31230,Not yet available
Wakefield MDC,E08000036,30/06/2015,ADULTS,Adult Social Care,7,MATRIX SCM LTD,Redacted,Not yet available,Not yet available,Not yet available,05/08/2015,170331,114,979.92,Nil,Agency Staff,Revenue,Business Services,CAT02,Agency,SUBCAT0204,Employment & Recruitment Agencies,31230,Not yet available
Wakefield MDC,E08000036,30/06/2015,ADULTS,Adult Social Care,7,MATRIX SCM LTD,Redacted,Not yet available,Not yet available,Not yet available,29/07/2015,170330,130,1007.14,Nil,Agency Staff,Revenue,Business Services,CAT02,Agency,SUBCAT0204,Employment & Recruitment Agencies,31230,Not yet available
Wakefield MDC,E08000036,30/06/2015,ADULTS,Adult Social Care,7,MATRIX SCM LTD,Redacted,Not yet available,Not yet available,Not yet available,15/07/2015,170328,105,952.70,Nil,Agency Staff,Revenue,Business Services,CAT02,Agency,SUBCAT0204,Employment & Recruitment Agencies,31230,Not yet available
Wakefield MDC,E08000036,30/06/2015,ADULTS,Adult Social Care,7,MATRIX SCM LTD,Redacted,Not yet available,Not yet available,Not yet available,12/08/2015,170332,118,1007.14,Nil,Agency Staff,Revenue,Business Services,CAT02,Agency,SUBCAT0204,Employment & Recruitment Agencies,31230,Not yet available
Wakefield MDC,E08000036,30/06/2015,ADULTS,Adult Social Care,7,MATRIX SCM LTD,Redacted,Not yet available,Not yet available,Not yet available,05/08/2015,170331,107,802.99,Nil,Agency Staff,Revenue,Business Services,CAT02,Agency,SUBCAT0204,Employment & Recruitment Agencies,31230,Not yet available
Wakefield MDC,E08000036,30/06/2015,ADULTS,Adult Social Care,7,MATRIX SCM LTD,Redacted,Not yet available,Not yet available,Not yet available,26/08/2015,170334,74,1007.14,Nil,Agency Staff,Revenue,Business Services,CAT02,Agency,SUBCAT0204,Employment & Recruitment Agencies,31230,Not yet available
Wakefield MDC,E08000036,30/06/2015,ADULTS,Adult Social Care,7,MATRIX SCM LTD,Redacted,Not yet available,Not yet available,Not yet available,19/08/2015,170333,95,734.94,Nil,Agency Staff,Revenue,Business Services,CAT02,Agency,SUBCAT0204,Employment & Recruitment Agencies,31230,Not yet available
Wakefield MDC,E08000036,30/06/2015,ADULTS,Adult Social Care,7,MATRIX SCM LTD,Redacted,Not yet available,Not yet available,Not yet available,23/09/2015,170338,36,1007.14,Nil,Agency Staff,Revenue,Business Services,CAT02,Agency,SUBCAT0204,Employment & Recruitment Agencies,31230,Not yet available
Wakefield MDC,E08000036,30/06/2015,ADULTS,Adult Social Care,7,MATRIX SCM LTD,Redacted,Not yet available,Not yet available,Not yet available,09/09/2015,170336,94,816.60,Nil,Agency Staff,Revenue,Business Services,CAT02,Agency,SUBCAT0204,Employment & Recruitment Agencies,31230,Not yet available
Wakefield MDC,E08000036,30/06/2015,ADULTS,Adult Social Care,7,MATRIX SCM LTD,Redacted,Not yet available,Not yet available,Not yet available,16/09/2015,170337,64,1007.14,Nil,Agency Staff,Revenue,Business Services,CAT02,Agency,SUBCAT0204,Employment & Recruitment Agencies,31230,Not yet available
Wakefield MDC,E08000036,30/06/2015,ADULTS,Adult Social Care,7,MATRIX SCM LTD,Redacted,Not yet available,Not yet available,Not yet available,16/09/2015,170337,66,1007.14,Nil,Agency Staff,Revenue,Business Services,CAT02,Agency,SUBCAT0204,Employment & Recruitment Agencies,31230,Not yet available
Wakefield MDC,E08000036,30/06/2015,ADULTS,Adult Social Care,7,MATRIX SCM LTD,Redacted,Not yet available,Not yet available,Not yet available,30/09/2015,170339,82,816.60,Nil,Agency Staff,Revenue,Business Services,CAT02,Agency,SUBCAT0204,Employment & Recruitment Agencies,31230,Not yet available
Wakefield MDC,E08000036,30/06/2015,ADULTS,Adult Social Care,7,MATRIX SCM LTD,Redacted,Not yet available,Not yet available,Not yet available,15/07/2015,170328,45,1007.14,Nil,Agency Staff,Revenue,Business Services,CAT02,Agency,SUBCAT0204,Employment & Recruitment Agencies,31230,Not yet available
Wakefield MDC,E08000036,30/06/2015,ADULTS,Adult Social Care,7,MATRIX SCM LTD,Redacted,Not yet available,Not yet available,Not yet available,22/07/2015,170329,14,966.31,Nil,Agency Staff,Revenue,Business Services,CAT02,Agency,SUBCAT0204,Employment & Recruitment Agencies,31230,Not yet available
Wakefield MDC,E08000036,30/06/2015,ADULTS,Adult Social Care,7,MATRIX SCM LTD,Redacted,Not yet available,Not yet available,Not yet available,09/09/2015,170336,23,707.72,Nil,Agency Staff,Revenue,Business Services,CAT02,Agency,SUBCAT0204,Employment & Recruitment Agencies,31230,Not yet available
Wakefield MDC,E08000036,30/06/2015,ADULTS,Adult Social Care,7,MATRIX SCM LTD,Redacted,Not yet available,Not yet available,Not yet available,05/08/2015,170331,109,984.94,Nil,Agency Staff,Revenue,Business Services,CAT02,Agency,SUBCAT0204,Employment & Recruitment Agencies,31230,Not yet available
Wakefield MDC,E08000036,30/06/2015,ADULTS,Adult Social Care,7,MATRIX SCM LTD,Redacted,Not yet available,Not yet available,Not yet available,08/07/2015,170327,63,598.95,Nil,Agency Staff,Revenue,Business Services,CAT02,Agency,SUBCAT0204,Employment & Recruitment Agencies,31230,Not yet available
Wakefield MDC,E08000036,30/06/2015,ADULTS,Adult Social Care,7,MATRIX SCM LTD,Redacted,Not yet available,Not yet available,Not yet available,29/07/2015,170330,103,798.60,Nil,Agency Staff,Revenue,Business Services,CAT02,Agency,SUBCAT0204,Employment & Recruitment Agencies,31230,Not yet available
Wakefield MDC,E08000036,30/06/2015,ADULTS,Adult Social Care,7,MATRIX SCM LTD,Redacted,Not yet available,Not yet available,Not yet available,22/07/2015,170329,7,984.94,Nil,Agency Staff,Revenue,Business Services,CAT02,Agency,SUBCAT0204,Employment & Recruitment Agencies,31230,Not yet available
Wakefield MDC,E08000036,30/06/2015,ADULTS,Adult Social Care,7,MATRIX SCM LTD,Redacted,Not yet available,Not yet available,Not yet available,08/07/2015,170327,11,984.94,Nil,Agency Staff,Revenue,Business Services,CAT02,Agency,SUBCAT0204,Employment & Recruitment Agencies,31230,Not yet available
Wakefield MDC,E08000036,30/06/2015,ADULTS,Adult Social Care,7,MATRIX SCM LTD,Redacted,Not yet available,Not yet available,Not yet available,22/07/2015,170329,86,984.94,Nil,Agency Staff,Revenue,Business Services,CAT02,Agency,SUBCAT0204,Employment & Recruitment Agencies,31230,Not yet available
Wakefield MDC,E08000036,30/06/2015,ADULTS,Adult Social Care,7,MATRIX SCM LTD,Redacted,Not yet available,Not yet available,Not yet available,09/09/2015,170336,43,785.29,Nil,Agency Staff,Revenue,Business Services,CAT02,Agency,SUBCAT0204,Employment & Recruitment Agencies,31230,Not yet available
Wakefield MDC,E08000036,30/06/2015,ADULTS,Adult Social Care,7,MATRIX SCM LTD,Redacted,Not yet available,Not yet available,Not yet available,29/07/2015,170330,87,984.94,Nil,Agency Staff,Revenue,Business Services,CAT02,Agency,SUBCAT0204,Employment & Recruitment Agencies,31230,Not yet available
Wakefield MDC,E08000036,30/06/2015,ADULTS,Adult Social Care,7,MATRIX SCM LTD,Redacted,Not yet available,Not yet available,Not yet available,22/07/2015,170329,25,984.94,Nil,Agency Staff,Revenue,Business Services,CAT02,Agency,SUBCAT0204,Employment & Recruitment Agencies,31230,Not yet available
Wakefield MDC,E08000036,30/06/2015,ADULTS,Adult Social Care,7,MATRIX SCM LTD,Redacted,Not yet available,Not yet available,Not yet available,12/08/2015,170332,61,984.94,Nil,Agency Staff,Revenue,Business Services,CAT02,Agency,SUBCAT0204,Employment & Recruitment Agencies,31230,Not yet available
Wakefield MDC,E08000036,30/06/2015,ADULTS,Adult Social Care,7,MATRIX SCM LTD,Redacted,Not yet available,Not yet available,Not yet available,22/07/2015,170329,6,905.08,Nil,Agency Staff,Revenue,Business Services,CAT02,Agency,SUBCAT0204,Employment & Recruitment Agencies,31230,Not yet available
Wakefield MDC,E08000036,30/06/2015,ADULTS,Adult Social Care,7,MATRIX SCM LTD,Redacted,Not yet available,Not yet available,Not yet available,08/07/2015,170327,20,984.94,Nil,Agency Staff,Revenue,Business Services,CAT02,Agency,SUBCAT0204,Employment & Recruitment Agencies,31230,Not yet available
Wakefield MDC,E08000036,30/06/2015,ADULTS,Adult Social Care,7,MATRIX SCM LTD,Redacted,Not yet available,Not yet available,Not yet available,23/09/2015,170338,65,984.94,Nil,Agency Staff,Revenue,Business Services,CAT02,Agency,SUBCAT0204,Employment & Recruitment Agencies,31230,Not yet available
Wakefield MDC,E08000036,30/06/2015,ADULTS,Adult Social Care,7,MATRIX SCM LTD,Redacted,Not yet available,Not yet available,Not yet available,16/09/2015,170337,30,984.94,Nil,Agency Staff,Revenue,Business Services,CAT02,Agency,SUBCAT0204,Employment & Recruitment Agencies,31230,Not yet available
Wakefield MDC,E08000036,30/06/2015,ADULTS,Adult Social Care,7,MATRIX SCM LTD,Redacted,Not yet available,Not yet available,Not yet available,30/09/2015,170339,69,984.94,Nil,Agency Staff,Revenue,Business Services,CAT02,Agency,SUBCAT0204,Employment & Recruitment Agencies,31230,Not yet available
Wakefield MDC,E08000036,30/06/2015,ADULTS,Adult Social Care,7,MATRIX SCM LTD,Redacted,Not yet available,Not yet available,Not yet available,02/09/2015,170335,117,984.94,Nil,Agency Staff,Revenue,Business Services,CAT02,Agency,SUBCAT0204,Employment & Recruitment Agencies,31230,Not yet available
Wakefield MDC,E08000036,30/06/2015,ADULTS,Adult Social Care,7,MATRIX SCM LTD,Redacted,Not yet available,Not yet available,Not yet available,19/08/2015,170333,55,984.94,Nil,Agency Staff,Revenue,Business Services,CAT02,Agency,SUBCAT0204,Employment & Recruitment Agencies,31230,Not yet available
Wakefield MDC,E08000036,30/06/2015,ADULTS,Adult Social Care,7,MATRIX SCM LTD,Redacted,Not yet available,Not yet available,Not yet available,05/08/2015,170331,67,984.94,Nil,Agency Staff,Revenue,Business Services,CAT02,Agency,SUBCAT0204,Employment & Recruitment Agencies,31230,Not yet available
Wakefield MDC,E08000036,30/06/2015,ADULTS,Adult Social Care,7,MATRIX SCM LTD,Redacted,Not yet available,Not yet available,Not yet available,29/07/2015,170330,91,804.83,Nil,Agency Staff,Revenue,Business Services,CAT02,Agency,SUBCAT0204,Employment & Recruitment Agencies,31230,Not yet available
Wakefield MDC,E08000036,30/06/2015,ADULTS,Adult Social Care,7,MATRIX SCM LTD,Redacted,Not yet available,Not yet available,Not yet available,09/09/2015,170336,16,817.61,Nil,Agency Staff,Revenue,Business Services,CAT02,Agency,SUBCAT0204,Employment & Recruitment Agencies,31230,Not yet available
Wakefield MDC,E08000036,30/06/2015,ADULTS,Adult Social Care,7,MATRIX SCM LTD,Redacted,Not yet available,Not yet available,Not yet available,29/07/2015,170330,59,816.60,Nil,Agency Staff,Revenue,Business Services,CAT02,Agency,SUBCAT0204,Employment & Recruitment Agencies,31230,Not yet available
Wakefield MDC,E08000036,30/06/2015,ADULTS,Adult Social Care,7,MATRIX SCM LTD,Redacted,Not yet available,Not yet available,Not yet available,09/09/2015,170336,11,816.60,Nil,Agency Staff,Revenue,Business Services,CAT02,Agency,SUBCAT0204,Employment & Recruitment Agencies,31230,Not yet available
Wakefield MDC,E08000036,30/06/2015,ADULTS,Adult Social Care,7,MATRIX SCM LTD,Redacted,Not yet available,Not yet available,Not yet available,16/09/2015,170337,95,779.28,Nil,Agency Staff,Revenue,Business Services,CAT02,Agency,SUBCAT0204,Employment & Recruitment Agencies,31230,Not yet available
Wakefield MDC,E08000036,30/06/2015,ADULTS,Adult Social Care,7,MATRIX SCM LTD,Redacted,Not yet available,Not yet available,Not yet available,12/08/2015,170332,83,798.44,Nil,Agency Staff,Revenue,Business Services,CAT02,Agency,SUBCAT0204,Employment & Recruitment Agencies,31230,Not yet available
Wakefield MDC,E08000036,30/06/2015,ADULTS,Adult Social Care,7,MATRIX SCM LTD,Redacted,Not yet available,Not yet available,Not yet available,12/08/2015,170332,100,680.50,Nil,Agency Staff,Revenue,Business Services,CAT02,Agency,SUBCAT0204,Employment & Recruitment Agencies,31230,Not yet available
Wakefield MDC,E08000036,30/06/2015,ADULTS,Adult Social Care,7,MATRIX SCM LTD,Redacted,Not yet available,Not yet available,Not yet available,30/09/2015,170339,97,600.43,Nil,Agency Staff,Revenue,Business Services,CAT02,Agency,SUBCAT0204,Employment & Recruitment Agencies,31230,Not yet available
Wakefield MDC,E08000036,30/06/2015,ADULTS,Adult Social Care,7,MATRIX SCM LTD,Redacted,Not yet available,Not yet available,Not yet available,22/07/2015,170329,9,779.28,Nil,Agency Staff,Revenue,Business Services,CAT02,Agency,SUBCAT0204,Employment & Recruitment Agencies,31230,Not yet available
Wakefield MDC,E08000036,30/06/2015,ADULTS,Adult Social Care,7,MATRIX SCM LTD,Redacted,Not yet available,Not yet available,Not yet available,26/08/2015,170334,64,600.43,Nil,Agency Staff,Revenue,Business Services,CAT02,Agency,SUBCAT0204,Employment & Recruitment Agencies,31230,Not yet available
Wakefield MDC,E08000036,30/06/2015,ADULTS,Adult Social Care,7,MATRIX SCM LTD,Redacted,Not yet available,Not yet available,Not yet available,19/08/2015,170333,65,817.61,Nil,Agency Staff,Revenue,Business Services,CAT02,Agency,SUBCAT0204,Employment & Recruitment Agencies,31230,Not yet available
Wakefield MDC,E08000036,30/06/2015,ADULTS,Adult Social Care,7,MATRIX SCM LTD,Redacted,Not yet available,Not yet available,Not yet available,08/07/2015,170327,9,816.60,Nil,Agency Staff,Revenue,Business Services,CAT02,Agency,SUBCAT0204,Employment & Recruitment Agencies,31230,Not yet available
Wakefield MDC,E08000036,30/06/2015,ADULTS,Adult Social Care,7,MATRIX SCM LTD,Redacted,Not yet available,Not yet available,Not yet available,08/07/2015,170327,45,804.83,Nil,Agency Staff,Revenue,Business Services,CAT02,Agency,SUBCAT0204,Employment & Recruitment Agencies,31230,Not yet available
Wakefield MDC,E08000036,30/06/2015,ADULTS,Adult Social Care,7,MATRIX SCM LTD,Redacted,Not yet available,Not yet available,Not yet available,08/07/2015,170327,40,816.60,Nil,Agency Staff,Revenue,Business Services,CAT02,Agency,SUBCAT0204,Employment & Recruitment Agencies,31230,Not yet available
Wakefield MDC,E08000036,30/06/2015,ADULTS,Adult Social Care,7,MATRIX SCM LTD,Redacted,Not yet available,Not yet available,Not yet available,30/09/2015,170339,57,871.04,Nil,Agency Staff,Revenue,Business Services,CAT02,Agency,SUBCAT0204,Employment & Recruitment Agencies,31230,Not yet available
Wakefield MDC,E08000036,30/06/2015,ADULTS,Adult Social Care,7,MATRIX SCM LTD,Redacted,Not yet available,Not yet available,Not yet available,30/09/2015,170339,4,816.60,Nil,Agency Staff,Revenue,Business Services,CAT02,Agency,SUBCAT0204,Employment & Recruitment Agencies,31230,Not yet available
Wakefield MDC,E08000036,30/06/2015,ADULTS,Adult Social Care,7,MATRIX SCM LTD,Redacted,Not yet available,Not yet available,Not yet available,05/08/2015,170331,168,811.21,Nil,Agency Staff,Revenue,Business Services,CAT02,Agency,SUBCAT0204,Employment & Recruitment Agencies,31230,Not yet available
Wakefield MDC,E08000036,30/06/2015,ADULTS,Adult Social Care,7,MATRIX SCM LTD,Redacted,Not yet available,Not yet available,Not yet available,22/07/2015,170329,52,702.63,Nil,Agency Staff,Revenue,Business Services,CAT02,Agency,SUBCAT0204,Employment & Recruitment Agencies,31230,Not yet available
Wakefield MDC,E08000036,30/06/2015,ADULTS,Adult Social Care,7,MATRIX SCM LTD,Redacted,Not yet available,Not yet available,Not yet available,12/08/2015,170332,15,612.45,Nil,Agency Staff,Revenue,Business Services,CAT02,Agency,SUBCAT0204,Employment & Recruitment Agencies,31230,Not yet available
Wakefield MDC,E08000036,30/06/2015,ADULTS,Adult Social Care,7,MATRIX SCM LTD,Redacted,Not yet available,Not yet available,Not yet available,22/07/2015,170329,81,816.60,Nil,Agency Staff,Revenue,Business Services,CAT02,Agency,SUBCAT0204,Employment & Recruitment Agencies,31230,Not yet available
Wakefield MDC,E08000036,30/06/2015,ADULTS,Adult Social Care,7,MATRIX SCM LTD,Redacted,Not yet available,Not yet available,Not yet available,19/08/2015,170333,26,680.50,Nil,Agency Staff,Revenue,Business Services,CAT02,Agency,SUBCAT0204,Employment & Recruitment Agencies,31230,Not yet available
Wakefield MDC,E08000036,30/06/2015,ADULTS,Adult Social Care,7,MATRIX SCM LTD,Redacted,Not yet available,Not yet available,Not yet available,26/08/2015,170334,59,816.60,Nil,Agency Staff,Revenue,Business Services,CAT02,Agency,SUBCAT0204,Employment & Recruitment Agencies,31230,Not yet available
Wakefield MDC,E08000036,30/06/2015,ADULTS,Adult Social Care,7,MATRIX SCM LTD,Redacted,Not yet available,Not yet available,Not yet available,22/07/2015,170329,4,816.60,Nil,Agency Staff,Revenue,Business Services,CAT02,Agency,SUBCAT0204,Employment & Recruitment Agencies,31230,Not yet available
Wakefield MDC,E08000036,30/06/2015,ADULTS,Adult Social Care,7,MATRIX SCM LTD,Redacted,Not yet available,Not yet available,Not yet available,29/07/2015,170330,89,1092.63,Nil,Agency Staff,Revenue,Business Services,CAT02,Agency,SUBCAT0204,Employment & Recruitment Agencies,31230,Not yet available
Wakefield MDC,E08000036,30/06/2015,ADULTS,Adult Social Care,7,MATRIX SCM LTD,Redacted,Not yet available,Not yet available,Not yet available,23/09/2015,170338,83,1047.60,Nil,Agency Staff,Revenue,Business Services,CAT02,Agency,SUBCAT0204,Employment & Recruitment Agencies,31230,Not yet available
Wakefield MDC,E08000036,30/06/2015,ADULTS,Adult Social Care,7,MATRIX SCM LTD,Redacted,Not yet available,Not yet available,Not yet available,02/09/2015,170335,151,871.15,Nil,Agency Staff,Revenue,Business Services,CAT02,Agency,SUBCAT0204,Employment & Recruitment Agencies,31230,Not yet available
Wakefield MDC,E08000036,30/06/2015,ADULTS,Adult Social Care,7,MATRIX SCM LTD,Redacted,Not yet available,Not yet available,Not yet available,29/07/2015,170330,100,841.34,Nil,Agency Staff,Revenue,Business Services,CAT02,Agency,SUBCAT0204,Employment & Recruitment Agencies,31230,Not yet available
Wakefield MDC,E08000036,30/06/2015,ADULTS,Adult Social Care,7,MATRIX SCM LTD,Redacted,Not yet available,Not yet available,Not yet available,09/09/2015,170336,68,885.92,Nil,Agency Staff,Revenue,Business Services,CAT02,Agency,SUBCAT0204,Employment & Recruitment Agencies,31230,Not yet available
Wakefield MDC,E08000036,30/06/2015,ADULTS,Adult Social Care,7,MATRIX SCM LTD,Redacted,Not yet available,Not yet available,Not yet available,22/07/2015,170329,35,1092.63,Nil,Agency Staff,Revenue,Business Services,CAT02,Agency,SUBCAT0204,Employment & Recruitment Agencies,31230,Not yet available
Wakefield MDC,E08000036,30/06/2015,ADULTS,Adult Social Care,7,MATRIX SCM LTD,Redacted,Not yet available,Not yet available,Not yet available,09/09/2015,170336,80,966.31,Nil,Agency Staff,Revenue,Business Services,CAT02,Agency,SUBCAT0204,Employment & Recruitment Agencies,31230,Not yet available
Wakefield MDC,E08000036,30/06/2015,ADULTS,Adult Social Care,7,MATRIX SCM LTD,Redacted,Not yet available,Not yet available,Not yet available,26/08/2015,170334,20,649.67,Nil,Agency Staff,Revenue,Business Services,CAT02,Agency,SUBCAT0204,Employment & Recruitment Agencies,31230,Not yet available
Wakefield MDC,E08000036,30/06/2015,ADULTS,Adult Social Care,7,MATRIX SCM LTD,Redacted,Not yet available,Not yet available,Not yet available,29/07/2015,170330,135,1162.65,Nil,Agency Staff,Revenue,Business Services,CAT02,Agency,SUBCAT0204,Employment & Recruitment Agencies,31230,Not yet available
Wakefield MDC,E08000036,30/06/2015,ADULTS,Adult Social Care,7,MATRIX SCM LTD,Redacted,Not yet available,Not yet available,Not yet available,09/09/2015,170336,81,802.99,Nil,Agency Staff,Revenue,Business Services,CAT02,Agency,SUBCAT0204,Employment & Recruitment Agencies,31230,Not yet available
Wakefield MDC,E08000036,30/06/2015,ADULTS,Adult Social Care,7,MATRIX SCM LTD,Redacted,Not yet available,Not yet available,Not yet available,22/07/2015,170329,43,1112.28,Nil,Agency Staff,Revenue,Business Services,CAT02,Agency,SUBCAT0204,Employment & Recruitment Agencies,31230,Not yet available
Wakefield MDC,E08000036,30/06/2015,ADULTS,Adult Social Care,7,MATRIX SCM LTD,Redacted,Not yet available,Not yet available,Not yet available,09/09/2015,170336,104,885.90,Nil,Agency Staff,Revenue,Business Services,CAT02,Agency,SUBCAT0204,Employment & Recruitment Agencies,31230,Not yet available
Wakefield MDC,E08000036,30/06/2015,ADULTS,Adult Social Care,7,MATRIX SCM LTD,Redacted,Not yet available,Not yet available,Not yet available,12/08/2015,170332,2,1092.63,Nil,Agency Staff,Revenue,Business Services,CAT02,Agency,SUBCAT0204,Employment & Recruitment Agencies,31230,Not yet available
Wakefield MDC,E08000036,30/06/2015,ADULTS,Adult Social Care,7,MATRIX SCM LTD,Redacted,Not yet available,Not yet available,Not yet available,26/08/2015,170334,55,1040.98,Nil,Agency Staff,Revenue,Business Services,CAT02,Agency,SUBCAT0204,Employment & Recruitment Agencies,31230,Not yet available
Wakefield MDC,E08000036,30/06/2015,ADULTS,Adult Social Care,7,MATRIX SCM LTD,Redacted,Not yet available,Not yet available,Not yet available,22/07/2015,170329,54,1246.90,Nil,Agency Staff,Revenue,Business Services,CAT02,Agency,SUBCAT0204,Employment & Recruitment Agencies,31230,Not yet available
Wakefield MDC,E08000036,30/06/2015,ADULTS,Adult Social Care,7,MATRIX SCM LTD,Redacted,Not yet available,Not yet available,Not yet available,12/08/2015,170332,70,1292.04,Nil,Agency Staff,Revenue,Business Services,CAT02,Agency,SUBCAT0204,Employment & Recruitment Agencies,31230,Not yet available
Wakefield MDC,E08000036,30/06/2015,ADULTS,Adult Social Care,7,MATRIX SCM LTD,Redacted,Not yet available,Not yet available,Not yet available,08/07/2015,170327,57,994.15,Nil,Agency Staff,Revenue,Business Services,CAT02,Agency,SUBCAT0204,Employment & Recruitment Agencies,31230,Not yet available
Wakefield MDC,E08000036,30/06/2015,ADULTS,Adult Social Care,7,MATRIX SCM LTD,Redacted,Not yet available,Not yet available,Not yet available,30/09/2015,170339,62,1292.04,Nil,Agency Staff,Revenue,Business Services,CAT02,Agency,SUBCAT0204,Employment & Recruitment Agencies,31230,Not yet available
Wakefield MDC,E08000036,30/06/2015,ADULTS,Adult Social Care,7,MATRIX SCM LTD,Redacted,Not yet available,Not yet available,Not yet available,12/08/2015,170332,72,1092.63,Nil,Agency Staff,Revenue,Business Services,CAT02,Agency,SUBCAT0204,Employment & Recruitment Agencies,31230,Not yet available
Wakefield MDC,E08000036,30/06/2015,ADULTS,Adult Social Care,7,MATRIX SCM LTD,Redacted,Not yet available,Not yet available,Not yet available,23/09/2015,170338,44,1007.14,Nil,Agency Staff,Revenue,Business Services,CAT02,Agency,SUBCAT0204,Employment & Recruitment Agencies,31230,Not yet available
Wakefield MDC,E08000036,30/06/2015,ADULTS,Adult Social Care,7,MATRIX SCM LTD,Redacted,Not yet available,Not yet available,Not yet available,02/09/2015,170335,114,1292.04,Nil,Agency Staff,Revenue,Business Services,CAT02,Agency,SUBCAT0204,Employment & Recruitment Agencies,31230,Not yet available
Wakefield MDC,E08000036,30/06/2015,ADULTS,Adult Social Care,7,MATRIX SCM LTD,Redacted,Not yet available,Not yet available,Not yet available,23/09/2015,170338,61,1048.34,Nil,Agency Staff,Revenue,Business Services,CAT02,Agency,SUBCAT0204,Employment & Recruitment Agencies,31230,Not yet available
Wakefield MDC,E08000036,30/06/2015,ADULTS,Adult Social Care,7,MATRIX SCM LTD,Redacted,Not yet available,Not yet available,Not yet available,23/09/2015,170338,67,1007.14,Nil,Agency Staff,Revenue,Business Services,CAT02,Agency,SUBCAT0204,Employment & Recruitment Agencies,31230,Not yet available
Wakefield MDC,E08000036,30/06/2015,ADULTS,Adult Social Care,7,MATRIX SCM LTD,Redacted,Not yet available,Not yet available,Not yet available,02/09/2015,170335,115,1085.05,Nil,Agency Staff,Revenue,Business Services,CAT02,Agency,SUBCAT0204,Employment & Recruitment Agencies,31230,Not yet available
Wakefield MDC,E08000036,30/06/2015,ADULTS,Adult Social Care,7,MATRIX SCM LTD,Redacted,Not yet available,Not yet available,Not yet available,30/09/2015,170339,48,634.91,Nil,Agency Staff,Revenue,Business Services,CAT02,Agency,SUBCAT0204,Employment & Recruitment Agencies,31230,Not yet available
Wakefield MDC,E08000036,30/06/2015,ADULTS,Adult Social Care,7,MATRIX SCM LTD,Redacted,Not yet available,Not yet available,Not yet available,12/08/2015,170332,63,1055.24,Nil,Agency Staff,Revenue,Business Services,CAT02,Agency,SUBCAT0204,Employment & Recruitment Agencies,31230,Not yet available
Wakefield MDC,E08000036,30/06/2015,ADULTS,Adult Social Care,7,MATRIX SCM LTD,Redacted,Not yet available,Not yet available,Not yet available,30/09/2015,170339,49,1092.63,Nil,Agency Staff,Revenue,Business Services,CAT02,Agency,SUBCAT0204,Employment & Recruitment Agencies,31230,Not yet available
Wakefield MDC,E08000036,30/06/2015,ADULTS,Adult Social Care,7,MATRIX SCM LTD,Redacted,Not yet available,Not yet available,Not yet available,12/08/2015,170332,10,1055.24,Nil,Agency Staff,Revenue,Business Services,CAT02,Agency,SUBCAT0204,Employment & Recruitment Agencies,31230,Not yet available
Wakefield MDC,E08000036,30/06/2015,ADULTS,Adult Social Care,7,MATRIX SCM LTD,Redacted,Not yet available,Not yet available,Not yet available,09/09/2015,170336,114,1082.52,Nil,Agency Staff,Revenue,Business Services,CAT02,Agency,SUBCAT0204,Employment & Recruitment Agencies,31230,Not yet available
Wakefield MDC,E08000036,30/06/2015,ADULTS,Adult Social Care,7,MATRIX SCM LTD,Redacted,Not yet available,Not yet available,Not yet available,19/08/2015,170333,2,598.84,Nil,Agency Staff,Revenue,Business Services,CAT02,Agency,SUBCAT0204,Employment & Recruitment Agencies,31230,Not yet available
Wakefield MDC,E08000036,30/06/2015,ADULTS,Adult Social Care,7,MATRIX SCM LTD,Redacted,Not yet available,Not yet available,Not yet available,19/08/2015,170333,49,885.92,Nil,Agency Staff,Revenue,Business Services,CAT02,Agency,SUBCAT0204,Employment & Recruitment Agencies,31230,Not yet available
Wakefield MDC,E08000036,30/06/2015,ADULTS,Adult Social Care,7,MATRIX SCM LTD,Redacted,Not yet available,Not yet available,Not yet available,15/07/2015,170328,110,1112.28,Nil,Agency Staff,Revenue,Business Services,CAT02,Agency,SUBCAT0204,Employment & Recruitment Agencies,31230,Not yet available
Wakefield MDC,E08000036,30/06/2015,ADULTS,Adult Social Care,7,MATRIX SCM LTD,Redacted,Not yet available,Not yet available,Not yet available,26/08/2015,170334,72,1007.14,Nil,Agency Staff,Revenue,Business Services,CAT02,Agency,SUBCAT0204,Employment & Recruitment Agencies,31230,Not yet available
Wakefield MDC,E08000036,30/06/2015,ADULTS,Adult Social Care,7,MATRIX SCM LTD,Redacted,Not yet available,Not yet available,Not yet available,15/07/2015,170328,136,1196.35,Nil,Agency Staff,Revenue,Business Services,CAT02,Agency,SUBCAT0204,Employment & Recruitment Agencies,31230,Not yet available
Wakefield MDC,E08000036,30/06/2015,ADULTS,Adult Social Care,7,MATRIX SCM LTD,Redacted,Not yet available,Not yet available,Not yet available,16/09/2015,170337,33,1033.57,Nil,Agency Staff,Revenue,Business Services,CAT02,Agency,SUBCAT0204,Employment & Recruitment Agencies,31230,Not yet available
Wakefield MDC,E08000036,30/06/2015,ADULTS,Adult Social Care,7,MATRIX SCM LTD,Redacted,Not yet available,Not yet available,Not yet available,15/07/2015,170328,148,1092.63,Nil,Agency Staff,Revenue,Business Services,CAT02,Agency,SUBCAT0204,Employment & Recruitment Agencies,31230,Not yet available
Wakefield MDC,E08000036,30/06/2015,ADULTS,Adult Social Care,7,MATRIX SCM LTD,Redacted,Not yet available,Not yet available,Not yet available,16/09/2015,170337,40,1122.16,Nil,Agency Staff,Revenue,Business Services,CAT02,Agency,SUBCAT0204,Employment & Recruitment Agencies,31230,Not yet available
Wakefield MDC,E08000036,30/06/2015,ADULTS,Adult Social Care,7,MATRIX SCM LTD,Redacted,Not yet available,Not yet available,Not yet available,19/08/2015,170333,54,1055.24,Nil,Agency Staff,Revenue,Business Services,CAT02,Agency,SUBCAT0204,Employment & Recruitment Agencies,31230,Not yet available
Wakefield MDC,E08000036,30/06/2015,ADULTS,Adult Social Care,7,MATRIX SCM LTD,Redacted,Not yet available,Not yet available,Not yet available,08/07/2015,170327,41,1055.24,Nil,Agency Staff,Revenue,Business Services,CAT02,Agency,SUBCAT0204,Employment & Recruitment Agencies,31230,Not yet available
Wakefield MDC,E08000036,30/06/2015,ADULTS,Adult Social Care,7,MATRIX SCM LTD,Redacted,Not yet available,Not yet available,Not yet available,16/09/2015,170337,54,1292.04,Nil,Agency Staff,Revenue,Business Services,CAT02,Agency,SUBCAT0204,Employment & Recruitment Agencies,31230,Not yet available
Wakefield MDC,E08000036,30/06/2015,ADULTS,Adult Social Care,7,MATRIX SCM LTD,Redacted,Not yet available,Not yet available,Not yet available,26/08/2015,170334,2,1007.14,Nil,Agency Staff,Revenue,Business Services,CAT02,Agency,SUBCAT0204,Employment & Recruitment Agencies,31230,Not yet available
Wakefield MDC,E08000036,30/06/2015,ADULTS,Adult Social Care,7,MATRIX SCM LTD,Redacted,Not yet available,Not yet available,Not yet available,26/08/2015,170334,77,1292.04,Nil,Agency Staff,Revenue,Business Services,CAT02,Agency,SUBCAT0204,Employment & Recruitment Agencies,31230,Not yet available
Wakefield MDC,E08000036,30/06/2015,ADULTS,Adult Social Care,7,MATRIX SCM LTD,Redacted,Not yet available,Not yet available,Not yet available,12/08/2015,170332,12,1264.59,Nil,Agency Staff,Revenue,Business Services,CAT02,Agency,SUBCAT0204,Employment & Recruitment Agencies,31230,Not yet available
Wakefield MDC,E08000036,30/06/2015,ADULTS,Adult Social Care,7,MATRIX SCM LTD,Redacted,Not yet available,Not yet available,Not yet available,08/07/2015,170327,43,1092.63,Nil,Agency Staff,Revenue,Business Services,CAT02,Agency,SUBCAT0204,Employment & Recruitment Agencies,31230,Not yet available
Wakefield MDC,E08000036,30/06/2015,ADULTS,Adult Social Care,7,MATRIX SCM LTD,Redacted,Not yet available,Not yet available,Not yet available,30/09/2015,170339,6,1107.40,Nil,Agency Staff,Revenue,Business Services,CAT02,Agency,SUBCAT0204,Employment & Recruitment Agencies,31230,Not yet available
Wakefield MDC,E08000036,30/06/2015,ADULTS,Adult Social Care,7,MATRIX SCM LTD,Redacted,Not yet available,Not yet available,Not yet available,26/08/2015,170334,4,1007.14,Nil,Agency Staff,Revenue,Business Services,CAT02,Agency,SUBCAT0204,Employment & Recruitment Agencies,31230,Not yet available
Wakefield MDC,E08000036,30/06/2015,ADULTS,Adult Social Care,7,MATRIX SCM LTD,Redacted,Not yet available,Not yet available,Not yet available,02/09/2015,170335,161,1007.14,Nil,Agency Staff,Revenue,Business Services,CAT02,Agency,SUBCAT0204,Employment & Recruitment Agencies,31230,Not yet available
Wakefield MDC,E08000036,30/06/2015,ADULTS,Adult Social Care,7,MATRIX SCM LTD,Redacted,Not yet available,Not yet available,Not yet available,05/08/2015,170331,172,1007.14,Nil,Agency Staff,Revenue,Business Services,CAT02,Agency,SUBCAT0204,Employment & Recruitment Agencies,31230,Not yet available
Wakefield MDC,E08000036,30/06/2015,ADULTS,Adult Social Care,7,MATRIX SCM LTD,Redacted,Not yet available,Not yet available,Not yet available,26/08/2015,170334,38,1007.14,Nil,Agency Staff,Revenue,Business Services,CAT02,Agency,SUBCAT0204,Employment & Recruitment Agencies,31230,Not yet available
Wakefield MDC,E08000036,30/06/2015,ADULTS,Adult Social Care,7,MATRIX SCM LTD,Redacted,Not yet available,Not yet available,Not yet available,16/09/2015,170337,51,1007.14,Nil,Agency Staff,Revenue,Business Services,CAT02,Agency,SUBCAT0204,Employment & Recruitment Agencies,31230,Not yet available
Wakefield MDC,E08000036,30/06/2015,ADULTS,Adult Social Care,7,MATRIX SCM LTD,Redacted,Not yet available,Not yet available,Not yet available,22/07/2015,170329,56,816.60,Nil,Agency Staff,Revenue,Business Services,CAT02,Agency,SUBCAT0204,Employment & Recruitment Agencies,31230,Not yet available
Wakefield MDC,E08000036,30/06/2015,ADULTS,Adult Social Care,7,MATRIX SCM LTD,Redacted,Not yet available,Not yet available,Not yet available,09/09/2015,170336,98,816.60,Nil,Agency Staff,Revenue,Business Services,CAT02,Agency,SUBCAT0204,Employment & Recruitment Agencies,31230,Not yet available
Wakefield MDC,E08000036,30/06/2015,ADULTS,Adult Social Care,7,MATRIX SCM LTD,Redacted,Not yet available,Not yet available,Not yet available,23/09/2015,170338,75,1007.14,Nil,Agency Staff,Revenue,Business Services,CAT02,Agency,SUBCAT0204,Employment & Recruitment Agencies,31230,Not yet available
Wakefield MDC,E08000036,30/06/2015,ADULTS,Adult Social Care,7,MATRIX SCM LTD,Redacted,Not yet available,Not yet available,Not yet available,12/08/2015,170332,87,1007.14,Nil,Agency Staff,Revenue,Business Services,CAT02,Agency,SUBCAT0204,Employment & Recruitment Agencies,31230,Not yet available
Wakefield MDC,E08000036,30/06/2015,ADULTS,Adult Social Care,7,MATRIX SCM LTD,Redacted,Not yet available,Not yet available,Not yet available,29/07/2015,170330,121,802.99,Nil,Agency Staff,Revenue,Business Services,CAT02,Agency,SUBCAT0204,Employment & Recruitment Agencies,31230,Not yet available
Wakefield MDC,E08000036,30/06/2015,ADULTS,Adult Social Care,7,MATRIX SCM LTD,Redacted,Not yet available,Not yet available,Not yet available,08/07/2015,170327,47,1007.14,Nil,Agency Staff,Revenue,Business Services,CAT02,Agency,SUBCAT0204,Employment & Recruitment Agencies,31230,Not yet available
Wakefield MDC,E08000036,30/06/2015,ADULTS,Adult Social Care,7,MATRIX SCM LTD,Redacted,Not yet available,Not yet available,Not yet available,15/07/2015,170328,123,830.21,Nil,Agency Staff,Revenue,Business Services,CAT02,Agency,SUBCAT0204,Employment & Recruitment Agencies,31230,Not yet available
Wakefield MDC,E08000036,30/06/2015,ADULTS,Adult Social Care,7,PIERS MEADOWS RECRUITMENT LTD,Redacted,Not yet available,Not yet available,Not yet available,18/08/2015,22848277,1,529.35,Nil,Agency Staff,Revenue,Business Services,CAT02,Agency,SUBCAT0204,Employment & Recruitment Agencies,31230,Not yet available
Wakefield MDC,E08000036,30/06/2015,ADULTS,Adult Social Care,7,PIERS MEADOWS RECRUITMENT LTD,Redacted,Not yet available,Not yet available,Not yet available,18/08/2015,22848279,1,763.83,Nil,Agency Staff,Revenue,Business Services,CAT02,Agency,SUBCAT0204,Employment & Recruitment Agencies,31230,Not yet available
Wakefield MDC,E08000036,30/06/2015,ADULTS,Adult Social Care,7,PIERS MEADOWS RECRUITMENT LTD,Redacted,Not yet available,Not yet available,Not yet available,27/07/2015,22839065,1,771.75,Nil,Agency Staff,Revenue,Business Services,CAT02,Agency,SUBCAT0204,Employment & Recruitment Agencies,31230,Not yet available
Wakefield MDC,E08000036,30/06/2015,ADULTS,Adult Social Care,7,PIERS MEADOWS RECRUITMENT LTD,Redacted,Not yet available,Not yet available,Not yet available,01/07/2015,22818655,1,778.28,Nil,Agency Staff,Revenue,Business Services,CAT02,Agency,SUBCAT0204,Employment & Recruitment Agencies,31230,Not yet available
Wakefield MDC,E08000036,30/06/2015,ADULTS,Adult Social Care,7,PIERS MEADOWS RECRUITMENT LTD,Redacted,Not yet available,Not yet available,Not yet available,16/07/2015,22826617,1,778.28,Nil,Agency Staff,Revenue,Business Services,CAT02,Agency,SUBCAT0204,Employment & Recruitment Agencies,31230,Not yet available
Wakefield MDC,E08000036,30/06/2015,ADULTS,Adult Social Care,7,PIERS MEADOWS RECRUITMENT LTD,Redacted,Not yet available,Not yet available,Not yet available,09/07/2015,22822393,1,778.50,Nil,Agency Staff,Revenue,Business Services,CAT02,Agency,SUBCAT0204,Employment & Recruitment Agencies,31230,Not yet available
Wakefield MDC,E08000036,30/06/2015,ADULTS,Adult Social Care,7,PIERS MEADOWS RECRUITMENT LTD,Redacted,Not yet available,Not yet available,Not yet available,04/08/2015,22842930,1,783.90,Nil,Agency Staff,Revenue,Business Services,CAT02,Agency,SUBCAT0204,Employment & Recruitment Agencies,31230,Not yet available
Wakefield MDC,E08000036,30/06/2015,ADULTS,Adult Social Care,7,PIERS MEADOWS RECRUITMENT LTD,Redacted,Not yet available,Not yet available,Not yet available,22/07/2015,22830771,1,788.40,Nil,Agency Staff,Revenue,Business Services,CAT02,Agency,SUBCAT0204,Employment & Recruitment Agencies,31230,Not yet available
Wakefield MDC,E08000036,30/06/2015,BUSINESS,Housing Services,6,NORTHGATE PUBLIC SERVICES (UK) LTD,Redacted,Not yet available,Not yet available,Not yet available,01/09/2015,22860355,1,4951.86,Nil,Agency Staff,Revenue,ICT,CAT11,Systems & Software,SUBCAT1108,Computer Systems & Software (Development),20703,Not yet available
Wakefield MDC,E08000036,30/06/2015,BUSINESS,Housing Services,6,NORTHGATE PUBLIC SERVICES (UK) LTD,Redacted,Not yet available,Not yet available,Not yet available,01/09/2015,22860259,1,23775.91,Nil,Agency Staff,Revenue,ICT,CAT11,Systems & Software,SUBCAT1108,Computer Systems & Software (Development),20703,Not yet available
Wakefield MDC,E08000036,30/06/2015,BUSINESS,Housing Services,6,NORTHGATE PUBLIC SERVICES (UK) LTD,Redacted,Not yet available,Not yet available,Not yet available,13/07/2015,22822677,1,32220.70,Nil,Agency Staff,Revenue,ICT,CAT11,Systems & Software,SUBCAT1108,Computer Systems & Software (Development),20703,Not yet available
Wakefield MDC,E08000036,30/06/2015,BUSINESS,Housing Services,6,NORTHGATE PUBLIC SERVICES (UK) LTD,Redacted,Not yet available,Not yet available,Not yet available,24/09/2015,22879713,1,26629.56,Nil,Agency Staff,Revenue,ICT,CAT11,Systems & Software,SUBCAT1108,Computer Systems & Software (Development),20703,Not yet available
Wakefield MDC,E08000036,30/06/2015,BUSINESS,Net (Surplus) / Deficit of Trading Operations,A,MATRIX SCM LTD,Redacted,Not yet available,Not yet available,Not yet available,15/07/2015,170328,134,540.00,Nil,Agency Staff,Revenue,Business Services,CAT02,Agency,SUBCAT0204,Employment & Recruitment Agencies,31230,Not yet available
Wakefield MDC,E08000036,30/06/2015,BUSINESS,Net (Surplus) / Deficit of Trading Operations,A,MATRIX SCM LTD,Redacted,Not yet available,Not yet available,Not yet available,29/07/2015,170330,146,540.00,Nil,Agency Staff,Revenue,Business Services,CAT02,Agency,SUBCAT0204,Employment & Recruitment Agencies,31230,Not yet available
Wakefield MDC,E08000036,30/06/2015,BUSINESS,Net (Surplus) / Deficit of Trading Operations,A,MATRIX SCM LTD,Redacted,Not yet available,Not yet available,Not yet available,05/08/2015,170331,192,540.00,Nil,Agency Staff,Revenue,Business Services,CAT02,Agency,SUBCAT0204,Employment & Recruitment Agencies,31230,Not yet available
Wakefield MDC,E08000036,30/06/2015,BUSINESS,Net (Surplus) / Deficit of Trading Operations,A,MATRIX SCM LTD,Redacted,Not yet available,Not yet available,Not yet available,19/08/2015,170333,12,540.00,Nil,Agency Staff,Revenue,Business Services,CAT02,Agency,SUBCAT0204,Employment & Recruitment Agencies,31230,Not yet available
Wakefield MDC,E08000036,30/06/2015,BUSINESS,Net (Surplus) / Deficit of Trading Operations,A,MATRIX SCM LTD,Redacted,Not yet available,Not yet available,Not yet available,26/08/2015,170334,7,540.00,Nil,Agency Staff,Revenue,Business Services,CAT02,Agency,SUBCAT0204,Employment & Recruitment Agencies,31230,Not yet available
Wakefield MDC,E08000036,30/06/2015,BUSINESS,Net (Surplus) / Deficit of Trading Operations,A,MATRIX SCM LTD,Redacted,Not yet available,Not yet available,Not yet available,22/07/2015,170329,40,540.00,Nil,Agency Staff,Revenue,Business Services,CAT02,Agency,SUBCAT0204,Employment & Recruitment Agencies,31230,Not yet available
Wakefield MDC,E08000036,30/06/2015,BUSINESS,Net (Surplus) / Deficit of Trading Operations,A,MATRIX SCM LTD,Redacted,Not yet available,Not yet available,Not yet available,30/09/2015,170339,85,522.00,Nil,Agency Staff,Revenue,Business Services,CAT02,Agency,SUBCAT0204,Employment & Recruitment Agencies,31230,Not yet available
Wakefield MDC,E08000036,30/06/2015,BUSINESS,Housing Services,6,MATRIX SCM LTD,Redacted,Not yet available,Not yet available,Not yet available,05/08/2015,170331,120,950.04,Nil,Agency Staff,Revenue,Business Services,CAT02,Agency,SUBCAT0204,Employment & Recruitment Agencies,31230,Not yet available
Wakefield MDC,E08000036,30/06/2015,BUSINESS,Housing Services,6,MATRIX SCM LTD,Redacted,Not yet available,Not yet available,Not yet available,22/07/2015,170329,37,884.52,Nil,Agency Staff,Revenue,Business Services,CAT02,Agency,SUBCAT0204,Employment & Recruitment Agencies,31230,Not yet available
Wakefield MDC,E08000036,30/06/2015,BUSINESS,Housing Services,6,MATRIX SCM LTD,Redacted,Not yet available,Not yet available,Not yet available,16/09/2015,170337,87,786.24,Nil,Agency Staff,Revenue,Business Services,CAT02,Agency,SUBCAT0204,Employment & Recruitment Agencies,31230,Not yet available
Wakefield MDC,E08000036,30/06/2015,BUSINESS,Housing Services,6,MATRIX SCM LTD,Redacted,Not yet available,Not yet available,Not yet available,26/08/2015,170334,34,606.06,Nil,Agency Staff,Revenue,Business Services,CAT02,Agency,SUBCAT0204,Employment & Recruitment Agencies,31230,Not yet available
Wakefield MDC,E08000036,30/06/2015,BUSINESS,Housing Services,6,MATRIX SCM LTD,Redacted,Not yet available,Not yet available,Not yet available,16/09/2015,170337,36,895.44,Nil,Agency Staff,Revenue,Business Services,CAT02,Agency,SUBCAT0204,Employment & Recruitment Agencies,31230,Not yet available
Wakefield MDC,E08000036,30/06/2015,BUSINESS,Housing Services,6,MATRIX SCM LTD,Redacted,Not yet available,Not yet available,Not yet available,22/07/2015,170329,70,1048.32,Nil,Agency Staff,Revenue,Business Services,CAT02,Agency,SUBCAT0204,Employment & Recruitment Agencies,31230,Not yet available
Wakefield MDC,E08000036,30/06/2015,BUSINESS,Housing Services,6,MATRIX SCM LTD,Redacted,Not yet available,Not yet available,Not yet available,12/08/2015,170332,73,808.08,Nil,Agency Staff,Revenue,Business Services,CAT02,Agency,SUBCAT0204,Employment & Recruitment Agencies,31230,Not yet available
Wakefield MDC,E08000036,30/06/2015,BUSINESS,Housing Services,6,MATRIX SCM LTD,Redacted,Not yet available,Not yet available,Not yet available,22/07/2015,170329,61,906.36,Nil,Agency Staff,Revenue,Business Services,CAT02,Agency,SUBCAT0204,Employment & Recruitment Agencies,31230,Not yet available
Wakefield MDC,E08000036,30/06/2015,BUSINESS,Housing Services,6,MATRIX SCM LTD,Redacted,Not yet available,Not yet available,Not yet available,12/08/2015,170332,68,786.24,Nil,Agency Staff,Revenue,Business Services,CAT02,Agency,SUBCAT0204,Employment & Recruitment Agencies,31230,Not yet available
Wakefield MDC,E08000036,30/06/2015,BUSINESS,Housing Services,6,MATRIX SCM LTD,Redacted,Not yet available,Not yet available,Not yet available,15/07/2015,170328,108,808.08,Nil,Agency Staff,Revenue,Business Services,CAT02,Agency,SUBCAT0204,Employment & Recruitment Agencies,31230,Not yet available
Wakefield MDC,E08000036,30/06/2015,BUSINESS,Housing Services,6,MATRIX SCM LTD,Redacted,Not yet available,Not yet available,Not yet available,15/07/2015,170328,107,808.08,Nil,Agency Staff,Revenue,Business Services,CAT02,Agency,SUBCAT0204,Employment & Recruitment Agencies,31230,Not yet available
Wakefield MDC,E08000036,30/06/2015,BUSINESS,Housing Services,6,MATRIX SCM LTD,Redacted,Not yet available,Not yet available,Not yet available,02/09/2015,170335,119,862.68,Nil,Agency Staff,Revenue,Business Services,CAT02,Agency,SUBCAT0204,Employment & Recruitment Agencies,31230,Not yet available
Wakefield MDC,E08000036,30/06/2015,BUSINESS,Housing Services,6,MATRIX SCM LTD,Redacted,Not yet available,Not yet available,Not yet available,08/07/2015,170327,12,873.60,Nil,Agency Staff,Revenue,Business Services,CAT02,Agency,SUBCAT0204,Employment & Recruitment Agencies,31230,Not yet available
Wakefield MDC,E08000036,30/06/2015,BUSINESS,Housing Services,6,MATRIX SCM LTD,Redacted,Not yet available,Not yet available,Not yet available,15/07/2015,170328,111,797.16,Nil,Agency Staff,Revenue,Business Services,CAT02,Agency,SUBCAT0204,Employment & Recruitment Agencies,31230,Not yet available
Wakefield MDC,E08000036,30/06/2015,BUSINESS,Housing Services,6,MATRIX SCM LTD,Redacted,Not yet available,Not yet available,Not yet available,02/09/2015,170335,156,1092.00,Nil,Agency Staff,Revenue,Business Services,CAT02,Agency,SUBCAT0204,Employment & Recruitment Agencies,31230,Not yet available
Wakefield MDC,E08000036,30/06/2015,BUSINESS,Housing Services,6,MATRIX SCM LTD,Redacted,Not yet available,Not yet available,Not yet available,23/09/2015,170338,81,868.14,Nil,Agency Staff,Revenue,Business Services,CAT02,Agency,SUBCAT0204,Employment & Recruitment Agencies,31230,Not yet available
Wakefield MDC,E08000036,30/06/2015,BUSINESS,Housing Services,6,MATRIX SCM LTD,Redacted,Not yet available,Not yet available,Not yet available,30/09/2015,170339,84,939.12,Nil,Agency Staff,Revenue,Business Services,CAT02,Agency,SUBCAT0204,Employment & Recruitment Agencies,31230,Not yet available
Wakefield MDC,E08000036,30/06/2015,BUSINESS,Housing Services,6,MATRIX SCM LTD,Redacted,Not yet available,Not yet available,Not yet available,22/07/2015,170329,18,917.28,Nil,Agency Staff,Revenue,Business Services,CAT02,Agency,SUBCAT0204,Employment & Recruitment Agencies,31230,Not yet available
Wakefield MDC,E08000036,30/06/2015,BUSINESS,Housing Services,6,MATRIX SCM LTD,Redacted,Not yet available,Not yet available,Not yet available,30/09/2015,170339,76,698.88,Nil,Agency Staff,Revenue,Business Services,CAT02,Agency,SUBCAT0204,Employment & Recruitment Agencies,31230,Not yet available
Wakefield MDC,E08000036,30/06/2015,BUSINESS,Housing Services,6,MATRIX SCM LTD,Redacted,Not yet available,Not yet available,Not yet available,23/09/2015,170338,72,1097.46,Nil,Agency Staff,Revenue,Business Services,CAT02,Agency,SUBCAT0204,Employment & Recruitment Agencies,31230,Not yet available
Wakefield MDC,E08000036,30/06/2015,BUSINESS,Housing Services,6,MATRIX SCM LTD,Redacted,Not yet available,Not yet available,Not yet available,22/07/2015,170329,17,884.52,Nil,Agency Staff,Revenue,Business Services,CAT02,Agency,SUBCAT0204,Employment & Recruitment Agencies,31230,Not yet available
Wakefield MDC,E08000036,30/06/2015,BUSINESS,Housing Services,6,MATRIX SCM LTD,Redacted,Not yet available,Not yet available,Not yet available,09/09/2015,170336,82,889.98,Nil,Agency Staff,Revenue,Business Services,CAT02,Agency,SUBCAT0204,Employment & Recruitment Agencies,31230,Not yet available
Wakefield MDC,E08000036,30/06/2015,BUSINESS,Housing Services,6,MATRIX SCM LTD,Redacted,Not yet available,Not yet available,Not yet available,12/08/2015,170332,81,655.20,Nil,Agency Staff,Revenue,Business Services,CAT02,Agency,SUBCAT0204,Employment & Recruitment Agencies,31230,Not yet available
Wakefield MDC,E08000036,30/06/2015,BUSINESS,Housing Services,6,MATRIX SCM LTD,Redacted,Not yet available,Not yet available,Not yet available,23/09/2015,170338,93,900.90,Nil,Agency Staff,Revenue,Business Services,CAT02,Agency,SUBCAT0204,Employment & Recruitment Agencies,31230,Not yet available
Wakefield MDC,E08000036,30/06/2015,BUSINESS,Housing Services,6,MATRIX SCM LTD,Redacted,Not yet available,Not yet available,Not yet available,12/08/2015,170332,80,971.88,Nil,Agency Staff,Revenue,Business Services,CAT02,Agency,SUBCAT0204,Employment & Recruitment Agencies,31230,Not yet available
Wakefield MDC,E08000036,30/06/2015,BUSINESS,Housing Services,6,MATRIX SCM LTD,Redacted,Not yet available,Not yet available,Not yet available,09/09/2015,170336,21,808.08,Nil,Agency Staff,Revenue,Business Services,CAT02,Agency,SUBCAT0204,Employment & Recruitment Agencies,31230,Not yet available
Wakefield MDC,E08000036,30/06/2015,BUSINESS,Housing Services,6,MATRIX SCM LTD,Redacted,Not yet available,Not yet available,Not yet available,26/08/2015,170334,32,819.00,Nil,Agency Staff,Revenue,Business Services,CAT02,Agency,SUBCAT0204,Employment & Recruitment Agencies,31230,Not yet available
Wakefield MDC,E08000036,30/06/2015,BUSINESS,Housing Services,6,MATRIX SCM LTD,Redacted,Not yet available,Not yet available,Not yet available,16/09/2015,170337,3,857.22,Nil,Agency Staff,Revenue,Business Services,CAT02,Agency,SUBCAT0204,Employment & Recruitment Agencies,31230,Not yet available
Wakefield MDC,E08000036,30/06/2015,BUSINESS,Housing Services,6,MATRIX SCM LTD,Redacted,Not yet available,Not yet available,Not yet available,05/08/2015,170331,81,982.80,Nil,Agency Staff,Revenue,Business Services,CAT02,Agency,SUBCAT0204,Employment & Recruitment Agencies,31230,Not yet available
Wakefield MDC,E08000036,30/06/2015,BUSINESS,Housing Services,6,MATRIX SCM LTD,Redacted,Not yet available,Not yet available,Not yet available,05/08/2015,170331,69,857.22,Nil,Agency Staff,Revenue,Business Services,CAT02,Agency,SUBCAT0204,Employment & Recruitment Agencies,31230,Not yet available
Wakefield MDC,E08000036,30/06/2015,BUSINESS,Housing Services,6,MATRIX SCM LTD,Redacted,Not yet available,Not yet available,Not yet available,05/08/2015,170331,64,917.28,Nil,Agency Staff,Revenue,Business Services,CAT02,Agency,SUBCAT0204,Employment & Recruitment Agencies,31230,Not yet available
Wakefield MDC,E08000036,30/06/2015,BUSINESS,Housing Services,6,MATRIX SCM LTD,Redacted,Not yet available,Not yet available,Not yet available,09/09/2015,170336,90,808.08,Nil,Agency Staff,Revenue,Business Services,CAT02,Agency,SUBCAT0204,Employment & Recruitment Agencies,31230,Not yet available
Wakefield MDC,E08000036,30/06/2015,BUSINESS,Housing Services,6,MATRIX SCM LTD,Redacted,Not yet available,Not yet available,Not yet available,08/07/2015,170327,37,808.08,Nil,Agency Staff,Revenue,Business Services,CAT02,Agency,SUBCAT0204,Employment & Recruitment Agencies,31230,Not yet available
Wakefield MDC,E08000036,30/06/2015,BUSINESS,Housing Services,6,MATRIX SCM LTD,Redacted,Not yet available,Not yet available,Not yet available,19/08/2015,170333,33,1179.36,Nil,Agency Staff,Revenue,Business Services,CAT02,Agency,SUBCAT0204,Employment & Recruitment Agencies,31230,Not yet available
Wakefield MDC,E08000036,30/06/2015,BUSINESS,Housing Services,6,MATRIX SCM LTD,Redacted,Not yet available,Not yet available,Not yet available,08/07/2015,170327,36,824.46,Nil,Agency Staff,Revenue,Business Services,CAT02,Agency,SUBCAT0204,Employment & Recruitment Agencies,31230,Not yet available
Wakefield MDC,E08000036,30/06/2015,BUSINESS,Housing Services,6,MATRIX SCM LTD,Redacted,Not yet available,Not yet available,Not yet available,29/07/2015,170330,93,939.12,Nil,Agency Staff,Revenue,Business Services,CAT02,Agency,SUBCAT0204,Employment & Recruitment Agencies,31230,Not yet available
Wakefield MDC,E08000036,30/06/2015,BUSINESS,Housing Services,6,MATRIX SCM LTD,Redacted,Not yet available,Not yet available,Not yet available,19/08/2015,170333,39,928.20,Nil,Agency Staff,Revenue,Business Services,CAT02,Agency,SUBCAT0204,Employment & Recruitment Agencies,31230,Not yet available
Wakefield MDC,E08000036,30/06/2015,BUSINESS,Housing Services,6,MATRIX SCM LTD,Redacted,Not yet available,Not yet available,Not yet available,29/07/2015,170330,109,960.96,Nil,Agency Staff,Revenue,Business Services,CAT02,Agency,SUBCAT0204,Employment & Recruitment Agencies,31230,Not yet available
Wakefield MDC,E08000036,30/06/2015,BUSINESS,Housing Services,6,MATRIX SCM LTD,Redacted,Not yet available,Not yet available,Not yet available,23/09/2015,170338,40,655.20,Nil,Agency Staff,Revenue,Business Services,CAT02,Agency,SUBCAT0204,Employment & Recruitment Agencies,31230,Not yet available
Wakefield MDC,E08000036,30/06/2015,BUSINESS,Housing Services,6,MATRIX SCM LTD,Redacted,Not yet available,Not yet available,Not yet available,16/09/2015,170337,62,851.76,Nil,Agency Staff,Revenue,Business Services,CAT02,Agency,SUBCAT0204,Employment & Recruitment Agencies,31230,Not yet available
Wakefield MDC,E08000036,30/06/2015,BUSINESS,Housing Services,6,MATRIX SCM LTD,Redacted,Not yet available,Not yet available,Not yet available,30/09/2015,170339,58,873.60,Nil,Agency Staff,Revenue,Business Services,CAT02,Agency,SUBCAT0204,Employment & Recruitment Agencies,31230,Not yet available
Wakefield MDC,E08000036,30/06/2015,BUSINESS,Housing Services,6,MATRIX SCM LTD,Redacted,Not yet available,Not yet available,Not yet available,29/07/2015,170330,98,682.50,Nil,Agency Staff,Revenue,Business Services,CAT02,Agency,SUBCAT0204,Employment & Recruitment Agencies,31230,Not yet available
Wakefield MDC,E08000036,30/06/2015,BUSINESS,Housing Services,6,MATRIX SCM LTD,Redacted,Not yet available,Not yet available,Not yet available,16/09/2015,170337,57,960.96,Nil,Agency Staff,Revenue,Business Services,CAT02,Agency,SUBCAT0204,Employment & Recruitment Agencies,31230,Not yet available
Wakefield MDC,E08000036,30/06/2015,BUSINESS,Housing Services,6,MATRIX SCM LTD,Redacted,Not yet available,Not yet available,Not yet available,30/09/2015,170339,53,829.92,Nil,Agency Staff,Revenue,Business Services,CAT02,Agency,SUBCAT0204,Employment & Recruitment Agencies,31230,Not yet available
Wakefield MDC,E08000036,30/06/2015,BUSINESS,Housing Services,6,MATRIX SCM LTD,Redacted,Not yet available,Not yet available,Not yet available,30/09/2015,170339,52,829.92,Nil,Agency Staff,Revenue,Business Services,CAT02,Agency,SUBCAT0204,Employment & Recruitment Agencies,31230,Not yet available
Wakefield MDC,E08000036,30/06/2015,BUSINESS,Housing Services,6,MATRIX SCM LTD,Redacted,Not yet available,Not yet available,Not yet available,29/07/2015,170330,72,742.56,Nil,Agency Staff,Revenue,Business Services,CAT02,Agency,SUBCAT0204,Employment & Recruitment Agencies,31230,Not yet available
Wakefield MDC,E08000036,30/06/2015,BUSINESS,Central Services,1,MATRIX SCM LTD,Redacted,Not yet available,Not yet available,Not yet available,26/08/2015,170334,42,999.74,Nil,Agency Staff,Revenue,Business Services,CAT02,Agency,SUBCAT0204,Employment & Recruitment Agencies,31230,Not yet available
Wakefield MDC,E08000036,30/06/2015,BUSINESS,Central Services,1,MATRIX SCM LTD,Redacted,Not yet available,Not yet available,Not yet available,05/08/2015,170331,52,999.75,Nil,Agency Staff,Revenue,Business Services,CAT02,Agency,SUBCAT0204,Employment & Recruitment Agencies,31230,Not yet available
Wakefield MDC,E08000036,30/06/2015,BUSINESS,Central Services,1,MATRIX SCM LTD,Redacted,Not yet available,Not yet available,Not yet available,12/08/2015,170332,89,999.75,Nil,Agency Staff,Revenue,Business Services,CAT02,Agency,SUBCAT0204,Employment & Recruitment Agencies,31230,Not yet available
Wakefield MDC,E08000036,30/06/2015,BUSINESS,Central Services,1,MATRIX SCM LTD,Redacted,Not yet available,Not yet available,Not yet available,09/09/2015,170336,38,864.65,Nil,Agency Staff,Revenue,Business Services,CAT02,Agency,SUBCAT0204,Employment & Recruitment Agencies,31230,Not yet available
Wakefield MDC,E08000036,30/06/2015,BUSINESS,Central Services,1,MATRIX SCM LTD,Redacted,Not yet available,Not yet available,Not yet available,05/08/2015,170331,82,999.74,Nil,Agency Staff,Revenue,Business Services,CAT02,Agency,SUBCAT0204,Employment & Recruitment Agencies,31230,Not yet available
Wakefield MDC,E08000036,30/06/2015,BUSINESS,Central Services,1,MATRIX SCM LTD,Redacted,Not yet available,Not yet available,Not yet available,12/08/2015,170332,59,999.76,Nil,Agency Staff,Revenue,Business Services,CAT02,Agency,SUBCAT0204,Employment & Recruitment Agencies,31230,Not yet available
Wakefield MDC,E08000036,30/06/2015,BUSINESS,Central Services,1,MATRIX SCM LTD,Redacted,Not yet available,Not yet available,Not yet available,30/09/2015,170339,40,999.75,Nil,Agency Staff,Revenue,Business Services,CAT02,Agency,SUBCAT0204,Employment & Recruitment Agencies,31230,Not yet available
Wakefield MDC,E08000036,30/06/2015,BUSINESS,Central Services,1,MATRIX SCM LTD,Redacted,Not yet available,Not yet available,Not yet available,30/09/2015,170339,93,993.00,Nil,Agency Staff,Revenue,Business Services,CAT02,Agency,SUBCAT0204,Employment & Recruitment Agencies,31230,Not yet available
Wakefield MDC,E08000036,30/06/2015,BUSINESS,Central Services,1,MATRIX SCM LTD,Redacted,Not yet available,Not yet available,Not yet available,12/08/2015,170332,88,999.74,Nil,Agency Staff,Revenue,Business Services,CAT02,Agency,SUBCAT0204,Employment & Recruitment Agencies,31230,Not yet available
Wakefield MDC,E08000036,30/06/2015,BUSINESS,Central Services,1,MATRIX SCM LTD,Redacted,Not yet available,Not yet available,Not yet available,16/09/2015,170337,26,999.74,Nil,Agency Staff,Revenue,Business Services,CAT02,Agency,SUBCAT0204,Employment & Recruitment Agencies,31230,Not yet available
Wakefield MDC,E08000036,30/06/2015,BUSINESS,Central Services,1,MATRIX SCM LTD,Redacted,Not yet available,Not yet available,Not yet available,29/07/2015,170330,84,999.75,Nil,Agency Staff,Revenue,Business Services,CAT02,Agency,SUBCAT0204,Employment & Recruitment Agencies,31230,Not yet available
Wakefield MDC,E08000036,30/06/2015,BUSINESS,Central Services,1,MATRIX SCM LTD,Redacted,Not yet available,Not yet available,Not yet available,16/09/2015,170337,27,999.76,Nil,Agency Staff,Revenue,Business Services,CAT02,Agency,SUBCAT0204,Employment & Recruitment Agencies,31230,Not yet available
Wakefield MDC,E08000036,30/06/2015,BUSINESS,Central Services,1,MATRIX SCM LTD,Redacted,Not yet available,Not yet available,Not yet available,29/07/2015,170330,117,999.75,Nil,Agency Staff,Revenue,Business Services,CAT02,Agency,SUBCAT0204,Employment & Recruitment Agencies,31230,Not yet available
Wakefield MDC,E08000036,30/06/2015,BUSINESS,Central Services,1,MATRIX SCM LTD,Redacted,Not yet available,Not yet available,Not yet available,19/08/2015,170333,20,999.75,Nil,Agency Staff,Revenue,Business Services,CAT02,Agency,SUBCAT0204,Employment & Recruitment Agencies,31230,Not yet available
Wakefield MDC,E08000036,30/06/2015,BUSINESS,Central Services,1,MATRIX SCM LTD,Redacted,Not yet available,Not yet available,Not yet available,19/08/2015,170333,24,999.74,Nil,Agency Staff,Revenue,Business Services,CAT02,Agency,SUBCAT0204,Employment & Recruitment Agencies,31230,Not yet available
Wakefield MDC,E08000036,30/06/2015,BUSINESS,Central Services,1,MATRIX SCM LTD,Redacted,Not yet available,Not yet available,Not yet available,26/08/2015,170334,25,999.74,Nil,Agency Staff,Revenue,Business Services,CAT02,Agency,SUBCAT0204,Employment & Recruitment Agencies,31230,Not yet available
Wakefield MDC,E08000036,30/06/2015,BUSINESS,Central Services,1,MATRIX SCM LTD,Redacted,Not yet available,Not yet available,Not yet available,26/08/2015,170334,28,999.74,Nil,Agency Staff,Revenue,Business Services,CAT02,Agency,SUBCAT0204,Employment & Recruitment Agencies,31230,Not yet available
Wakefield MDC,E08000036,30/06/2015,BUSINESS,Central Services,1,MATRIX SCM LTD,Redacted,Not yet available,Not yet available,Not yet available,02/09/2015,170335,99,999.74,Nil,Agency Staff,Revenue,Business Services,CAT02,Agency,SUBCAT0204,Employment & Recruitment Agencies,31230,Not yet available
Wakefield MDC,E08000036,30/06/2015,BUSINESS,Central Services,1,MATRIX SCM LTD,Redacted,Not yet available,Not yet available,Not yet available,02/09/2015,170335,111,999.74,Nil,Agency Staff,Revenue,Business Services,CAT02,Agency,SUBCAT0204,Employment & Recruitment Agencies,31230,Not yet available
Wakefield MDC,E08000036,30/06/2015,BUSINESS,Central Services,1,MATRIX SCM LTD,Redacted,Not yet available,Not yet available,Not yet available,05/08/2015,170331,173,999.74,Nil,Agency Staff,Revenue,Business Services,CAT02,Agency,SUBCAT0204,Employment & Recruitment Agencies,31230,Not yet available
Wakefield MDC,E08000036,30/06/2015,BUSINESS,Central Services,1,MATRIX SCM LTD,Redacted,Not yet available,Not yet available,Not yet available,02/09/2015,170335,94,999.76,Nil,Agency Staff,Revenue,Business Services,CAT02,Agency,SUBCAT0204,Employment & Recruitment Agencies,31230,Not yet available
Wakefield MDC,E08000036,30/06/2015,BUSINESS,Central Services,1,MATRIX SCM LTD,Redacted,Not yet available,Not yet available,Not yet available,09/09/2015,170336,74,918.68,Nil,Agency Staff,Revenue,Business Services,CAT02,Agency,SUBCAT0204,Employment & Recruitment Agencies,31230,Not yet available
Wakefield MDC,E08000036,30/06/2015,BUSINESS,Central Services,1,MATRIX SCM LTD,Redacted,Not yet available,Not yet available,Not yet available,16/09/2015,170337,25,999.74,Nil,Agency Staff,Revenue,Business Services,CAT02,Agency,SUBCAT0204,Employment & Recruitment Agencies,31230,Not yet available
Wakefield MDC,E08000036,30/06/2015,BUSINESS,Central Services,1,MATRIX SCM LTD,Redacted,Not yet available,Not yet available,Not yet available,23/09/2015,170338,51,999.74,Nil,Agency Staff,Revenue,Business Services,CAT02,Agency,SUBCAT0204,Employment & Recruitment Agencies,31230,Not yet available
Wakefield MDC,E08000036,30/06/2015,BUSINESS,Central Services,1,MATRIX SCM LTD,Redacted,Not yet available,Not yet available,Not yet available,09/09/2015,170336,62,756.57,Nil,Agency Staff,Revenue,Business Services,CAT02,Agency,SUBCAT0204,Employment & Recruitment Agencies,31230,Not yet available
Wakefield MDC,E08000036,30/06/2015,BUSINESS,Central Services,1,MATRIX SCM LTD,Redacted,Not yet available,Not yet available,Not yet available,23/09/2015,170338,43,999.75,Nil,Agency Staff,Revenue,Business Services,CAT02,Agency,SUBCAT0204,Employment & Recruitment Agencies,31230,Not yet available
Wakefield MDC,E08000036,30/06/2015,BUSINESS,Central Services,1,MATRIX SCM LTD,Redacted,Not yet available,Not yet available,Not yet available,30/09/2015,170339,47,999.74,Nil,Agency Staff,Revenue,Business Services,CAT02,Agency,SUBCAT0204,Employment & Recruitment Agencies,31230,Not yet available
Wakefield MDC,E08000036,30/06/2015,BUSINESS,Central Services,1,MATRIX SCM LTD,Redacted,Not yet available,Not yet available,Not yet available,19/08/2015,170333,50,999.74,Nil,Agency Staff,Revenue,Business Services,CAT02,Agency,SUBCAT0204,Employment & Recruitment Agencies,31230,Not yet available
Wakefield MDC,E08000036,30/06/2015,BUSINESS,Central Services,1,MATRIX SCM LTD,Redacted,Not yet available,Not yet available,Not yet available,23/09/2015,170338,41,999.75,Nil,Agency Staff,Revenue,Business Services,CAT02,Agency,SUBCAT0204,Employment & Recruitment Agencies,31230,Not yet available
Wakefield MDC,E08000036,30/06/2015,BUSINESS,Net (Surplus) / Deficit of Trading Operations,A,MATRIX SCM LTD,Redacted,Not yet available,Not yet available,Not yet available,23/09/2015,170338,54,746.90,Nil,Agency Staff,Revenue,Business Services,CAT02,Agency,SUBCAT0204,Employment & Recruitment Agencies,31230,Not yet available
Wakefield MDC,E08000036,30/06/2015,BUSINESS,Net (Surplus) / Deficit of Trading Operations,A,MATRIX SCM LTD,Redacted,Not yet available,Not yet available,Not yet available,08/07/2015,170327,34,940.80,Nil,Agency Staff,Revenue,Business Services,CAT02,Agency,SUBCAT0204,Employment & Recruitment Agencies,31230,Not yet available
Wakefield MDC,E08000036,30/06/2015,BUSINESS,Net (Surplus) / Deficit of Trading Operations,A,MATRIX SCM LTD,Redacted,Not yet available,Not yet available,Not yet available,09/09/2015,170336,73,697.76,Nil,Agency Staff,Revenue,Business Services,CAT02,Agency,SUBCAT0204,Employment & Recruitment Agencies,31230,Not yet available
Wakefield MDC,E08000036,30/06/2015,BUSINESS,Net (Surplus) / Deficit of Trading Operations,A,MATRIX SCM LTD,Redacted,Not yet available,Not yet available,Not yet available,09/09/2015,170336,13,1199.52,Nil,Agency Staff,Revenue,Business Services,CAT02,Agency,SUBCAT0204,Employment & Recruitment Agencies,31230,Not yet available
Wakefield MDC,E08000036,30/06/2015,BUSINESS,Net (Surplus) / Deficit of Trading Operations,A,MATRIX SCM LTD,Redacted,Not yet available,Not yet available,Not yet available,29/07/2015,170330,78,763.88,Nil,Agency Staff,Revenue,Business Services,CAT02,Agency,SUBCAT0204,Employment & Recruitment Agencies,31230,Not yet available
Wakefield MDC,E08000036,30/06/2015,BUSINESS,Net (Surplus) / Deficit of Trading Operations,A,MATRIX SCM LTD,Redacted,Not yet available,Not yet available,Not yet available,02/09/2015,170335,63,1191.68,Nil,Agency Staff,Revenue,Business Services,CAT02,Agency,SUBCAT0204,Employment & Recruitment Agencies,31230,Not yet available
Wakefield MDC,E08000036,30/06/2015,BUSINESS,Net (Surplus) / Deficit of Trading Operations,A,MATRIX SCM LTD,Redacted,Not yet available,Not yet available,Not yet available,19/08/2015,170333,66,682.08,Nil,Agency Staff,Revenue,Business Services,CAT02,Agency,SUBCAT0204,Employment & Recruitment Agencies,31230,Not yet available
Wakefield MDC,E08000036,30/06/2015,BUSINESS,Net (Surplus) / Deficit of Trading Operations,A,MATRIX SCM LTD,Redacted,Not yet available,Not yet available,Not yet available,19/08/2015,170333,60,840.26,Nil,Agency Staff,Revenue,Business Services,CAT02,Agency,SUBCAT0204,Employment & Recruitment Agencies,31230,Not yet available
Wakefield MDC,E08000036,30/06/2015,BUSINESS,Net (Surplus) / Deficit of Trading Operations,A,MATRIX SCM LTD,Redacted,Not yet available,Not yet available,Not yet available,19/08/2015,170333,70,925.12,Nil,Agency Staff,Revenue,Business Services,CAT02,Agency,SUBCAT0204,Employment & Recruitment Agencies,31230,Not yet available
Wakefield MDC,E08000036,30/06/2015,BUSINESS,Net (Surplus) / Deficit of Trading Operations,A,MATRIX SCM LTD,Redacted,Not yet available,Not yet available,Not yet available,22/07/2015,170329,45,1160.32,Nil,Agency Staff,Revenue,Business Services,CAT02,Agency,SUBCAT0204,Employment & Recruitment Agencies,31230,Not yet available
Wakefield MDC,E08000036,30/06/2015,BUSINESS,Net (Surplus) / Deficit of Trading Operations,A,MATRIX SCM LTD,Redacted,Not yet available,Not yet available,Not yet available,30/09/2015,170339,70,1160.32,Nil,Agency Staff,Revenue,Business Services,CAT02,Agency,SUBCAT0204,Employment & Recruitment Agencies,31230,Not yet available
Wakefield MDC,E08000036,30/06/2015,BUSINESS,Net (Surplus) / Deficit of Trading Operations,A,MATRIX SCM LTD,Redacted,Not yet available,Not yet available,Not yet available,15/07/2015,170328,141,1160.32,Nil,Agency Staff,Revenue,Business Services,CAT02,Agency,SUBCAT0204,Employment & Recruitment Agencies,31230,Not yet available
Wakefield MDC,E08000036,30/06/2015,BUSINESS,Net (Surplus) / Deficit of Trading Operations,A,MATRIX SCM LTD,Redacted,Not yet available,Not yet available,Not yet available,23/09/2015,170338,11,1128.96,Nil,Agency Staff,Revenue,Business Services,CAT02,Agency,SUBCAT0204,Employment & Recruitment Agencies,31230,Not yet available
Wakefield MDC,E08000036,30/06/2015,BUSINESS,Net (Surplus) / Deficit of Trading Operations,A,MATRIX SCM LTD,Redacted,Not yet available,Not yet available,Not yet available,05/08/2015,170331,78,744.80,Nil,Agency Staff,Revenue,Business Services,CAT02,Agency,SUBCAT0204,Employment & Recruitment Agencies,31230,Not yet available
Wakefield MDC,E08000036,30/06/2015,BUSINESS,Net (Surplus) / Deficit of Trading Operations,A,MATRIX SCM LTD,Redacted,Not yet available,Not yet available,Not yet available,30/09/2015,170339,8,627.20,Nil,Agency Staff,Revenue,Business Services,CAT02,Agency,SUBCAT0204,Employment & Recruitment Agencies,31230,Not yet available
Wakefield MDC,E08000036,30/06/2015,BUSINESS,Net (Surplus) / Deficit of Trading Operations,A,MATRIX SCM LTD,Redacted,Not yet available,Not yet available,Not yet available,05/08/2015,170331,66,823.29,Nil,Agency Staff,Revenue,Business Services,CAT02,Agency,SUBCAT0204,Employment & Recruitment Agencies,31230,Not yet available
Wakefield MDC,E08000036,30/06/2015,BUSINESS,Net (Surplus) / Deficit of Trading Operations,A,MATRIX SCM LTD,Redacted,Not yet available,Not yet available,Not yet available,05/08/2015,170331,51,1160.32,Nil,Agency Staff,Revenue,Business Services,CAT02,Agency,SUBCAT0204,Employment & Recruitment Agencies,31230,Not yet available
Wakefield MDC,E08000036,30/06/2015,BUSINESS,Net (Surplus) / Deficit of Trading Operations,A,MATRIX SCM LTD,Redacted,Not yet available,Not yet available,Not yet available,12/08/2015,170332,75,823.29,Nil,Agency Staff,Revenue,Business Services,CAT02,Agency,SUBCAT0204,Employment & Recruitment Agencies,31230,Not yet available
Wakefield MDC,E08000036,30/06/2015,BUSINESS,Net (Surplus) / Deficit of Trading Operations,A,MATRIX SCM LTD,Redacted,Not yet available,Not yet available,Not yet available,30/09/2015,170339,60,972.00,Nil,Agency Staff,Revenue,Business Services,CAT02,Agency,SUBCAT0204,Employment & Recruitment Agencies,31230,Not yet available
Wakefield MDC,E08000036,30/06/2015,BUSINESS,Net (Surplus) / Deficit of Trading Operations,A,MATRIX SCM LTD,Redacted,Not yet available,Not yet available,Not yet available,23/09/2015,170338,73,830.25,Nil,Agency Staff,Revenue,Business Services,CAT02,Agency,SUBCAT0204,Employment & Recruitment Agencies,31230,Not yet available
Wakefield MDC,E08000036,30/06/2015,BUSINESS,Net (Surplus) / Deficit of Trading Operations,A,MATRIX SCM LTD,Redacted,Not yet available,Not yet available,Not yet available,12/08/2015,170332,79,830.25,Nil,Agency Staff,Revenue,Business Services,CAT02,Agency,SUBCAT0204,Employment & Recruitment Agencies,31230,Not yet available
Wakefield MDC,E08000036,30/06/2015,BUSINESS,Net (Surplus) / Deficit of Trading Operations,A,MATRIX SCM LTD,Redacted,Not yet available,Not yet available,Not yet available,12/08/2015,170332,131,729.00,Nil,Agency Staff,Revenue,Business Services,CAT02,Agency,SUBCAT0204,Employment & Recruitment Agencies,31230,Not yet available
Wakefield MDC,E08000036,30/06/2015,BUSINESS,Net (Surplus) / Deficit of Trading Operations,A,MATRIX SCM LTD,Redacted,Not yet available,Not yet available,Not yet available,30/09/2015,170339,59,600.97,Nil,Agency Staff,Revenue,Business Services,CAT02,Agency,SUBCAT0204,Employment & Recruitment Agencies,31230,Not yet available
Wakefield MDC,E08000036,30/06/2015,BUSINESS,Net (Surplus) / Deficit of Trading Operations,A,MATRIX SCM LTD,Redacted,Not yet available,Not yet available,Not yet available,12/08/2015,170332,128,879.30,Nil,Agency Staff,Revenue,Business Services,CAT02,Agency,SUBCAT0204,Employment & Recruitment Agencies,31230,Not yet available
Wakefield MDC,E08000036,30/06/2015,BUSINESS,Net (Surplus) / Deficit of Trading Operations,A,MATRIX SCM LTD,Redacted,Not yet available,Not yet available,Not yet available,19/08/2015,170333,75,879.30,Nil,Agency Staff,Revenue,Business Services,CAT02,Agency,SUBCAT0204,Employment & Recruitment Agencies,31230,Not yet available
Wakefield MDC,E08000036,30/06/2015,BUSINESS,Net (Surplus) / Deficit of Trading Operations,A,MATRIX SCM LTD,Redacted,Not yet available,Not yet available,Not yet available,29/07/2015,170330,132,830.25,Nil,Agency Staff,Revenue,Business Services,CAT02,Agency,SUBCAT0204,Employment & Recruitment Agencies,31230,Not yet available
Wakefield MDC,E08000036,30/06/2015,BUSINESS,Net (Surplus) / Deficit of Trading Operations,A,MATRIX SCM LTD,Redacted,Not yet available,Not yet available,Not yet available,29/07/2015,170330,57,703.44,Nil,Agency Staff,Revenue,Business Services,CAT02,Agency,SUBCAT0204,Employment & Recruitment Agencies,31230,Not yet available
Wakefield MDC,E08000036,30/06/2015,BUSINESS,Net (Surplus) / Deficit of Trading Operations,A,MATRIX SCM LTD,Redacted,Not yet available,Not yet available,Not yet available,09/09/2015,170336,85,703.44,Nil,Agency Staff,Revenue,Business Services,CAT02,Agency,SUBCAT0204,Employment & Recruitment Agencies,31230,Not yet available
Wakefield MDC,E08000036,30/06/2015,BUSINESS,Net (Surplus) / Deficit of Trading Operations,A,MATRIX SCM LTD,Redacted,Not yet available,Not yet available,Not yet available,02/09/2015,170335,155,972.00,Nil,Agency Staff,Revenue,Business Services,CAT02,Agency,SUBCAT0204,Employment & Recruitment Agencies,31230,Not yet available
Wakefield MDC,E08000036,30/06/2015,BUSINESS,Net (Surplus) / Deficit of Trading Operations,A,MATRIX SCM LTD,Redacted,Not yet available,Not yet available,Not yet available,22/07/2015,170329,85,879.30,Nil,Agency Staff,Revenue,Business Services,CAT02,Agency,SUBCAT0204,Employment & Recruitment Agencies,31230,Not yet available
Wakefield MDC,E08000036,30/06/2015,BUSINESS,Net (Surplus) / Deficit of Trading Operations,A,MATRIX SCM LTD,Redacted,Not yet available,Not yet available,Not yet available,02/09/2015,170335,162,879.30,Nil,Agency Staff,Revenue,Business Services,CAT02,Agency,SUBCAT0204,Employment & Recruitment Agencies,31230,Not yet available
Wakefield MDC,E08000036,30/06/2015,BUSINESS,Net (Surplus) / Deficit of Trading Operations,A,MATRIX SCM LTD,Redacted,Not yet available,Not yet available,Not yet available,22/07/2015,170329,87,879.30,Nil,Agency Staff,Revenue,Business Services,CAT02,Agency,SUBCAT0204,Employment & Recruitment Agencies,31230,Not yet available
Wakefield MDC,E08000036,30/06/2015,BUSINESS,Net (Surplus) / Deficit of Trading Operations,A,MATRIX SCM LTD,Redacted,Not yet available,Not yet available,Not yet available,09/09/2015,170336,109,703.44,Nil,Agency Staff,Revenue,Business Services,CAT02,Agency,SUBCAT0204,Employment & Recruitment Agencies,31230,Not yet available
Wakefield MDC,E08000036,30/06/2015,BUSINESS,Net (Surplus) / Deficit of Trading Operations,A,MATRIX SCM LTD,Redacted,Not yet available,Not yet available,Not yet available,15/07/2015,170328,112,830.25,Nil,Agency Staff,Revenue,Business Services,CAT02,Agency,SUBCAT0204,Employment & Recruitment Agencies,31230,Not yet available
Wakefield MDC,E08000036,30/06/2015,BUSINESS,Net (Surplus) / Deficit of Trading Operations,A,MATRIX SCM LTD,Redacted,Not yet available,Not yet available,Not yet available,19/08/2015,170333,32,830.25,Nil,Agency Staff,Revenue,Business Services,CAT02,Agency,SUBCAT0204,Employment & Recruitment Agencies,31230,Not yet available
Wakefield MDC,E08000036,30/06/2015,BUSINESS,Net (Surplus) / Deficit of Trading Operations,A,MATRIX SCM LTD,Redacted,Not yet available,Not yet available,Not yet available,15/07/2015,170328,146,879.30,Nil,Agency Staff,Revenue,Business Services,CAT02,Agency,SUBCAT0204,Employment & Recruitment Agencies,31230,Not yet available
Wakefield MDC,E08000036,30/06/2015,BUSINESS,Net (Surplus) / Deficit of Trading Operations,A,MATRIX SCM LTD,Redacted,Not yet available,Not yet available,Not yet available,16/09/2015,170337,45,830.25,Nil,Agency Staff,Revenue,Business Services,CAT02,Agency,SUBCAT0204,Employment & Recruitment Agencies,31230,Not yet available
Wakefield MDC,E08000036,30/06/2015,BUSINESS,Net (Surplus) / Deficit of Trading Operations,A,MATRIX SCM LTD,Redacted,Not yet available,Not yet available,Not yet available,02/09/2015,170335,126,879.30,Nil,Agency Staff,Revenue,Business Services,CAT02,Agency,SUBCAT0204,Employment & Recruitment Agencies,31230,Not yet available
Wakefield MDC,E08000036,30/06/2015,BUSINESS,Net (Surplus) / Deficit of Trading Operations,A,MATRIX SCM LTD,Redacted,Not yet available,Not yet available,Not yet available,22/07/2015,170329,49,830.25,Nil,Agency Staff,Revenue,Business Services,CAT02,Agency,SUBCAT0204,Employment & Recruitment Agencies,31230,Not yet available
Wakefield MDC,E08000036,30/06/2015,BUSINESS,Net (Surplus) / Deficit of Trading Operations,A,MATRIX SCM LTD,Redacted,Not yet available,Not yet available,Not yet available,09/09/2015,170336,84,648.00,Nil,Agency Staff,Revenue,Business Services,CAT02,Agency,SUBCAT0204,Employment & Recruitment Agencies,31230,Not yet available
Wakefield MDC,E08000036,30/06/2015,BUSINESS,Net (Surplus) / Deficit of Trading Operations,A,MATRIX SCM LTD,Redacted,Not yet available,Not yet available,Not yet available,02/09/2015,170335,154,632.60,Nil,Agency Staff,Revenue,Business Services,CAT02,Agency,SUBCAT0204,Employment & Recruitment Agencies,31230,Not yet available
Wakefield MDC,E08000036,30/06/2015,BUSINESS,Net (Surplus) / Deficit of Trading Operations,A,MATRIX SCM LTD,Redacted,Not yet available,Not yet available,Not yet available,05/08/2015,170331,166,789.75,Nil,Agency Staff,Revenue,Business Services,CAT02,Agency,SUBCAT0204,Employment & Recruitment Agencies,31230,Not yet available
Wakefield MDC,E08000036,30/06/2015,BUSINESS,Net (Surplus) / Deficit of Trading Operations,A,MATRIX SCM LTD,Redacted,Not yet available,Not yet available,Not yet available,23/09/2015,170338,104,879.30,Nil,Agency Staff,Revenue,Business Services,CAT02,Agency,SUBCAT0204,Employment & Recruitment Agencies,31230,Not yet available
Wakefield MDC,E08000036,30/06/2015,BUSINESS,Net (Surplus) / Deficit of Trading Operations,A,MATRIX SCM LTD,Redacted,Not yet available,Not yet available,Not yet available,05/08/2015,170331,177,830.25,Nil,Agency Staff,Revenue,Business Services,CAT02,Agency,SUBCAT0204,Employment & Recruitment Agencies,31230,Not yet available
Wakefield MDC,E08000036,30/06/2015,BUSINESS,Net (Surplus) / Deficit of Trading Operations,A,MATRIX SCM LTD,Redacted,Not yet available,Not yet available,Not yet available,23/09/2015,170338,105,879.30,Nil,Agency Staff,Revenue,Business Services,CAT02,Agency,SUBCAT0204,Employment & Recruitment Agencies,31230,Not yet available
Wakefield MDC,E08000036,30/06/2015,BUSINESS,Net (Surplus) / Deficit of Trading Operations,A,MATRIX SCM LTD,Redacted,Not yet available,Not yet available,Not yet available,29/07/2015,170330,102,992.25,Nil,Agency Staff,Revenue,Business Services,CAT02,Agency,SUBCAT0204,Employment & Recruitment Agencies,31230,Not yet available
Wakefield MDC,E08000036,30/06/2015,BUSINESS,Net (Surplus) / Deficit of Trading Operations,A,MATRIX SCM LTD,Redacted,Not yet available,Not yet available,Not yet available,26/08/2015,170334,80,820.68,Nil,Agency Staff,Revenue,Business Services,CAT02,Agency,SUBCAT0204,Employment & Recruitment Agencies,31230,Not yet available
Wakefield MDC,E08000036,30/06/2015,BUSINESS,Net (Surplus) / Deficit of Trading Operations,A,MATRIX SCM LTD,Redacted,Not yet available,Not yet available,Not yet available,08/07/2015,170327,54,830.25,Nil,Agency Staff,Revenue,Business Services,CAT02,Agency,SUBCAT0204,Employment & Recruitment Agencies,31230,Not yet available
Wakefield MDC,E08000036,30/06/2015,BUSINESS,Net (Surplus) / Deficit of Trading Operations,A,MATRIX SCM LTD,Redacted,Not yet available,Not yet available,Not yet available,26/08/2015,170334,61,891.00,Nil,Agency Staff,Revenue,Business Services,CAT02,Agency,SUBCAT0204,Employment & Recruitment Agencies,31230,Not yet available
Wakefield MDC,E08000036,30/06/2015,BUSINESS,Net (Surplus) / Deficit of Trading Operations,A,MATRIX SCM LTD,Redacted,Not yet available,Not yet available,Not yet available,30/09/2015,170339,94,879.30,Nil,Agency Staff,Revenue,Business Services,CAT02,Agency,SUBCAT0204,Employment & Recruitment Agencies,31230,Not yet available
Wakefield MDC,E08000036,30/06/2015,BUSINESS,Net (Surplus) / Deficit of Trading Operations,A,MATRIX SCM LTD,Redacted,Not yet available,Not yet available,Not yet available,30/09/2015,170339,95,879.30,Nil,Agency Staff,Revenue,Business Services,CAT02,Agency,SUBCAT0204,Employment & Recruitment Agencies,31230,Not yet available
Wakefield MDC,E08000036,30/06/2015,BUSINESS,Net (Surplus) / Deficit of Trading Operations,A,MATRIX SCM LTD,Redacted,Not yet available,Not yet available,Not yet available,26/08/2015,170334,79,820.68,Nil,Agency Staff,Revenue,Business Services,CAT02,Agency,SUBCAT0204,Employment & Recruitment Agencies,31230,Not yet available
Wakefield MDC,E08000036,30/06/2015,BUSINESS,Net (Surplus) / Deficit of Trading Operations,A,MATRIX SCM LTD,Redacted,Not yet available,Not yet available,Not yet available,08/07/2015,170327,71,879.30,Nil,Agency Staff,Revenue,Business Services,CAT02,Agency,SUBCAT0204,Employment & Recruitment Agencies,31230,Not yet available
Wakefield MDC,E08000036,30/06/2015,BUSINESS,Net (Surplus) / Deficit of Trading Operations,A,MATRIX SCM LTD,Redacted,Not yet available,Not yet available,Not yet available,16/09/2015,170337,92,879.30,Nil,Agency Staff,Revenue,Business Services,CAT02,Agency,SUBCAT0204,Employment & Recruitment Agencies,31230,Not yet available
Wakefield MDC,E08000036,30/06/2015,BUSINESS,Net (Surplus) / Deficit of Trading Operations,A,MATRIX SCM LTD,Redacted,Not yet available,Not yet available,Not yet available,15/07/2015,170328,147,879.30,Nil,Agency Staff,Revenue,Business Services,CAT02,Agency,SUBCAT0204,Employment & Recruitment Agencies,31230,Not yet available
Wakefield MDC,E08000036,30/06/2015,BUSINESS,Net (Surplus) / Deficit of Trading Operations,A,MATRIX SCM LTD,Redacted,Not yet available,Not yet available,Not yet available,16/09/2015,170337,90,879.30,Nil,Agency Staff,Revenue,Business Services,CAT02,Agency,SUBCAT0204,Employment & Recruitment Agencies,31230,Not yet available
Wakefield MDC,E08000036,30/06/2015,BUSINESS,Net (Surplus) / Deficit of Trading Operations,A,MATRIX SCM LTD,Redacted,Not yet available,Not yet available,Not yet available,19/08/2015,170333,36,879.30,Nil,Agency Staff,Revenue,Business Services,CAT02,Agency,SUBCAT0204,Employment & Recruitment Agencies,31230,Not yet available
Wakefield MDC,E08000036,30/06/2015,BUSINESS,Net (Surplus) / Deficit of Trading Operations,A,MATRIX SCM LTD,Redacted,Not yet available,Not yet available,Not yet available,08/07/2015,170327,69,703.44,Nil,Agency Staff,Revenue,Business Services,CAT02,Agency,SUBCAT0204,Employment & Recruitment Agencies,31230,Not yet available
Wakefield MDC,E08000036,30/06/2015,BUSINESS,Net (Surplus) / Deficit of Trading Operations,A,HEWITT OCCUPATIONAL SERVICES LTD,Redacted,Not yet available,Not yet available,Not yet available,17/08/2015,22844504,1,570.00,Nil,Agency Staff,Revenue,Public Health,CAT06,Sexual Health,SUBCAT0602,Doctors,26710,Not yet available
Wakefield MDC,E08000036,30/06/2015,BUSINESS,Net (Surplus) / Deficit of Trading Operations,A,ASSET HEALTH SOLUTIONS,Redacted,Not yet available,Not yet available,Not yet available,29/07/2015,22838205,1,2150.40,Nil,Agency Staff,Revenue,Business Services,CAT02,Agency,SUBCAT0204,Employment & Recruitment Agencies,31230,Not yet available
Wakefield MDC,E08000036,30/06/2015,BUSINESS,Net (Surplus) / Deficit of Trading Operations,A,ASSET HEALTH SOLUTIONS,Redacted,Not yet available,Not yet available,Not yet available,14/07/2015,22824016,1,2377.60,Nil,Agency Staff,Revenue,Business Services,CAT02,Agency,SUBCAT0204,Employment & Recruitment Agencies,31230,Not yet available
Wakefield MDC,E08000036,30/06/2015,BUSINESS,Net (Surplus) / Deficit of Trading Operations,A,DETAILS REDACTED,Redacted,Not yet available,Not yet available,Not yet available,11/09/2015,22866318,1,666.00,Nil,Agency Staff,Revenue,Business Services,CAT02,Agency,SUBCAT0204,Employment & Recruitment Agencies,31230,Not yet available
Wakefield MDC,E08000036,30/06/2015,BUSINESS,Net (Surplus) / Deficit of Trading Operations,A,DETAILS REDACTED,Redacted,Not yet available,Not yet available,Not yet available,11/09/2015,22866321,1,900.00,Nil,Agency Staff,Revenue,Business Services,CAT02,Agency,SUBCAT0204,Employment & Recruitment Agencies,31230,Not yet available
Wakefield MDC,E08000036,30/06/2015,BUSINESS,Net (Surplus) / Deficit of Trading Operations,A,DETAILS REDACTED,Redacted,Not yet available,Not yet available,Not yet available,25/08/2015,22858456,1,900.00,Nil,Agency Staff,Revenue,Business Services,CAT02,Agency,SUBCAT0204,Employment & Recruitment Agencies,31230,Not yet available
Wakefield MDC,E08000036,30/06/2015,BUSINESS,Net (Surplus) / Deficit of Trading Operations,A,DETAILS REDACTED,Redacted,Not yet available,Not yet available,Not yet available,25/08/2015,22858457,1,1100.00,Nil,Agency Staff,Revenue,Business Services,CAT02,Agency,SUBCAT0204,Employment & Recruitment Agencies,31230,Not yet available
Wakefield MDC,E08000036,30/06/2015,BUSINESS,Net (Surplus) / Deficit of Trading Operations,A,DETAILS REDACTED,Redacted,Not yet available,Not yet available,Not yet available,31/07/2015,22841003,1,1110.00,Nil,Agency Staff,Revenue,Business Services,CAT02,Agency,SUBCAT0204,Employment & Recruitment Agencies,31230,Not yet available
Wakefield MDC,E08000036,30/06/2015,BUSINESS,Net (Surplus) / Deficit of Trading Operations,A,DETAILS REDACTED,Redacted,Not yet available,Not yet available,Not yet available,31/07/2015,22841305,1,1110.00,Nil,Agency Staff,Revenue,Business Services,CAT02,Agency,SUBCAT0204,Employment & Recruitment Agencies,31230,Not yet available
Wakefield MDC,E08000036,30/06/2015,BUSINESS,Net (Surplus) / Deficit of Trading Operations,A,DETAILS REDACTED,Redacted,Not yet available,Not yet available,Not yet available,07/07/2015,22822039,1,1110.00,Nil,Agency Staff,Revenue,Business Services,CAT02,Agency,SUBCAT0204,Employment & Recruitment Agencies,31230,Not yet available
Wakefield MDC,E08000036,30/06/2015,BUSINESS,Net (Surplus) / Deficit of Trading Operations,A,DETAILS REDACTED,Redacted,Not yet available,Not yet available,Not yet available,31/07/2015,22841304,1,1110.00,Nil,Agency Staff,Revenue,Business Services,CAT02,Agency,SUBCAT0204,Employment & Recruitment Agencies,31230,Not yet available
Wakefield MDC,E08000036,30/06/2015,BUSINESS,Net (Surplus) / Deficit of Trading Operations,A,DETAILS REDACTED,Redacted,Not yet available,Not yet available,Not yet available,07/07/2015,22822040,1,1110.00,Nil,Agency Staff,Revenue,Business Services,CAT02,Agency,SUBCAT0204,Employment & Recruitment Agencies,31230,Not yet available
Wakefield MDC,E08000036,30/06/2015,BUSINESS,Net (Surplus) / Deficit of Trading Operations,A,DETAILS REDACTED,Redacted,Not yet available,Not yet available,Not yet available,31/07/2015,22841294,1,1110.00,Nil,Agency Staff,Revenue,Business Services,CAT02,Agency,SUBCAT0204,Employment & Recruitment Agencies,31230,Not yet available
Wakefield MDC,E08000036,30/06/2015,BUSINESS,Net (Surplus) / Deficit of Trading Operations,A,CHEVIOT RECRUITMENT,Redacted,Not yet available,Not yet available,Not yet available,03/09/2015,22861268,1,584.25,Nil,Agency Staff,Revenue,Business Services,CAT02,Agency,SUBCAT0204,Employment & Recruitment Agencies,31230,Not yet available
Wakefield MDC,E08000036,30/06/2015,BUSINESS,Net (Surplus) / Deficit of Trading Operations,A,CHEVIOT RECRUITMENT,Redacted,Not yet available,Not yet available,Not yet available,04/09/2015,22862570,1,584.25,Nil,Agency Staff,Revenue,Business Services,CAT02,Agency,SUBCAT0204,Employment & Recruitment Agencies,31230,Not yet available
Wakefield MDC,E08000036,30/06/2015,BUSINESS,Net (Surplus) / Deficit of Trading Operations,A,CHEVIOT RECRUITMENT,Redacted,Not yet available,Not yet available,Not yet available,15/09/2015,22866934,1,584.25,Nil,Agency Staff,Revenue,Business Services,CAT02,Agency,SUBCAT0204,Employment & Recruitment Agencies,31230,Not yet available
Wakefield MDC,E08000036,30/06/2015,BUSINESS,Net (Surplus) / Deficit of Trading Operations,A,CHEVIOT RECRUITMENT,Redacted,Not yet available,Not yet available,Not yet available,04/09/2015,22862572,1,584.25,Nil,Agency Staff,Revenue,Business Services,CAT02,Agency,SUBCAT0204,Employment & Recruitment Agencies,31230,Not yet available
Wakefield MDC,E08000036,30/06/2015,BUSINESS,Net (Surplus) / Deficit of Trading Operations,A,CHEVIOT RECRUITMENT,Redacted,Not yet available,Not yet available,Not yet available,17/08/2015,22841369,1,584.25,Nil,Agency Staff,Revenue,Business Services,CAT02,Agency,SUBCAT0204,Employment & Recruitment Agencies,31230,Not yet available
Wakefield MDC,E08000036,30/06/2015,BUSINESS,Net (Surplus) / Deficit of Trading Operations,A,CHEVIOT RECRUITMENT,Redacted,Not yet available,Not yet available,Not yet available,17/08/2015,22844511,1,584.25,Nil,Agency Staff,Revenue,Business Services,CAT02,Agency,SUBCAT0204,Employment & Recruitment Agencies,31230,Not yet available
Wakefield MDC,E08000036,30/06/2015,BUSINESS,Net (Surplus) / Deficit of Trading Operations,A,CHEVIOT RECRUITMENT,Redacted,Not yet available,Not yet available,Not yet available,17/08/2015,22844510,1,584.25,Nil,Agency Staff,Revenue,Business Services,CAT02,Agency,SUBCAT0204,Employment & Recruitment Agencies,31230,Not yet available
Wakefield MDC,E08000036,30/06/2015,BUSINESS,Net (Surplus) / Deficit of Trading Operations,A,CHEVIOT RECRUITMENT,Redacted,Not yet available,Not yet available,Not yet available,17/08/2015,22844508,1,584.25,Nil,Agency Staff,Revenue,Business Services,CAT02,Agency,SUBCAT0204,Employment & Recruitment Agencies,31230,Not yet available
Wakefield MDC,E08000036,30/06/2015,BUSINESS,Net (Surplus) / Deficit of Trading Operations,A,CHEVIOT RECRUITMENT,Redacted,Not yet available,Not yet available,Not yet available,24/08/2015,22856534,1,584.25,Nil,Agency Staff,Revenue,Business Services,CAT02,Agency,SUBCAT0204,Employment & Recruitment Agencies,31230,Not yet available
Wakefield MDC,E08000036,30/06/2015,BUSINESS,Net (Surplus) / Deficit of Trading Operations,A,CHEVIOT RECRUITMENT,Redacted,Not yet available,Not yet available,Not yet available,02/07/2015,22817615,1,584.25,Nil,Agency Staff,Revenue,Business Services,CAT02,Agency,SUBCAT0204,Employment & Recruitment Agencies,31230,Not yet available
Wakefield MDC,E08000036,30/06/2015,BUSINESS,Net (Surplus) / Deficit of Trading Operations,A,CHEVIOT RECRUITMENT,Redacted,Not yet available,Not yet available,Not yet available,14/07/2015,22824022,1,584.25,Nil,Agency Staff,Revenue,Business Services,CAT02,Agency,SUBCAT0204,Employment & Recruitment Agencies,31230,Not yet available
Wakefield MDC,E08000036,30/06/2015,BUSINESS,Net (Surplus) / Deficit of Trading Operations,A,CHEVIOT RECRUITMENT,Redacted,Not yet available,Not yet available,Not yet available,14/07/2015,22824023,1,856.90,Nil,Agency Staff,Revenue,Business Services,CAT02,Agency,SUBCAT0204,Employment & Recruitment Agencies,31230,Not yet available
Wakefield MDC,E08000036,30/06/2015,BUSINESS,Net (Surplus) / Deficit of Trading Operations,A,CHEVIOT RECRUITMENT,Redacted,Not yet available,Not yet available,Not yet available,04/09/2015,22862571,1,876.38,Nil,Agency Staff,Revenue,Business Services,CAT02,Agency,SUBCAT0204,Employment & Recruitment Agencies,31230,Not yet available
Wakefield MDC,E08000036,30/06/2015,BUSINESS,Net (Surplus) / Deficit of Trading Operations,A,CHEVIOT RECRUITMENT,Redacted,Not yet available,Not yet available,Not yet available,17/08/2015,22844484,1,876.38,Nil,Agency Staff,Revenue,Business Services,CAT02,Agency,SUBCAT0204,Employment & Recruitment Agencies,31230,Not yet available
Wakefield MDC,E08000036,30/06/2015,BUSINESS,Net (Surplus) / Deficit of Trading Operations,A,CHEVIOT RECRUITMENT,Redacted,Not yet available,Not yet available,Not yet available,14/07/2015,22824021,1,876.38,Nil,Agency Staff,Revenue,Business Services,CAT02,Agency,SUBCAT0204,Employment & Recruitment Agencies,31230,Not yet available
Wakefield MDC,E08000036,30/06/2015,BUSINESS,Net (Surplus) / Deficit of Trading Operations,A,CHEVIOT RECRUITMENT,Redacted,Not yet available,Not yet available,Not yet available,04/09/2015,22862573,1,1110.08,Nil,Agency Staff,Revenue,Business Services,CAT02,Agency,SUBCAT0204,Employment & Recruitment Agencies,31230,Not yet available
Wakefield MDC,E08000036,30/06/2015,BUSINESS,Net (Surplus) / Deficit of Trading Operations,A,CHEVIOT RECRUITMENT,Redacted,Not yet available,Not yet available,Not yet available,14/07/2015,22824020,1,1149.03,Nil,Agency Staff,Revenue,Business Services,CAT02,Agency,SUBCAT0204,Employment & Recruitment Agencies,31230,Not yet available
Wakefield MDC,E08000036,30/06/2015,BUSINESS,Net (Surplus) / Deficit of Trading Operations,A,CHEVIOT RECRUITMENT,Redacted,Not yet available,Not yet available,Not yet available,14/07/2015,22824019,1,584.25,Nil,Agency Staff,Revenue,Business Services,CAT02,Agency,SUBCAT0204,Employment & Recruitment Agencies,31230,Not yet available
Wakefield MDC,E08000036,30/06/2015,BUSINESS,Net (Surplus) / Deficit of Trading Operations,A,OCCUPATIONAL HEALTH RECRUITMENT,Redacted,Not yet available,Not yet available,Not yet available,20/07/2015,22827917,1,572.10,Nil,Agency Staff,Revenue,Business Services,CAT02,Agency,SUBCAT0204,Employment & Recruitment Agencies,31230,Not yet available
Wakefield MDC,E08000036,30/06/2015,BUSINESS,Net (Surplus) / Deficit of Trading Operations,A,OCCUPATIONAL HEALTH RECRUITMENT,Redacted,Not yet available,Not yet available,Not yet available,29/07/2015,22837336,1,572.10,Nil,Agency Staff,Revenue,Business Services,CAT02,Agency,SUBCAT0204,Employment & Recruitment Agencies,31230,Not yet available
Wakefield MDC,E08000036,30/06/2015,BUSINESS,Net (Surplus) / Deficit of Trading Operations,A,OCCUPATIONAL HEALTH RECRUITMENT,Redacted,Not yet available,Not yet available,Not yet available,09/07/2015,22821681,1,572.10,Nil,Agency Staff,Revenue,Business Services,CAT02,Agency,SUBCAT0204,Employment & Recruitment Agencies,31230,Not yet available
Wakefield MDC,E08000036,30/06/2015,BUSINESS,Net (Surplus) / Deficit of Trading Operations,A,OCCUPATIONAL HEALTH RECRUITMENT,Redacted,Not yet available,Not yet available,Not yet available,09/07/2015,22819446,1,572.10,Nil,Agency Staff,Revenue,Business Services,CAT02,Agency,SUBCAT0204,Employment & Recruitment Agencies,31230,Not yet available
Wakefield MDC,E08000036,30/06/2015,BUSINESS,Net (Surplus) / Deficit of Trading Operations,A,OCCUPATIONAL HEALTH RECRUITMENT,Redacted,Not yet available,Not yet available,Not yet available,03/09/2015,22861955,1,572.10,Nil,Agency Staff,Revenue,Business Services,CAT02,Agency,SUBCAT0204,Employment & Recruitment Agencies,31230,Not yet available
Wakefield MDC,E08000036,30/06/2015,BUSINESS,Net (Surplus) / Deficit of Trading Operations,A,OCCUPATIONAL HEALTH RECRUITMENT,Redacted,Not yet available,Not yet available,Not yet available,17/08/2015,22844507,1,572.10,Nil,Agency Staff,Revenue,Business Services,CAT02,Agency,SUBCAT0204,Employment & Recruitment Agencies,31230,Not yet available
Wakefield MDC,E08000036,30/06/2015,BUSINESS,Net (Surplus) / Deficit of Trading Operations,A,OCCUPATIONAL HEALTH RECRUITMENT,Redacted,Not yet available,Not yet available,Not yet available,26/08/2015,22859109,1,762.80,Nil,Agency Staff,Revenue,Business Services,CAT02,Agency,SUBCAT0204,Employment & Recruitment Agencies,31230,Not yet available
Wakefield MDC,E08000036,30/06/2015,BUSINESS,Net (Surplus) / Deficit of Trading Operations,A,OCCUPATIONAL HEALTH RECRUITMENT,Redacted,Not yet available,Not yet available,Not yet available,18/08/2015,22847408,1,1144.20,Nil,Agency Staff,Revenue,Business Services,CAT02,Agency,SUBCAT0204,Employment & Recruitment Agencies,31230,Not yet available
Wakefield MDC,E08000036,30/06/2015,BUSINESS,Net (Surplus) / Deficit of Trading Operations,A,A & O IT SERVICES,Redacted,Not yet available,Not yet available,Not yet available,14/08/2015,22848219,2,714.61,Nil,Agency Staff,Revenue,Business Services,CAT02,Agency,SUBCAT0204,Employment & Recruitment Agencies,31230,Not yet available
Wakefield MDC,E08000036,30/06/2015,BUSINESS,Net (Surplus) / Deficit of Trading Operations,A,A & O IT SERVICES,Redacted,Not yet available,Not yet available,Not yet available,16/07/2015,22827998,2,846.09,Nil,Agency Staff,Revenue,Business Services,CAT02,Agency,SUBCAT0204,Employment & Recruitment Agencies,31230,Not yet available
Wakefield MDC,E08000036,30/06/2015,BUSINESS,Net (Surplus) / Deficit of Trading Operations,A,A & O IT SERVICES,Redacted,Not yet available,Not yet available,Not yet available,23/09/2015,22878727,2,941.85,Nil,Agency Staff,Revenue,Business Services,CAT02,Agency,SUBCAT0204,Employment & Recruitment Agencies,31230,Not yet available
Wakefield MDC,E08000036,30/06/2015,BUSINESS,Net (Surplus) / Deficit of Trading Operations,A,D & A CARTWRIGHT ASOCIATES LTD,Redacted,Not yet available,Not yet available,Not yet available,18/09/2015,22875513,1,2800.00,Nil,Agency Staff,Revenue,Professional Services,CAT08,Consultancy,SUBCAT0802,Health & Safety Consultants,42230,Not yet available
Wakefield MDC,E08000036,30/06/2015,BUSINESS,Net (Surplus) / Deficit of Trading Operations,A,D & A CARTWRIGHT ASOCIATES LTD,Redacted,Not yet available,Not yet available,Not yet available,11/08/2015,22841791,1,5600.00,Nil,Agency Staff,Revenue,Professional Services,CAT08,Consultancy,SUBCAT0802,Health & Safety Consultants,42230,Not yet available
Wakefield MDC,E08000036,30/06/2015,BUSINESS,Net (Surplus) / Deficit of Trading Operations,A,YOUR VIRTUAL PR LIMITED,Redacted,Not yet available,Not yet available,Not yet available,10/07/2015,22824006,1,2383.56,Nil,Agency Staff,Revenue,Business Services,CAT02,Communications,SUBCAT0209,Public Relations Consultants,62370,Not yet available
